Workbook

Sheet INFO
A1: DISCLAIMER: • This spreadsheet has been developed in the framework of the preparation and revision of the set of EN or ISO standards on the energy performance of buildings, to support the European "Energy Performance of Buildings Directive" recast (EPBD-recast, directive 2010/31/EU). • It is meant for use by CEN and ISO technical committee(s) and the working group(s) working on the preparation or revision of the EPB-standard to which this spreadsheet applies. The spreadsheet supports checking that all equations in the developed standard are consistent and can be linked with other relevant standards. It is not meant to perform a full or partial energy performance calculation. • The spreadsheet supports the expert user of the standards, in particular those who want to review the content of the standard and those who want to translate the standard to a software, to understand the correct interpretation of the equations and calculation steps in the standard. • Although it has been developed with care, neither the technical committee(s), nor the working group(s) and experts related to the EPB- standard to which this spreadsheet applies warrant that the calculations and procedures in this spreadsheet are free of errors. The technical committees as well as the working groups and their respective members expressly disclaim any liability or responsibility arising from use of this spreadsheet, or any consequences thereof. Any responsibility arising from the use of this spreadsheet lies with the user.
A2: DRAFT VERSION: • As long as the associated EPB standard or any of the other EPB standards to which it is directly linked are in a draft stage, this spreadsheet is also a draft version only.
A3: WARNINGS: • Note that the spreadsheet may not allow testing all calculation options that are possible according to the standard to which it applies. This remark applies in particular but not only to limitations on the number instances of a variable that can be considered. • In case of differences, the standard should be regarded as the reference, not the spreadsheet. However, during the standard's drafting phase, shortcomings in the draft standard may have been detected and dealt with in the spreadsheets (ideally, such differences are marked). • Note also that these spreadsheets are purely intended for testing and demonstration and therefore not aiming to be user friendly or to be protected against wrong or improper use.
A4: TERMS OF USE: • The user is not allowed to redistribute a modified version of this spreadsheet. • The author(s) would appreciate your feed back on the spreadsheet via the comment sheets for the associated draft standard to be prepared by the national standards bodies during enquiry of the draft standard(s),
A5: Intended use of this document Those responsible for the drafting of actual individual EPB standards shall - read and understand the following documents - prCEN/TS 16628 Basic Principles (in short "BP") - prCEN/TS 16629 Detailed Technical Rules (in short "DTR") - prEN 15603:2013 ("Overarching Standard", in short "OA")) - prCEN/TR 15615:2013 Technical report to overarching standard; - Prepare their individual EPB standard according to CEN rules, BP, DTR and OA - Prepare the accompanying technical report using the dedicated template - Prepare an accompanying XLS spreadsheet, to demonstrate inputs, output and calculation chain. This sample excel spreadsheet provides a template to help in this task.
A6: Why an Excel spradsheet? To demonstrate the validity and required data I/O for the calculation procedure defined in the standard: - list of all input needed --> sheet "Method_input" - list of intended output --> sheet "Method_output" - calculation sequence --> sheet "Method_calculation"
A7: The example is prepared for a simple procedure. The sheet calculation may need extensions such as: - using several columns when operating on arrays - refering to a subset of sheets input/calculation/output to describe a subroutine For complex tasks MACRO can be used. This sheet does not support calculation methods that take into account data in a different time-step than that that is being calculated. A version that allows taking into account values at previous time step will be developed.
A8: LIST SHEETS
A9: Simplified_input_correlation Use this sheet to demontrate simplified input correlation, if any in your standard. Typically these correlations are defined in annex C of the standard. They provide the normal detailed input of a procedure, based on a simplified input data set.
A10: Product_descriptive_data Use this sheet to list product descriptive data (typically with case identifiers). Some examples of selection tables are given. The output from the selection tables (green cells) can be linked to the sheet "method_input" for use in the procedure.
A11: Product_tech_data Use this sheet to list product technical data (typically numerical values and data). Some examples are given with default that may be typically included in annex A of the standard. The output from the selection tables (green cells) can be linked to the sheet "method_input" for use in the procedure.
A12: Process_design_data Use this sheet to list system descriptive data (typically with case identifiers). Some examples of selection tables are given. The output from the selection tables (green cells) can be linked to the sheet "method_input" for use in the procedure.
A13: Data_catalogue_example It is an example of how a data catalogue can work, filtering the catalogue of product properties based on product descriptive data. You can optionally build a similar catalogue for products involved in your standard.
A14: Input_series Prepare in this sheet data for each time step if you want to test the procedure on more steps.
A15: Method_input List in this sheet all the input required for the calculation in one time step. THIS SHEET IS REQUIRED TO DEMONSTRATE THE REQUIRED DATA INPUT.
A16: Method_calculation Detail in this sheet your calculation procedure. There should be one calculation in one cell for each equation in the standard. THIS SHEET IS REQUIRED TO DEMONSTRATE THE CALCULATION PROCEDURE.
A17: Method_output List in this sheet all the intended output of the procedure. THIS SHEET IS REQUIRED TO DEMONSTRATE THE AVAILABLE DATA OUTPUT.
A18: Output_series Series alculation results are stored in this sheet. Calculation for each time step is launched in this sheet.
A19: Greek_to_soft This sheet includes the correspondence table between greek letters and software language coding of variables
A20: Symbols This sheet includes common symbols for reference.
A21: Subs buildings This sheet includes relevant common symbols for the building domain
A22: Subs systems This sheet includes relevant common symbols for the technical systems domain
A23: Subs del_EP This sheet includes relevant common symbols for the assessment boundary energy flows
A24: Subs others This sheet includes relevant common symbols for other general purposes (typically futher levels appended to previously defined subscripts)
A25: Hostory Changes in this sheet according to revisions

Sheet Simplified_input_correlation
A1: Create here a simulation of each correlation method in your Annex C, if any
A4: Name | B4: Symbol | C4: Unit | D4: Value | E4: Range | F4: Formula ref. | G4: Formula | H4: Notes
A5: Input data
A6: Length of the building | B6: lL | C6: m | D6: 30 | E6: 4…100
A7: Width of the building | B7: lW | C7: m | D7: 20 | E7: 4…20
A8: Number of loors | B8: Nlev | C8: - | D8: 3 | E8: 1…10
A9: Floor heigth | B9: Hfl | C9: m | D9: 3.1 | E9: 2…5
A12: METHOD
A14: Detail all formulas
A15: Length of connection of radiators to vertical shafts | B15: lA | C15: m | D15: =0.55*Method_in*D7*D8 -> 33
A16: Length of vertical shafts | B16: lS | C16: m | D16: =0.025*Method_in*D7*D8*D9 -> 2325
A17: Length of base collector | B17: lV | C17: m | D17: =2*Method_in+0.01625*Method_in*D7*D7 -> -4250
A18: …
A20: Output data
A21: Length of shafts | B21: lS | C21: m | D21: =+D16 -> 2325 | E21: 0...∞
A22: diameter of shafts | B22: dS | C22: m | E22: 0…0,2
A23: Length of base ring | B23: lB | C23: m | D23: =+D17 -> -4250 | E23: 0...∞
A24: diameter of base ring | B24: dB | C24: m | E24: 0…0,2

Sheet Product_descriptive_data
A1: Example of descriptive data. In a simple structure, this can be connected directly to the "method_input" sheet where this data is required. In this example spreadsheet the "Method_input" is linked to the "data_catalogue".
A6: Product descriptive data (qualitative)
A8: Boiler type, condensing / non condensing
A9: 3 | B9: BLR_TYPE | C9: =INDEX(C11:C13,A9) -> BLR_TYPE_STND
A11: Condensing | C11: BLR_TYPE_COND
A12: Low temperature | C12: BLR_TYPE_LTMP
A13: Standard | C13: BLR_TYPE_STND
A16: Boiler use
A17: 1 | B17: BLR_USE | C17: =INDEX(C19:C22,A17) -> BLR_USE_H
A19: Heating | C19: BLR_USE_H
A20: Domestic hot water | C20: BLR_USE_W
A21: Cooling | C21: BLR_USE_C
A22: All | C22: BLR_USE_ALL
A25: Fuel
A26: 1 | B26: BLR_FUEL | C26: =INDEX(C28:C31,A26) -> BLR_FUEL_GAS
A28: Gas | C28: BLR_FUEL_GAS
A29: LPG | C29: BLR_FUEL_LPG
A30: Oil | C30: BLR_FUEL_OIL
A31: Biomass | C31: BLR_FUEL_BM
A34: CE Marking
A35: 1 | B35: BLR_CE | C35: =INDEX(C37:C38,A35) -> BLR_DATA_YES
A37: Boiler is marked CE | C37: BLR_DATA_YES
A38: Boiler is NOT marked CE | C38: BLR_DATA_NO
A41: Burner control type
A42: 1 | B42: BLR_CTRL_POW | C42: =INDEX(C44:C46,A42) -> BLR_CTRL_POW_ONOF
A44: Single stage control (ON-OFF) | C44: BLR_CTRL_POW_ONOF
A45: Stepped control | C45: BLR_CTRL_POW_STEP
A46: Modulating control | C46: BLR_CTRL_POW_MOD

Sheet Product_tech_data
A1: Leakage calculation (not implemented)
A2: 6.3.2.2.2 Duct leakage factors
A3: The duct leakage factor | B3: flea,du | C3: - | E3: Formula (1)
A4: The air flow through the duct leakage | B4: qV;lea;du | C4: m3/h | E4: Formula (2)
A5: 6.3.2.2.3 Air handling unit leakage factors
A6: The air handling unit leakage factor | B6: flea;ahu | C6: - | E6: Formula (3)
A7: Rotary heat exchangers
A8: Input data | J8: Table D.1 — Constants for the calculation
A9: Constant for the rotation speed dependence of the heat recovery efficiency for rotary heat recoveries | B9: C3 | C9: - | D9: =Product_tech_data!K11 -> 1.0182 | K9: HEAT_REC_TYPE
A10: Constant for the rotation speed dependence of the heat recovery efficiency for rotary heat recoveries | B10: C4 | C10: - | D10: 0.0352 | J10: Parameter | K10: ROT_NH | L10: ROT_HYG | M10: ROT_SORP
A11: Constant for the rotation speed dependence of the heat recovery efficiency for rotary heat recoveries | B11: C5 | C11: - | D11: 0.276 | J11: C3 | K11: 1.0182
A12: Exponent for the rotation speed dependence of the heat recovery efficiency for rotary heat recoveries | B12: e1 | C12: - | D12: =Product_tech_data!K14 -> -2.7 | J12: C4 | K12: 80
A13: Constant for moisture difference dependence of the humidity recovery efficiency for rotary heat recoveries | B13: C6 | C13: - | D13: =IF(System_configuration!B71=2,Product_tech_data!K15,IF(System_configuration!B71=3,Product_tech_data!L15,IF(System_configuration!B71=4,Product_tech_data!M15,"-"))) -> 248 | J13: C5 | K13: 4.86
A14: Constant for moisture difference dependence of the humidity recovery efficiency for rotary heat recoveries | B14: C7 | C14: - | D14: =IF(System_configuration!B71=2,Product_tech_data!K16,IF(System_configuration!B71=3,Product_tech_data!L16,IF(System_configuration!B71=4,Product_tech_data!M16,"-"))) -> -0.24 | J14: e1 | K14: -2.7
A15: Constant for moisture difference dependence of the humidity recovery efficiency for rotary heat recoveries | B15: C8 | C15: - | D15: =IF(System_configuration!B71=2,Product_tech_data!K17,IF(System_configuration!B71=3,Product_tech_data!L17,IF(System_configuration!B71=4,Product_tech_data!M17,"-"))) -> - | J15: C6 | K15: 248 | L15: 129 | M15: 16.4
A16: Constant for the mass flow relation dependence of the humidity recovery efficiency for rotary heat recoveries | B16: C9 | C16: - | D16: =IF(System_configuration!B71=2,Product_tech_data!K19,IF(System_configuration!B71=3,Product_tech_data!L19,IF(System_configuration!B71=4,Product_tech_data!M19,"-"))) -> 0.1 | J16: C7 | K16: -0.24 | L16: 0.357 | M16: 0.918
A17: Constant for the air velocity dependence of the humidity recovery efficiency for rotary heat recoveries | B17: C10 | C17: - | D17: =IF(System_configuration!B71=2,Product_tech_data!K20,IF(System_configuration!B71=3,Product_tech_data!L20,IF(System_configuration!B71=4,Product_tech_data!M20,"-"))) -> -0.2 | J17: C8 | K17: - | L17: 23.8 | M17: -
A18: Constant for the air velocity dependence of the humidity recovery efficiency for rotary heat recoveries | B18: C11 | C18: - | D18: =IF(System_configuration!B71=2,Product_tech_data!K21,IF(System_configuration!B71=3,Product_tech_data!L21,IF(System_configuration!B71=4,Product_tech_data!M21,"-"))) -> 1 | J18: DxODA;nom | K18: 0.005
A19: Constant for the rotation speed dependence of the humidity recovery efficiency for rotary heat recoveries | B19: C12 | C19: - | D19: =Product_tech_data!K22 -> 1.0533 | J19: C9 | K19: 0.1 | L19: 0.1 | M19: 0.1
A20: Constant for the rotation speed dependence of the humidity recovery efficiency for rotary heat recoveries | B20: C13 | C20: - | D20: =Product_tech_data!K23 -> 80000 | J20: C10 | K20: -0.2 | L20: -0.152 | M20: 0.098
A21: Constant for the rotation speed dependence of the humidity recovery efficiency for rotary heat recoveries | B21: C14 | C21: - | D21: =Product_tech_data!K24 -> 15 | J21: C11 | K21: 1 | L21: 1 | M21: 1
A22: Exponent for the rotation speed dependence of the humidity recovery efficiency for rotary heat recoveries | B22: e2 | C22: - | D22: =Product_tech_data!K25 -> -4 | J22: C12 | K22: 1.0533
A23: Annex D calculation | J23: C13 | K23: 80000
A24: The correction factor for the rotation number for rotary heat exchangers | B24: fn | C24: - | D24: =IF(System_configuration!B81<>3,1,D9-D10*(D26/Method_input!E85+D11)^D12) -> 2.220446049e-16 | E24: Formula (D.1) | J24: C14 | K24: 15
A25: The temperature efficiency necessary to reach the supply air set point temperature | B25: hhr;req | C25: - | D25: =IF(System_configuration!B81<>3,"-",IF((IF(System_configuration!B68=1,Method_calculation!D56,Method_calculation!D57)-IF(System_configuration!B62=2,IF(System_configuration!B58=1,Method_calculation!D99,Method_calculation!D101),Method_calculation!D97))=0,0,(IF(Method_calculation!D81<>"-",Method_calculation!D81,IF(Method_calculation!D82<>"-",Method_calculation!D82,IF(Method_calculation!D83<>"-",Method_calculation!D83,Method_calculation!D84)))-IF(System_configuration!B62=2,IF(System_configuration!B58=1,Method_calculation!D99,Method_calculation!D101),Method_calculation!D97))/(IF(System_configuration!B68=1,Method_calculation!D56,Method_calculation!D57)-IF(System_configuration!B62=2,IF(System_configuration!B58=1,Method_calculation!D99,Method_calculation!D101),Method_calculation!D97)))) -> 0 | E25: Formula (D.2) | F25: if JSUP;hr = JETA;hr:in hhr;req = 0 else | J25: e2 | K25: -4
A26: For rotary heat exchangers, the rotation number in case of controlled heat recovery | B26: nrot | C26: min-1 | D26: =IF(System_configuration!B81=3,Method_input!E85*MIN(1,((-(D27-D9)/D10)^(1/D12)-D11)),"-") -> 0.2029123979 | E26: Formula (D.3)
A27: with | B27: fn;req | C27: - | D27: =D25/(Method_input!E51*Method_calculation!D86*Method_calculation!D87) -> 0 | E27: Formula (D.4)
A28: The correction factor for the condensation potential (If HEAT_REC_TYPE = ROT_SORP or ROT_NH) | B28: fΔx;x | C28: - | D28: =IF(OR(System_configuration!B71=2,System_configuration!B71=4),MAX(0,D13*(Method_calculation!D107-D31)+D14),"-") -> 0 | E28: Formula (D.5a) | F28: fDx;x = max[0 ; C6 × (xETA;hr;in – xe:sat) + C7]
A29: The correction factor for the condensation potential (If HEAT_REC_TYPE = ROT_HYG) | B29: fΔx;x | C29: - | D29: =IF(System_configuration!B71=3,IF(Method_input!E8-D31>0,D13*(Method_calculation!D107-D31)+D14,MAX(0,D15*(Method_calculation!D107-D31)+D14)),"-") -> - | E29: Formula (D.5b) | F29: If (xe – xe;sat) > 0: fDx;x = C6 × (xETA;hr;in – xe:sat) + C7
E30: Formula (D.5c) | F30: If (xe – xe;sat) <= 0: fDx;x = max[0 ; C8 × (xETA;hr;in – xe:sat) + C7]
A31: The saturation moisture content of the outdoor air | B31: xODA;sat | C31: kg/kg dry air | D31: =0.622*D32/(Method_input!E133-D32) -> 0.01641602495 | E31: Formula (D.6)
A32: the saturation pressure | B32: pODA;sat | C32: Pa | D32: =611.2*EXP(17.62*theta_e/(243.12+theta_e)) -> 2605.438559 | E32: Formula (D.7)
A33: The correction factor for the mass flow relation | B33: fq;x | C33: - | D33: =IF(OR(System_configuration!B71=2,System_configuration!B71=3,System_configuration!B71=4),1-D16*((Method_calculation!D44-Method_calculation!D43)/(Method_calculation!D43*IF(System_configuration!B94=3,Method_calculation!D74,IF(System_configuration!B94=2,Method_calculation!D75,Method_calculation!D76)))+1)*((Method_calculation!D44-Method_calculation!D43)/(Method_calculation!D43*IF(System_configuration!B94=3,Method_calculation!D74,IF(System_configuration!B94=2,Method_calculation!D75,Method_calculation!D76)))+1),"-") -> 0.9 | E33: Formula (D.8)
A34: The correction factor for the air velocity | B34: fv;x | C34: - | D34: =IF(OR(System_configuration!B71=2,System_configuration!B71=3,System_configuration!B71=4),D17*(Method_input!D95-Method_input!E113)+D18,"-") -> 1.7 | E34: Formula (D.9) | F34: fv;x = C10 (vhr;eff – vhr;nom) + C11
A35: The correction factor for the rotation number for rotary heat exchangers | B35: fn;x | C35: - | D35: =IF(OR(System_configuration!B71=2,System_configuration!B71=3,System_configuration!B71=4),MAX(0,D19-D20*(D26+D21)^D22),"-") -> 0 | E35: Formula (D.10)
A36: Fans
A37: Input data
A38: Reference value of the air volume flow rate to characterise the efficiency factor of the supply fan as a function of the air volume flow rate (1st key parameter determining hF(qV) ) | B38: qV,fan;SUP;refEf | C38: m3/h | D38: 5000
A39: Efficiency factor of the supply fan for the reference air flow rate (2nd key parameter determining hF(qV) ) | B39: hfan;SUP;refEf | C39: – | D39: 0.72
A40: Reference value of the air volume flow rate to characterise the efficiency factor of the extract fan as a function of the air volume flow rate (1st key parameter determining hF(qV) ) | B40: qV,fan;ETA;refEf | C40: m3/h | D40: 5000
A41: Efficiency factor of the extractfan for the reference air flow rate (2nd key parameter determining hF(qV) ) | B41: hfan;ETA;refEf | C41: – | D41: 0.78
A42: Pressure difference over the supply fan if the air volume flow is 0 (1st key parameter determining the fan characteristic curve) | B42: Dpfan;SUP;0 | C42: Pa | D42: 800
A43: Reference value of the air volume flow rate to characterise the supply fan characteristic curve (2nd key parameter determining the fan characteristic curve) | B43: qV,fan;SUP;refCc | C43: m3/h | D43: 5000
A44: Pressure difference over the supply fan for the reference air volume flow rate (3rd key parameter determining the fan characteristic curve) | B44: Dpfan;SUP;refCc | C44: Pa | D44: 600
A45: Pressure difference over the extract fan if the air volume flow is 0 (1st key parameter determining the fan characteristic curve) | B45: Dpfan;ETA;0 | C45: Pa | D45: 800
A46: Reference value of the air volume flow rate to characterise the extract fan characteristic curve (2nd key parameter determining the fan characteristic curve) | B46: qV,fan;ETA;refCc | C46: m3/h | D46: 5000
A47: Pressure difference over the extract fan for the reference air volume flow rate (3rd key parameter determining the fan characteristic curve) | B47: Dpfan;ETA;refCc | C47: Pa | D47: 600
A48: Old PE version calculation as proxy (since there is no function given)
A49: The fan energy consumption for the current time step is the energy consumption for ventilation | B49: EV;gen;in;el | C49: kWh | D49: =D39/SQRT(D38*Method_calculation!D43)*Method_calculation!D43/Method_input!E72 -> 0.46184846 | E49: Derived from former Formula (82)
A50: The fan energy consumption for the current time step is the energy consumption for ventilation | B50: EV;gen;in;el | C50: kWh | D50: =D41/SQRT(D40*Method_calculation!D44)*Method_calculation!D44/Method_input!E74 -> 0.46184846 | E50: Former Formula (82)
A51: The supply and extract fan pressure differences are (single zone, no contol) | B51: Δpfan;SUP | C51: Pa | D51: =(D42-(Method_calculation!D43/Product_tech_data!D43)^2*(Product_tech_data!D42-Product_tech_data!D44))/Method_input!E73 -> 1.318167135 | E51: Former Formula (83a)
A52: The supply and extract fan pressure differences are (single zone, no contol) | B52: Δpfan;ETA | C52: Pa | D52: =(D45-(Method_calculation!D44/Product_tech_data!D46)^2*(Product_tech_data!D45-Product_tech_data!D47))/Method_input!E75 -> 1.318167135 | E52: Former Formula (84a)

Sheet Process_design_data
A1: Example of process design data. In a simple structure, this can be connected directly to the "method_input" sheet where this data is required. In this example spreadsheet the "Method input" is linked to the detailed input.
A6: Process design data (qualitative)
A8: Boiler location (installation position)
A9: 2 | B9: BLR_LOC | C9: =INDEX(C11:C14,A9) -> BLR_LOC_UNH | E9: qi,brm | F9: bbrm
E10: °C | F10: -
A11: Heated space | C11: BLR_LOC_INT | E11: 20 | F11: 0
A12: Unheated room | C12: BLR_LOC_UNH | E12: 5 | F12: 0.5
A13: Boiler room | C13: BLR_LOC_BLR | E13: 15 | F13: 0.7
A14: External | C14: BLR_LOC_EXT | E14: -10 | F14: 1
A15: Selected value | E15: =INDEX(E11:E14,$A$9) -> 5 | F15: =INDEX(F11:F14,$A$9) -> 0.5
A18: Boiler hydraulic connection
A19: 1 | B19: BLR_HCON | C19: =INDEX(C21:C24,A19) -> BLR_HCON_DIR
A21: Direct connection | C21: BLR_HCON_DIR
A22: Hydraulic decoupling (independent flow rate) | C22: BLR_HCON_DEC
A23: Direct, with condensate prevention pump | C23: BLR_HCON_NCP
A24: Heat exchanger | C24: BLR_HCON_HEX

Sheet System_configuration
B4: Yes
B5: No
A24: General | B24: A | C24: B | D24: C | E24: D | F24: E | G24: F | H24: G | I24: H
A25: Volume flow rates | B25: Frost protection / ground preheating/-cooling | C25: Exhaust air fan | D25: Heat recovery | E25: Recirculation | F25: Cooling / dehumidification | G25: Humidification | H25: Heating | I25: Supply fan
A27: Air handling unit localosation | B27: Ground air preheating and -cooling | C27: localisation | D27: Heat recovery type | G27: Humidifier type | I27: Fan motor localisation
A29: Supply air temperature control | B29: Frost protection type | D29: only for PLATE and ROT_HYG | E29: Recirculation control | G29: humidifier control | I29: System type for variable air volume flow rate fan energy calculation
A31: Control of the volume flow rate | B31: Control of the frost protection | D31: Control of the heat recovery device | G31: humidification energy carrier | I31: Control of the fan
A33: System type | G33: Adiabatic cooling | I33: localisation
A37: 6.4.2.1.1 Volume flow rates
A38: Flow rate calculation | B38: 1 | C38: Detailed
C39: Simplified
A41: AHU_LOC | B41: 2 | C41: COND | D41: Air handling unit is located in the conditioned zone
C42: NC | D42: Air handling unit is located in the non-conditioned zone
A44: If SUP_TEMP_CTRL = | B44: 2 | C44: CONST | D44: constant supply air temperature | L44: Table B.5 — Default heat recovery leakage and outdoor air factors
C45: ODA_COMP | D45: Variable set point with outdoor temperature compensation | L45: SUP_FAN_LOC | M45: ETA_FAN_LOC | O45: HEAT_REC_TYPE
C46: LOAD_COMP | D46: Variable set point with load dependent compensation | N46: Leakage factor | O46: FLAT_PLATE | P46: ROT_NH | Q46: ROT_HYG | R46: ROT_SORP | S46: PUMP_CIRC
C47: NO_CTRL | L47: UP_HR | M47: UP_HR | N47: flea;hr;SUP | O47: 1 | P47: 1.04 | S47: 1 | U47: =IF(AND(B119=1,B68=1,B71=1),O47,IF(AND(B119=1,B68=1,OR(B71=2,B71=3,B71=4)),P47,IF(AND(B119=1,B68=1,B71=5),S47,IF(AND(B119=1,B68=2,B71=1),O50,IF(AND(B119=1,B68=2,OR(B71=2,B71=3,B71=4)),P50,IF(AND(B119=1,B68=2,B71=5),S50,IF(AND(B119=2,B68=1,B71=1),O53,IF(AND(B119=2,B68=1,OR(B71=2,B71=3,B71=4)),P53,IF(AND(B119=2,B68=1,B71=5),S53,IF(AND(B119=2,B68=2,B71=1),O56,IF(AND(B119=2,B68=2,OR(B71=2,B71=3,B71=4)),P56,S56))))))))))) -> 1.1
N48: flea;hr;ETA | O48: 1 | P48: 1 | S48: 1 | U48: =IF(AND(B119=1,B68=1,B71=1),O48,IF(AND(B119=1,B68=1,OR(B71=2,B71=3,B71=4)),P48,IF(AND(B119=1,B68=1,B71=5),S48,IF(AND(B119=1,B68=2,B71=1),O51,IF(AND(B119=1,B68=2,OR(B71=2,B71=3,B71=4)),P51,IF(AND(B119=1,B68=2,B71=5),S51,IF(AND(B119=2,B68=1,B71=1),O54,IF(AND(B119=2,B68=1,OR(B71=2,B71=3,B71=4)),P54,IF(AND(B119=2,B68=1,B71=5),S54,IF(AND(B119=2,B68=2,B71=1),O57,IF(AND(B119=2,B68=2,OR(B71=2,B71=3,B71=4)),P57,S57))))))))))) -> 1.1
A49: AIR_FLOW_CTRL | B49: 4 | C49: NO_CONTR | D49: no flow rate control, continuous operation | N49: fODA;hr | O49: 1 | P49: 1 | S49: 1 | U49: =IF(AND(B119=1,B68=1,B71=1),O49,IF(AND(B119=1,B68=1,OR(B71=2,B71=3,B71=4)),P49,IF(AND(B119=1,B68=1,B71=5),S49,IF(AND(B119=1,B68=2,B71=1),O52,IF(AND(B119=1,B68=2,OR(B71=2,B71=3,B71=4)),P52,IF(AND(B119=1,B68=2,B71=5),S52,IF(AND(B119=2,B68=1,B71=1),O55,IF(AND(B119=2,B68=1,OR(B71=2,B71=3,B71=4)),P55,IF(AND(B119=2,B68=1,B71=5),S55,IF(AND(B119=2,B68=2,B71=1),O58,IF(AND(B119=2,B68=2,OR(B71=2,B71=3,B71=4)),P58,S58))))))))))) -> 0.909
C50: ON/OFF CTRL | D50: time dependent flow rate control, continuous operation during occupancy time | L50: UP_HR | M50: DOWN_HR | N50: flea;hr;SUP | O50: 1 | P50: 1.1 | S50: 1
C51: MULIT_STAGE | D51: multi stage variable flow rate control | N51: flea;hr;ETA | O51: 1 | P51: 1.1 | S51: 1
C52: VARIABLE | D52: continuously variable flow rate control | N52: fODA;hr | O52: 1 | P52: 1 | S52: 1
L53: DOWN_HR | M53: UP_HR | N53: flea;hr;SUP | O53: 1 | P53: 1.1 | S53: 1
A54: GND_PREH_CTRL | B54: 2 | C54: NO_CTRL | D54: No control of the ground preheating/-cooling (contiuous operation) | N54: flea;hr;ETA | O54: 1 | P54: 1.1 | S54: 1
C55: BYPASS | D55: Bypass to adjust the supply air temperature | N55: fODA;hr | O55: 1 | P55: 0.909 | S55: 1
L56: DOWN_HR | M56: DOWN_HR | N56: flea;hr;SUP | O56: 1 | P56: 1.02 | S56: 1
N57: flea;hr;ETA | O57: 1 | P57: 1 | S57: 1
A58: DEFR_TYPE | B58: 1 | C58: PREH | D58: The entering temperature to the heat recovery is enhanced by a preheating coil | N58: fODA;hr | O58: 1 | P58: 0.98 | S58: 1
C59: BYPASS | D59: A bypass in the supply air decreases the transferred heat and rises the leaving extract air temperature
C60: RECIRC | D60: Recirculation of extract air to the outside air increases the entering temperature to the heat recovery | L60: Tabelle B.5 – Default humidity recovery efficiency and constants for the calculation
L61: Parameter | M61: ROT_NH | N61: ROT_HYG | O61: ROT_SORP
A62: DEFR_CTRL | B62: 2 | C62: DIRECT | D62: Defrosting is controlled directly by measurement of the pressure drop, and the resulting effect is considered by corrected efficiency values. These must be provided according to EN 13053;2006 | L62: hxr;nom | M62: 0.3 | N62: 0.42 | O62: 0.69
C63: INDIRECT | D63: Frost is prevented by controlling the leaving temperature from the heat recovery device.
A65: System type | B65: 2 | C65: 13141 | D65: balanced residential ventilation systems tested according to EN 13141-7 or EN 13141-8 | L65: Table B.6 — Default nominal temperature efficiencies and values for the constants
C66: else | N66: HEAT_REC_TYPE
L67: Parameter | M67: Unit | N67: PLATE | P67: ROT_NH | Q67: ROT_HYG | R67: ROT_SORP | S67: PUMP_CIRC | T67: OTHER | U67: 2 | V67: PLATE
A68: ETA_FAN_LOC | B68: 1 | C68: UP_HR | D68: Extract fan is located upstream of the heat recovery device or the recirculation | N68: cross flow | O68: counter flow | V68: ROT_NH
C69: DOWN_HR | D69: Extract fan is located downstream of the heat recovery device or the recirculation | L69: hhr;nom | M69: - | N69: 0.6 | O69: 0.85 | P69: 0.69 | Q69: 0.67 | R69: 0.69 | S69: 0.71 | V69: ROT_HYG
L70: vhr;nom | M70: m/s | N70: 3.5 | V70: ROT_SORP
A71: If HEAT_REC_TYPE = | B71: 2 | C71: PLATE | D71: Flat plate heat exchanger | L71: C1 | N71: -0.0201 | O71: -0.0201 | P71: -0.0643 | Q71: -0.0684 | R71: -0.0665 | S71: -0.0491 | V71: PUMP_CIRC
C72: ROT_NH | D72: Rotary, non-hygroscopic | L72: C2 | N72: 1 | P72: 1 | Q72: 1 | R72: 1 | S72: 1
C73: ROT_HYG | D73: Rotary hygroscopic | L73: Φhr;max | M73: kW | N73: 1e-05 | O73: 1e-05 | P73: 0.5 | Q73: 0.5 | R73: 0.5 | S73: 1e-05
C74: ROT_SORBT | D74: Rotary sorbtive | L74: nrot;max | M74: min-1 | N74: 1e-05 | O74: 1e-05 | P74: 20 | Q74: 20 | R74: 20 | S74: 1e-05
C75: PUMP_CIRC | D75: Pumped circuit system | L75: Phr;rot;max | M75: kW | N75: 1e-05 | O75: 1e-05 | P75: 0.05 | Q75: 0.05 | R75: 0.05 | S75: 1e-05
C76: OTHER | D76: other type of heat recovery | L76: pel;hr;pu;max | M76: kWh/m3 | N76: 1e-05 | O76: 1e-05 | P76: 1e-05 | Q76: 1e-05 | R76: 1e-05 | S76: 0.3
L77: fpl;hr;min | M77: - | N77: 1e-05 | O77: 1e-05 | P77: 1e-05 | Q77: 1e-05 | R77: 1e-05 | S77: 0.6
A78: Building use category (im Anhang) | B78: 1 | C78: =IF(OR(B71=1,B71=3),"Residential","-") -> - | L78: ΔpSUP+ETA;des;hr | M78: Pa | N78: 300 | O78: 500 | P78: 400 | Q78: 400 | R78: 400 | S78: 500
C79: =IF(OR(B71=1,B71=3),"Non residential","-") -> -
A81: If HEAT_REC_CTRL = | B81: 3 | C81: =IF(B71=1,"NO_CTRL","-") -> - | L81: Table B.10 Default specific humidification pump energy power consumption for different humidifier types and control strategies
C82: =IF(B71=1,"BYPASS","-") -> - | L82: HUM_TYPE | M82: HUM_CTRL | N82: Specific power pel,HU,des | O82: qm;w;HU,des
C83: =IF(OR(B71=2,B71=3,B71=4,B71=5),"SPEED","-") -> SPEED | N83: kWh/m3 | O83: kg/h
C84: =IF(B71=5,"HYDR","-") -> - | L84: CONTACT | M84: NO_CTRL | N84: 0.01 | O84: 1
L85: ROT_SPRAY | M85: NO_CTRL | N85: 0.2 | O85: 1
A86: RCA | B86: 1 | C86: yes | M86: ON_OFF | N86: 0.2 | O86: 1
C87: no | M87: SPEED | N87: 0.2 | O87: 1
L88: HI_PRES | M88: SPEED | N88: 0.04 | O88: 1
A89: If RCA_CTRL = | B89: 3 | C89: ZONE_BASED | L89: HYBRID | M89: ON_OFF | N89: 0.02 | O89: 1
C90: FIX | D90: Fixed proportion of recirculation air | L90: STEAM | M90: - | N90: - | O90: -
C91: VARIABLE | D91: Variable proportion of recirculation air
L92: Table B.12 — Default fan motor heat recovery factors
A93: If HUM_TYPE | B93: 1 | C93: CONTACT | D93: Contact and drip humidifier | L93: FAN_MOT_LOC | M93: ffan;rd
C94: ROT_SPRAY | D94: Rotary spray humidifier | L94: IN_AIR | M94: 0.9
C95: HI_PRES | D95: High pressure humidifier | L95: OUTS_AIR | M95: 0.6
C96: HYBRID | D96: Hybrid humidifier
C97: STEAM | D97: Steam humidifier
A99: GEN_CRHU;gen | B99: 1 | C99: HUM_CR_EL | D99: Electricity
C100: HUM_CR_GAS | D100: Gas | L100: Table B.14 – Temperature limit values for frost protection
C101: HUM_CR_SOL | D101: solar | L101: DEFR_CTRL = DIRECT | N101: DEFR_CTRL = INDIRECT
C102: HUM_CR_OTHER | D102: other type of carrier | L102: Limit | M102: Value °C | N102: Building use category | O102: HEAT_REC_TYPE | P102: JETA;hr;lim, °C
L103: Je;lim1 | M103: -10 | N103: Residential | O103: FLAT_PLATE | P103: 5
A104: If HUM_CTRL = | B104: 2 | C104: NO_CTRL | D104: Uncontrolled or valve controlled | L104: Je;lim2 | M104: -5 | N104: Residential | O104: ROT_HYG | P104: 0
C105: ON_OFF | D105: On/off | N105: Non residential | O105: FLAT_PLATE | P105: 0
C106: SPEED | D106: Pump speed control | N106: Non residential | O106: ROT_HYG | P106: -5
N107: Non residential | O107: ROT_NH | P107: -10
A108: FAN_MOT_LOC | B108: 2 | C108: IN_AIR | D108: Fan motor is located inside the air stream | N108: Non residential | O108: ROT_SORBT | P108: -5
C109: OUTS_AIR | D109: Fan motor is located outside the air stream | N109: Non residential | O109: PUMP_CIRC | P109: 10
A111: If SYS_TYPE = | B111: 1 | C111: SINGLE_ZONE | D111: The system is serving one single zone or is controlled according to a pilot zone
C112: MULTI_ZONE | D112: The system is serving several zones with individual zone volume flow rate controls
A114: If FAN_CTRL | B114: 4 | C114: NO_CTRL | D114: No control; the fan reacts on the variable flow rate according to its characteristics
C115: =IF(B111=2,"CONST_PRES","-") -> - | D115: The fan pressure difference is kept constant
C116: =IF(B111=2,"MIN_PRES","-") -> - | D116: The fan is controlled to the minimum necessary pressure difference necessary in the system
C117: =IF(B111=1,"DIRECT","-") -> DIRECT | D117: The fan is controlled directly according to the variable flow rate
A119: SUP_FAN_LOC = UP_HR | B119: 2 | C119: UP_HR
C120: DOWN_HR
A122: Adiabatic cooling | B122: 2 | C122: yes
C123: no

Sheet Input_series
A1: Load here the value of input variables for each time-step (time series) Set the number of input data for each time steps and the number of time step before running The macro from sheet "Output series". Local constant data may be input via the sheets "Constants"
A3: Time series for data input
A4: Settings
A5: Number of input data | C5: 20
A6: Number of time steps | C6: 48
A8: Description | B8: external temperature of the calculation interval | C8: external air moisture content of the calculation interval | D8: Temperature of the thermal zone where the duct or ahu losses go to | E8: Temperature of the unconditioned duct surrounding | F8: Moisture content of the unconditioned duct surrounding | G8: AHU heating coil input | H8: AHU cooling coil output | I8: AHU cooling coil inlet temperature | J8: Operation requirement signal | K8: Required supply air volume flow rate per ventilation zone i | L8: Required return air volume flow rate per ventilation zone i | M8: Required supply outdoor air volume flow rate per ventilation zone i | N8: Required ventilation zone supply air temperature | O8: Required ventilation zone supply air moisture content | P8: Required ventilation zone supply air moisture content | Q8: Ventilation zone return air temperature | R8: Thermal zone return air moisture content | S8: Average partial load factor (averaged over all zones) | T8: Partial load diversity (over all zones) | U8: Operation factor of the control devices
A9: Symbol | B9: Je | C9: xe | D9: JIDA;zt | E9: Jsur;nc | F9: xsur;nc | G9: QH;ahu;in | H9: QC;ahu;out; | I9: JC;ahu;in | J9: fop;V | K9: qV;SUP;dis;zv;req;i | L9: qV;ETA;dis;zv;req;i | M9: qV;ODA;zv;req;i | N9: JSUP;req;zv | O9: xSUP;zt;min;req | P9: xSUPzt;max;req | Q9: JETA;zv | R9: xETA;zv | S9: fpl | T9: DfV | U9: fop;ctrl
A10: Unit | B10: °C | C10: kg/kg dry air | D10: °C | E10: °C | F10: kg/kg dry air | G10: kWh | H10: kWh | I10: °C | J10: - | K10: m3/h | L10: m3/h | M10: m3/h | N10: °C | O10: kg/kg dry air | P10: kg/kg dry air | Q10: °C | R10: kg/kg dry air | S10: – | T10: – | U10: -
A13: Time stamp | C13: VALUES
A14: 1 | B14: -9.7 | C14: 0.0017 | D14: 21 | E14: 15 | F14: 0.0017 | G14: =Output_series!I18 -> 0.7447307237 | H14: =Output_series!J18 -> 0 | I14: =Output_series!P18 -> 20.79701577 | J14: 1 | K14: 500 | L14: -500 | M14: =K14/2 -> 250 | N14: 21 | O14: 0.004 | P14: 0.008 | Q14: 22 | R14: =Output_series!X18+0.002 -> 0.009640032598 | S14: 0.9 | T14: 0.9 | U14: 1
A15: 2 | B15: -9.3 | C15: 0.00173 | D15: 21 | E15: 15 | F15: 0.00173 | G15: =Output_series!I19 -> 0.7389943941 | H15: =Output_series!J19 -> 0 | I15: =Output_series!P19 -> 20.81365827 | J15: 1 | K15: 500 | L15: -500 | M15: =K15/2 -> 250 | N15: 21 | O15: 0.004 | P15: 0.008 | Q15: 22 | R15: =Output_series!X19+0.002 -> 0.009671758404 | S15: 0.9 | T15: 0.9 | U15: 1
A16: 3 | B16: -9.2 | C16: 0.00171 | D16: 21 | E16: 15 | F16: 0.00171 | G16: =Output_series!I20 -> 0.7375603117 | H16: =Output_series!J20 -> 0 | I16: =Output_series!P20 -> 20.8178189 | J16: 1 | K16: 500 | L16: -500 | M16: 250 | N16: 21 | O16: 0.004 | P16: 0.008 | Q16: 22 | R16: =Output_series!X20+0.002 -> 0.009650607867 | S16: 0.9 | T16: 0.9 | U16: 1
A17: 4 | B17: -9.5 | C17: 0.00172 | D17: 21 | E17: 15 | F17: 0.00172 | G17: =Output_series!I21 -> 0.7418625589 | H17: =Output_series!J21 -> 0 | I17: =Output_series!P21 -> 20.80533702 | J17: 1 | K17: 500 | L17: -500 | M17: 250 | N17: 21 | O17: 0.004 | P17: 0.008 | Q17: 22 | R17: =Output_series!X21+0.002 -> 0.009661183135 | S17: 0.9 | T17: 0.9 | U17: 1
A18: 5 | B18: -9.3 | C18: 0.00178 | D18: 21 | E18: 15 | F18: 0.00178 | G18: =Output_series!I22 -> 0.7389943941 | H18: =Output_series!J22 -> 0 | I18: =Output_series!P22 -> 20.81365827 | J18: 1 | K18: 500 | L18: -500 | M18: 250 | N18: 21 | O18: 0.004 | P18: 0.008 | Q18: 22 | R18: =Output_series!X22+0.002 -> 0.009724634747 | S18: 0.9 | T18: 0.9 | U18: 1
A19: 6 | B19: -8.8 | C19: 0.00184 | D19: 21 | E19: 15 | F19: 0.00184 | G19: =Output_series!I23 -> 0.7318239821 | H19: =Output_series!J23 -> 0 | I19: =Output_series!P23 -> 20.83446141 | J19: 1 | K19: 500 | L19: -500 | M19: 250 | N19: 21 | O19: 0.004 | P19: 0.008 | Q19: 22 | R19: =Output_series!X23+0.002 -> 0.009788086359 | S19: 0.9 | T19: 0.9 | U19: 1
A20: 7 | B20: -8.1 | C20: 0.00189 | D20: 21 | E20: 15 | F20: 0.00189 | G20: =Output_series!I24 -> 1.267827667 | H20: =Output_series!J24 -> 0 | I20: =Output_series!P24 -> 19.52078649 | J20: 1 | K20: 1000 | L20: -1000 | M20: 500 | N20: 21 | O20: 0.004 | P20: 0.008 | Q20: 22 | R20: =Output_series!X24+0.002 -> 0.006 | S20: 0.9 | T20: 0.9 | U20: 1
A21: 8 | B21: -8.1 | C21: 0.00193 | D21: 21 | E21: 15 | F21: 0.00193 | G21: =Output_series!I25 -> 2.639016115 | H21: =Output_series!J25 -> 0 | I21: =Output_series!P25 -> 19.24487978 | J21: 1 | K21: 2000 | L21: -2000 | M21: 1000 | N21: 21 | O21: 0.004 | P21: 0.008 | Q21: 22 | R21: =Output_series!X25+0.002 -> 0.006 | S21: 0.9 | T21: 0.9 | U21: 1
A22: 9 | B22: -7.7 | C22: 0.00198 | D22: 21 | E22: 15 | F22: 0.00198 | G22: =Output_series!I26 -> 3.962984702 | H22: =Output_series!J26 -> 0 | I22: =Output_series!P26 -> 19.09549696 | J22: 1 | K22: 3000 | L22: -3000 | M22: 1500 | N22: 21 | O22: 0.004 | P22: 0.008 | Q22: 22 | R22: =Output_series!X26+0.002 -> 0.006019600046 | S22: 0.9 | T22: 0.9 | U22: 1
A23: 10 | B23: -7 | C23: 0.00192 | D23: 21 | E23: 15 | F23: 0.00192 | G23: =Output_series!I27 -> 5.284275076 | H23: =Output_series!J27 -> 0 | I23: =Output_series!P27 -> 19.01929348 | J23: 1 | K23: 4000 | L23: -4000 | M23: 2000 | N23: 21 | O23: 0.004 | P23: 0.008 | Q23: 22 | R23: =Output_series!X27+0.002 -> 0.006 | S23: 0.9 | T23: 0.9 | U23: 1
A24: 11 | B24: -6 | C24: 0.00213 | D24: 21 | E24: 15 | F24: 0.00213 | G24: =Output_series!I28 -> 5.050083501 | H24: =Output_series!J28 -> 0 | I24: =Output_series!P28 -> 19.13124365 | J24: 1 | K24: 4000 | L24: -4000 | M24: 2000 | N24: 21 | O24: 0.004 | P24: 0.008 | Q24: 22 | R24: =Output_series!X28+0.002 -> 0.006174270421 | S24: 0.9 | T24: 0.9 | U24: 1
A25: 12 | B25: -5.6 | C25: 0.00225 | D25: 21 | E25: 15 | F25: 0.00225 | G25: =Output_series!I29 -> 2.441103196 | H25: =Output_series!J29 -> 0 | I25: =Output_series!P29 -> 19.48151468 | J25: 1 | K25: 2000 | L25: -2000 | M25: 1000 | N25: 21 | O25: 0.004 | P25: 0.008 | Q25: 22 | R25: =Output_series!X29+0.002 -> 0.006296640538 | S25: 0.9 | T25: 0.9 | U25: 1
A26: 13 | B26: -4.7 | C26: 0.00231 | D26: 21 | E26: 15 | F26: 0.00231 | G26: =Output_series!I30 -> 3.628311679 | H26: =Output_series!J30 -> 0 | I26: =Output_series!P30 -> 19.40540315 | J26: 1 | K26: 3000 | L26: -3000 | M26: 1500 | N26: 21 | O26: 0.004 | P26: 0.008 | Q26: 22 | R26: =Output_series!X30+0.002 -> 0.006357825597 | S26: 0.9 | T26: 0.9 | U26: 1
A27: 14 | B27: -4.1 | C27: 0.0022 | D27: 21 | E27: 15 | F27: 0.0022 | G27: =Output_series!I31 -> 4.743811327 | H27: =Output_series!J31 -> 0 | I27: =Output_series!P31 -> 19.34394897 | J27: 1 | K27: 4000 | L27: -4000 | M27: 2000 | N27: 21 | O27: 0.004 | P27: 0.008 | Q27: 22 | R27: =Output_series!X31+0.002 -> 0.006245652989 | S27: 0.9 | T27: 0.9 | U27: 1
A28: 15 | B28: -4.1 | C28: 0.0023 | D28: 21 | E28: 15 | F28: 0.0023 | G28: =Output_series!I32 -> 4.743811327 | H28: =Output_series!J32 -> 0 | I28: =Output_series!P32 -> 19.34394897 | J28: 1 | K28: 4000 | L28: -4000 | M28: 2000 | N28: 21 | O28: 0.004 | P28: 0.008 | Q28: 22 | R28: =Output_series!X32+0.002 -> 0.006347628087 | S28: 0.9 | T28: 0.9 | U28: 1
A29: 16 | B29: -4 | C29: 0.00232 | D29: 21 | E29: 15 | F29: 0.00232 | G29: =Output_series!I33 -> 2.332070196 | H29: =Output_series!J33 -> 0 | I29: =Output_series!P33 -> 19.63296101 | J29: 1 | K29: 2000 | L29: -2000 | M29: 1000 | N29: 21 | O29: 0.004 | P29: 0.008 | Q29: 22 | R29: =Output_series!X33+0.002 -> 0.006368023107 | S29: 0.9 | T29: 0.9 | U29: 1
A30: 17 | B30: -3.6 | C30: 0.00235 | D30: 21 | E30: 15 | F30: 0.00235 | G30: =Output_series!I34 -> 1.096836455 | H30: =Output_series!J34 -> 0 | I30: =Output_series!P34 -> 19.90781283 | J30: 1 | K30: 1000 | L30: -1000 | M30: 500 | N30: 21 | O30: 0.004 | P30: 0.008 | Q30: 22 | R30: =Output_series!X34+0.002 -> 0.006398615636 | S30: 0.9 | T30: 0.9 | U30: 1
A31: 18 | B31: -3.4 | C31: 0.0024 | D31: 21 | E31: 15 | F31: 0.0024 | G31: =Output_series!I35 -> 3.908305446 | H31: =Output_series!J35 -> 3.336039108 | I31: =Output_series!P35 -> 9.258598976 | J31: 1 | K31: 500 | L31: -500 | M31: 250 | N31: 21 | O31: 0.004 | P31: 0.008 | Q31: 22 | R31: =Output_series!X35+0.002 -> 0.009999992119 | S31: 0.9 | T31: 0.9 | U31: 1
A32: 19 | B32: -3.5 | C32: 0.00245 | D32: 21 | E32: 15 | F32: 0.00245 | G32: =Output_series!I36 -> 3.909302815 | H32: =Output_series!J36 -> 3.346935133 | I32: =Output_series!P36 -> 9.256022115 | J32: 1 | K32: 500 | L32: -500 | M32: 250 | N32: 21 | O32: 0.004 | P32: 0.008 | Q32: 22 | R32: =Output_series!X36+0.002 -> 0.009999990015 | S32: 0.9 | T32: 0.9 | U32: 1
A33: 20 | B33: -3.6 | C33: 0.00246 | D33: 21 | E33: 15 | F33: 0.00246 | G33: =Output_series!I37 -> 3.909617033 | H33: =Output_series!J37 -> 3.348081816 | I33: =Output_series!P37 -> 9.255922744 | J33: 1 | K33: 500 | L33: -500 | M33: 250 | N33: 21 | O33: 0.004 | P33: 0.008 | Q33: 22 | R33: =Output_series!X37+0.002 -> 0.009999989594 | S33: 0.9 | T33: 0.9 | U33: 1
A34: 21 | B34: -3.7 | C34: 0.00244 | D34: 21 | E34: 15 | F34: 0.00244 | G34: =Output_series!I38 -> 3.909418828 | H34: =Output_series!J38 -> 3.341916434 | I34: =Output_series!P38 -> 9.257681701 | J34: 1 | K34: 500 | L34: -500 | M34: 250 | N34: 21 | O34: 0.004 | P34: 0.008 | Q34: 22 | R34: =Output_series!X38+0.002 -> 0.009999990436 | S34: 0.9 | T34: 0.9 | U34: 1
A35: 22 | B35: -3.8 | C35: 0.00242 | D35: 21 | E35: 15 | F35: 0.00242 | G35: =Output_series!I39 -> 3.909220646 | H35: =Output_series!J39 -> 3.335751075 | I35: =Output_series!P39 -> 9.259440575 | J35: 1 | K35: 500 | L35: -500 | M35: 250 | N35: 21 | O35: 0.004 | P35: 0.008 | Q35: 22 | R35: =Output_series!X39+0.002 -> 0.009999991278 | S35: 0.9 | T35: 0.9 | U35: 1
A36: 23 | B36: -4.4 | C36: 0.00236 | D36: 21 | E36: 15 | F36: 0.00236 | G36: =Output_series!I40 -> 3.909056461 | H36: =Output_series!J40 -> 3.313383109 | I36: =Output_series!P40 -> 9.266276942 | J36: 1 | K36: 500 | L36: -500 | M36: 250 | N36: 21 | O36: 0.004 | P36: 0.008 | Q36: 22 | R36: =Output_series!X40+0.002 -> 0.009999993802 | S36: 0.9 | T36: 0.9 | U36: 1
A37: 24 | B37: -4.9 | C37: 0.00233 | D37: 21 | E37: 15 | F37: 0.00233 | G37: =Output_series!I41 -> 3.909261261 | H37: =Output_series!J41 -> 3.299617854 | I37: =Output_series!P41 -> 9.270735006 | J37: 1 | K37: 500 | L37: -500 | M37: 250 | N37: 21 | O37: 0.004 | P37: 0.008 | Q37: 22 | R37: =Output_series!X41+0.002 -> 0.009999995065 | S37: 0.9 | T37: 0.9 | U37: 1
A38: 25 | B38: 20.8 | C38: 0.01265 | D38: 26 | E38: 28 | F38: 0.01265 | G38: =Output_series!I42 -> 1.715767521 | H38: =Output_series!J42 -> 3.203949663 | I38: =Output_series!P42 -> 14.37474854 | J38: 1 | K38: 500 | L38: -500 | M38: 250 | N38: 25 | O38: 0.007 | P38: 0.011 | Q38: 26 | R38: =Output_series!X42+0.002 -> 0.013 | S38: 0.9 | T38: 0.9 | U38: 1
A39: 26 | B39: 20.8 | C39: 0.01245 | D39: 26 | E39: 28 | F39: 0.01245 | G39: =Output_series!I43 -> 1.706937071 | H39: =Output_series!J43 -> 3.042087071 | I39: =Output_series!P43 -> 14.40677267 | J39: 1 | K39: 500 | L39: -500 | M39: 250 | N39: 25 | O39: 0.007 | P39: 0.011 | Q39: 26 | R39: =Output_series!X43+0.002 -> 0.013 | S39: 0.9 | T39: 0.9 | U39: 1
A40: 27 | B40: 20 | C40: 0.01232 | D40: 26 | E40: 28 | F40: 0.01232 | G40: =Output_series!I44 -> 1.806068152 | H40: =Output_series!J44 -> 2.985793046 | I40: =Output_series!P44 -> 14.40785231 | J40: 1 | K40: 500 | L40: -500 | M40: 250 | N40: 25 | O40: 0.007 | P40: 0.011 | Q40: 26 | R40: =Output_series!X44+0.002 -> 0.013 | S40: 0.9 | T40: 0.9 | U40: 1
A41: 28 | B41: 19.6 | C41: 0.01233 | D41: 26 | E41: 28 | F41: 0.01233 | G41: =Output_series!I45 -> 1.856142701 | H41: =Output_series!J45 -> 3.043519202 | I41: =Output_series!P45 -> 14.38625405 | J41: 1 | K41: 500 | L41: -500 | M41: 250 | N41: 25 | O41: 0.007 | P41: 0.011 | Q41: 26 | R41: =Output_series!X45+0.002 -> 0.013 | S41: 0.9 | T41: 0.9 | U41: 1
A42: 29 | B42: 19.4 | C42: 0.01222 | D42: 26 | E42: 28 | F42: 0.01222 | G42: =Output_series!I46 -> 1.87611382 | H42: =Output_series!J46 -> 2.979322643 | I42: =Output_series!P46 -> 14.39382763 | J42: 1 | K42: 500 | L42: -500 | M42: 250 | N42: 25 | O42: 0.007 | P42: 0.011 | Q42: 26 | R42: =Output_series!X46+0.002 -> 0.013 | S42: 0.9 | T42: 0.9 | U42: 1
A43: 30 | B43: 20.5 | C43: 0.01245 | D43: 26 | E43: 28 | F43: 0.01245 | G43: =Output_series!I47 -> 1.749757873 | H43: =Output_series!J47 -> 3.02895366 | I43: =Output_series!P47 -> 14.41206479 | J43: 1 | K43: 500 | L43: -500 | M43: 250 | N43: 25 | O43: 0.007 | P43: 0.011 | Q43: 26 | R43: =Output_series!X47+0.002 -> 0.013 | S43: 0.9 | T43: 0.9 | U43: 1
A44: 31 | B44: 22.7 | C44: 0.01258 | D44: 26 | E44: 28 | F44: 0.01258 | G44: =Output_series!I48 -> 1.445664992 | H44: =Output_series!J48 -> 3.902490032 | I44: =Output_series!P48 -> 14.14846297 | J44: 1 | K44: 1000 | L44: -1000 | M44: 500 | N44: 25 | O44: 0.007 | P44: 0.011 | Q44: 26 | R44: =Output_series!X48+0.002 -> 0.013 | S44: 0.9 | T44: 0.9 | U44: 1
A45: 32 | B45: 24.4 | C45: 0.01291 | D45: 26 | E45: 28 | F45: 0.01291 | G45: =Output_series!I49 -> 2.250378308 | H45: =Output_series!J49 -> 9.464390342 | I45: =Output_series!P49 -> 13.88303833 | J45: 1 | K45: 2000 | L45: -2000 | M45: 1000 | N45: 25 | O45: 0.007 | P45: 0.011 | Q45: 26 | R45: =Output_series!X49+0.002 -> 0.013 | S45: 0.9 | T45: 0.9 | U45: 1
A46: 33 | B46: 26.3 | C46: 0.01339 | D46: 26 | E46: 28 | F46: 0.01339 | G46: =Output_series!I50 -> 2.857819605 | H46: =Output_series!J50 -> 17.09390238 | I46: =Output_series!P50 -> 13.58069427 | J46: 1 | K46: 3000 | L46: -3000 | M46: 1500 | N46: 25 | O46: 0.007 | P46: 0.011 | Q46: 26 | R46: =Output_series!X50+0.002 -> 0.01299999998 | S46: 0.9 | T46: 0.9 | U46: 1
A47: 34 | B47: 28.3 | C47: 0.01311 | D47: 26 | E47: 28 | F47: 0.01311 | G47: =Output_series!I51 -> 3.548798209 | H47: =Output_series!J51 -> 22.71268907 | I47: =Output_series!P51 -> 13.56243762 | J47: 1 | K47: 4000 | L47: -4000 | M47: 2000 | N47: 25 | O47: 0.007 | P47: 0.011 | Q47: 26 | R47: =Output_series!X51+0.002 -> 0.01299999998 | S47: 0.9 | T47: 0.9 | U47: 1
A48: 35 | B48: 30.1 | C48: 0.01304 | D48: 26 | E48: 28 | F48: 0.01304 | G48: =Output_series!I52 -> 3.512517207 | H48: =Output_series!J52 -> 22.8412748 | I48: =Output_series!P52 -> 13.54355638 | J48: 1 | K48: 4000 | L48: -4000 | M48: 2000 | N48: 25 | O48: 0.007 | P48: 0.011 | Q48: 26 | R48: =Output_series!X52+0.002 -> 0.01299999998 | S48: 0.9 | T48: 0.9 | U48: 1
A49: 36 | B49: 31.6 | C49: 0.01337 | D49: 26 | E49: 28 | F49: 0.01337 | G49: =Output_series!I53 -> 1.953154382 | H49: =Output_series!J53 -> 11.62939448 | I49: =Output_series!P53 -> 13.53380756 | J49: 1 | K49: 2000 | L49: -2000 | M49: 1000 | N49: 25 | O49: 0.007 | P49: 0.011 | Q49: 26 | R49: =Output_series!X53+0.002 -> 0.01299999998 | S49: 0.9 | T49: 0.9 | U49: 1
A50: 37 | B50: 32.7 | C50: 0.01342 | D50: 26 | E50: 28 | F50: 0.01342 | G50: =Output_series!I54 -> 2.788761687 | H50: =Output_series!J54 -> 17.77908412 | I50: =Output_series!P54 -> 13.49534524 | J50: 1 | K50: 3000 | L50: -3000 | M50: 1500 | N50: 25 | O50: 0.007 | P50: 0.011 | Q50: 26 | R50: =Output_series!X54+0.002 -> 0.01299999998 | S50: 0.9 | T50: 0.9 | U50: 1
A51: 38 | B51: 33.2 | C51: 0.01229 | D51: 26 | E51: 28 | F51: 0.01229 | G51: =Output_series!I55 -> 3.384846485 | H51: =Output_series!J55 -> 21.87096259 | I51: =Output_series!P55 -> 13.56762878 | J51: 1 | K51: 4000 | L51: -4000 | M51: 2000 | N51: 25 | O51: 0.007 | P51: 0.011 | Q51: 26 | R51: =Output_series!X55+0.002 -> 0.01299999998 | S51: 0.9 | T51: 0.9 | U51: 1
A52: 39 | B52: 33.8 | C52: 0.01145 | D52: 26 | E52: 28 | F52: 0.01145 | G52: =Output_series!I56 -> 3.288468815 | H52: =Output_series!J56 -> 20.36787183 | I52: =Output_series!P56 -> 13.63450384 | J52: 1 | K52: 4000 | L52: -4000 | M52: 2000 | N52: 25 | O52: 0.007 | P52: 0.011 | Q52: 26 | R52: =Output_series!X56+0.002 -> 0.01299999999 | S52: 0.9 | T52: 0.9 | U52: 1
A53: 40 | B53: 33.7 | C53: 0.01164 | D53: 26 | E53: 28 | F53: 0.01164 | G53: =Output_series!I57 -> 1.849295519 | H53: =Output_series!J57 -> 10.12046586 | I53: =Output_series!P57 -> 13.66443858 | J53: 1 | K53: 2000 | L53: -2000 | M53: 1000 | N53: 25 | O53: 0.007 | P53: 0.011 | Q53: 26 | R53: =Output_series!X57+0.002 -> 0.01299999999 | S53: 0.9 | T53: 0.9 | U53: 1
A54: 41 | B54: 32.5 | C54: 0.01204 | D54: 26 | E54: 28 | F54: 0.01204 | G54: =Output_series!I58 -> 0.9746372262 | H54: =Output_series!J58 -> 5.160178372 | I54: =Output_series!P58 -> 13.66307613 | J54: 1 | K54: 1000 | L54: -1000 | M54: 500 | N54: 25 | O54: 0.007 | P54: 0.011 | Q54: 26 | R54: =Output_series!X58+0.002 -> 0.01299999999 | S54: 0.9 | T54: 0.9 | U54: 1
A55: 42 | B55: 30.7 | C55: 0.01327 | D55: 26 | E55: 28 | F55: 0.01327 | G55: =Output_series!I59 -> 0.9772857913 | H55: =Output_series!J59 -> 5.383808397 | I55: =Output_series!P59 -> 13.59844425 | J55: 1 | K55: 500 | L55: -500 | M55: 250 | N55: 25 | O55: 0.007 | P55: 0.011 | Q55: 26 | R55: =Output_series!X59+0.002 -> 0.01299999998 | S55: 0.9 | T55: 0.9 | U55: 1
A56: 43 | B56: 29.4 | C56: 0.01251 | D56: 26 | E56: 28 | F56: 0.01251 | G56: =Output_series!I60 -> 0.9691570413 | H56: =Output_series!J60 -> 5.184716093 | I56: =Output_series!P60 -> 13.64144566 | J56: 1 | K56: 500 | L56: -500 | M56: 250 | N56: 25 | O56: 0.007 | P56: 0.011 | Q56: 26 | R56: =Output_series!X60+0.002 -> 0.01299999998 | S56: 0.9 | T56: 0.9 | U56: 1
A57: 44 | B57: 27 | C57: 0.01249 | D57: 26 | E57: 28 | F57: 0.01249 | G57: =Output_series!I61 -> 0.9723361126 | H57: =Output_series!J61 -> 5.148942401 | I57: =Output_series!P61 -> 13.65488034 | J57: 1 | K57: 500 | L57: -500 | M57: 250 | N57: 25 | O57: 0.007 | P57: 0.011 | Q57: 26 | R57: =Output_series!X61+0.002 -> 0.01299999998 | S57: 0.9 | T57: 0.9 | U57: 1
A58: 45 | B58: 25 | C58: 0.01189 | D58: 26 | E58: 28 | F58: 0.01189 | G58: =Output_series!I62 -> 0.9584618397 | H58: =Output_series!J62 -> 3.891837029 | I58: =Output_series!P62 -> 13.97116144 | J58: 1 | K58: 500 | L58: -500 | M58: 250 | N58: 25 | O58: 0.007 | P58: 0.011 | Q58: 26 | R58: =Output_series!X62+0.002 -> 0.013 | S58: 0.9 | T58: 0.9 | U58: 1
A59: 46 | B59: 23.6 | C59: 0.01178 | D59: 26 | E59: 28 | F59: 0.01178 | G59: =Output_series!I63 -> 1.194909058 | H59: =Output_series!J63 -> 3.368544838 | I59: =Output_series!P63 -> 14.16367191 | J59: 1 | K59: 500 | L59: -500 | M59: 250 | N59: 25 | O59: 0.007 | P59: 0.011 | Q59: 26 | R59: =Output_series!X63+0.002 -> 0.013 | S59: 0.9 | T59: 0.9 | U59: 1
A60: 47 | B60: 22.6 | C60: 0.01157 | D60: 26 | E60: 28 | F60: 0.01157 | G60: =Output_series!I64 -> 1.358042946 | H60: =Output_series!J64 -> 2.888443741 | I60: =Output_series!P64 -> 14.32205742 | J60: 1 | K60: 500 | L60: -500 | M60: 250 | N60: 25 | O60: 0.007 | P60: 0.011 | Q60: 26 | R60: =Output_series!X64+0.002 -> 0.013 | S60: 0.9 | T60: 0.9 | U60: 1
A61: 48 | B61: 21.8 | C61: 0.0115 | D61: 26 | E61: 28 | F61: 0.0115 | G61: =Output_series!I65 -> 1.492849611 | H61: =Output_series!J65 -> 2.583648167 | I61: =Output_series!P65 -> 14.43317324 | J61: 1 | K61: 500 | L61: -500 | M61: 250 | N61: 25 | O61: 0.007 | P61: 0.011 | Q61: 26 | R61: =Output_series!X65+0.002 -> 0.013 | S61: 0.9 | T61: 0.9 | U61: 1

Sheet Method_input
A1: THIS IS A MANDATORY SHEET All input data for the method shall be listed here. In the simplest version, values for data input in column D (both green and blue background) may be inserted manually. Varying data (green background) can be fed from the "input_series" sheet. In this sample data sheet, product data (blue background) is linked to a sample catalogue built in the "Detailed_input" sheet
A4: Name | B4: Symbol | C4: Software name | D4: Unit | E4: Value | F4: Range | G4: Origin | H4: Varying | I4: Notes
A5: Operating conditions data
A6: calculation interval | B6: tci | C6: t_ci | D6: h | E6: 1 | F6: 0…8760 | G6: M1-9 | H6: No
A7: external temperature of the calculation interval | B7: Je | C7: theta_e | D7: °C | E7: 21.8 | F7: -50…+50 | G7: M1-13 | H7: Yes
A8: external air moisture content of the calculation interval | B8: xe | C8: x_e | D8: kg/kg dry air | E8: 0.0115 | F8: 0...∞ | G8: M1-13 | H8: Yes
A9: Temperature of the thermal zone where the duct or ahu losses go to | B9: JIDA;zt | C9: theta_IDA_zt | D9: °C | E9: 26 | F9: -50…+50 | G9: M2-2 | H9: Yes
A10: Temperature of the unconditioned duct surrounding | B10: Jsur;nc | C10: theta_sur_nc | D10: °C | E10: 28 | F10: -50…+50 | G10: M2-2 | H10: Yes
A11: Moisture content of the unconditioned duct surrounding | B11: xsur;nc | C11: x_sur_nc | D11: kg/kg dry air | E11: 0.0115 | F11: 0...∞ | G11: M2-2 | H11: Yes
A12: AHU heating coil input | B12: QH;ahu;in | C12: Q_H_ahu_in | D12: kWh | E12: 1.492849611 | F12: 0...∞ | G12: M3-1 | H12: Yes
A13: AHU cooling coil output | B13: QC;ahu;out; | C13: Q_C_ahu_out | D13: kWh | E13: 2.583648167 | F13: 0...∞ | G13: M4-1 | H13: Yes
A14: AHU cooling coil inlet temperature | B14: JC;ahu;in | C14: theta_C_ahu_in | D14: °C | E14: 14.43317324 | F14: 0…25 | G14: M4-1 | H14: Yes
A15: Operation requirement signal | B15: fop;V | C15: f_op_V | D15: - | E15: 1 | F15: 0…1 | G15: M5-5 | H15: Yes
A16: Required supply air volume flow rate per ventilation zone i | B16: qV;SUP;dis;zv;req;i | C16: q_V_SUP_dis_zv_req_i | D16: m3/h | E16: 500 | G16: M5-5 | H16: Yes | I16: In case of demand controlled operation, including operation for mechanical ventilative cooling purpose.
A17: Required return air volume flow rate per ventilation zone i | B17: qV;ETA;dis;zv;req;i | C17: q_V_ETA_dis_zv_req_i | D17: m3/h | E17: -500 | G17: M5-5 | H17: Yes
A18: Required supply outdoor air volume flow rate per ventilation zone i | B18: qV;ODA;zv;req;i | C18: q_V_ODA_zv_req_i | D18: m3/h | E18: 250 | G18: M5-5 | H18: Yes
A19: Required ventilation zone supply air temperature | B19: JSUP;req;zv | C19: theta_SUP_req_zV | D19: °C | E19: 25 | F19: 0...∞ | G19: M5-5 | H19: Yes
A20: Required ventilation zone supply air moisture content | B20: xSUP;zt;min;req | C20: x_SUP_zV:min_req | D20: kg/kg dry air | E20: 0.007 | F20: 0...∞ | G20: M6-2 | H20: Yes
A21: Required ventilation zone supply air moisture content | B21: xSUP;zt;max;req | C21: x_SUP_zV_max_req | D21: kg/kg dry air | E21: 0.011 | F21: 0...∞ | G21: M7-2 | H21: Yes
A22: Ventilation zone return air temperature | B22: JETA;zv | C22: theta_a_ETA_zV | D22: °C | E22: 26 | F22: 0…+50 | G22: M5-5 | H22: Yes
A23: Thermal zone return air moisture content | B23: xETA;zv | C23: x_a_ETA_zV | D23: kg/kg dry air | E23: 0.013 | F23: 0…100 | G23: M6-2, M7-2 | H23: Yes
A24: Average partial load factor (averaged over all zones) | B24: fpl | C24: f_pl | D24: – | E24: 0.9 | G24: Local | H24: Yes | I24: Per zone (according to ventilation related zoning)
A25: Partial load diversity (over all zones) | B25: DfV | C25: delta_f_V | D25: – | E25: 0.9 | G25: Local | H25: Yes | I25: Per zone (according to ventilation related zoning)
A26: Operation factor of the control devices | B26: fop;ctrl | C26: f_op_ctrl | D26: - | E26: 1 | G26: Local | H26: Yes | I26: In case of humidification or dehumidification need; local in case of a system based control scheme (return air humidity control); instead, an operation signal may be needed.
A29: Product data
A30: Product description data
A31: Heat recovery type | B31: HEAT_REC_TYPE | E31: =IF(System_configuration!B71=1,System_configuration!C71,IF(System_configuration!B71=2,System_configuration!C72,IF(System_configuration!B71=3,System_configuration!C73,IF(System_configuration!B71=4,System_configuration!C74,IF(System_configuration!B71=5,System_configuration!C75,System_configuration!C76))))) -> ROT_NH | F31: List | G31: Local | H31: NO | I31: Single zone, multi zone
E32: =IF(System_configuration!B78=1,System_configuration!C78,System_configuration!C79) -> - | I32: only for FLAT_PLATE and ROT_HYG
A33: Frost protection type | B33: DEFR_TYPE | E33: =IF(System_configuration!B58=1,System_configuration!C58,IF(System_configuration!B58=2,System_configuration!C59,System_configuration!C60)) -> PREH | F33: List | G33: Local | H33: NO | I33: L_hts: Heated space; L_uts: Unheated space
A34: Humidifier type | B34: HUM_TYPE | E34: =IF(System_configuration!B93=1,System_configuration!C93,IF(System_configuration!B93=2,System_configuration!C94,IF(System_configuration!B93=3,System_configuration!C95,IF(System_configuration!B93=4,System_configuration!C96,System_configuration!C97)))) -> CONTACT | F34: List | G34: Local | H34: NO | I34: IN_AIR, OUT_AIR
A35: Energy carrier for steam humidifier | B35: GEN_CRHU;gen | E35: =IF(E34="STEAM",IF(System_configuration!B99=1,System_configuration!C99,IF(System_configuration!B99=2,System_configuration!C100,IF(System_configuration!B99=3,System_configuration!C101,System_configuration!C102))),"-") -> -
A37: Product technical data
A38: Duct leakage factor | B38: flea;du;SUP | D38: - | E38: 1.02
A39: Duct leakage factor | B39: flea;du;ETA | D39: - | E39: 1.02
A40: Duct leakage factor | B40: flea;du;zv | D40: - | E40: 1.02
A41: Duct leakage factor | B41: flea;du;nc | D41: - | E41: 1.02
A42: Air handling unit leakage factor | B42: flea;ahu;SUP | D42: - | E42: 1.04
A43: Air handling unit leakage factor | B43: flea;ahu;ETA | D43: - | E43: 1.04
A44: Nominal supply air volume flow rate of the air handling unit | B44: qV;SUP;ahu;nom | D44: m3/h | E44: 5000
A45: Supply air volume flow rate of the air handling unit at stage 1..n | B45: qV;SUP;ahu;st1..stn | D45: m3/h | E45: 3000
A46: Nominal extract air volume flow rate of the air handling unit | B46: qV;ETA;ahu;nom | D46: m3/h | E46: 5000
A47: Extract air volume flow rate of the air handling unit at stage 1..n | B47: qV;ETA;ahu;st1..stn | D47: m3/h | E47: 3000
A48: Number of stages | B48: nst | D48: - | E48: 1
A49: Minimum volume flow rate ratio | B49: nq;min | D49: - | E49: 0.2
A50: Recovered ratio of the fan power | B50: ffan;rd | D50: - | E50: =IF(System_configuration!B108=1,System_configuration!M94,System_configuration!M95) -> 0.6
A51: Nominal heat recovery temperature efficiency at design air velocity | B51: hhr;nom | D51: - | E51: =IF(System_configuration!B71=1,System_configuration!N69,IF(System_configuration!B71=2,System_configuration!P69,IF(System_configuration!B71=3,System_configuration!Q69,IF(System_configuration!B71=4,System_configuration!R69,System_configuration!S69)))) -> 0.69
A52: Maximum (design) supply air flow rate of the system | B52: qV;SUP;hr;nom | D52: m3/h | E52: 5000
A53: Nominal air velocity for the heat recovery | B53: vhr;nom | D53: m/s | E53: =IF(System_configuration!B71=1,System_configuration!N70,IF(System_configuration!B71=2,System_configuration!N70,IF(System_configuration!B71=3,System_configuration!N70,IF(System_configuration!B71=4,System_configuration!N70,System_configuration!N70)))) -> 3.5
A54: Constant for the velocity dependence of the heat recovery efficiency | B54: C1 | D54: s/m | E54: =IF(System_configuration!B71=1,System_configuration!N71,IF(System_configuration!B71=2,System_configuration!P71,IF(System_configuration!B71=3,System_configuration!Q71,IF(System_configuration!B71=4,System_configuration!R71,System_configuration!S71)))) -> -0.0643
A55: Constant for the velocity dependence of the heat recovery efficiency | B55: C2 | D55: - | E55: =IF(System_configuration!B71=1,System_configuration!N72,IF(System_configuration!B71=2,System_configuration!P72,IF(System_configuration!B71=3,System_configuration!Q72,IF(System_configuration!B71=4,System_configuration!R72,System_configuration!S72)))) -> 1
A56: Correction factor for the rotation number for rotary heat exchangers | B56: fn | D56: - | E56: =Product_tech_data!D24 -> 2.220446049e-16 | I56: See sheet Product_tech_data
A57: Nominal humidity recovery efficiency at design air velocity | B57: hxr;nom | D57: - | E57: =IF(System_configuration!B71=1,0,IF(System_configuration!B71=2,System_configuration!M62,IF(System_configuration!B71=3,System_configuration!N62,IF(System_configuration!B71=4,System_configuration!O62,0)))) -> 0.3
A58: Nominal humidity recovery efficiency at design air velocity | B58: DxODA;nom | D58: kg / kg dry air | E58: =Product_tech_data!K18 -> 0.005
A59: Factor for moisture difference dependence of the humidity recovery efficiency for rotary heat recoveries | B59: fΔx;x | D59: - | E59: =IF(OR(System_configuration!B71=2,System_configuration!B71=4),Product_tech_data!D28,Product_tech_data!D29) -> 0 | I59: See sheet Product_tech_data
A60: Correction factor for the mass flow relation dependence of the humidity recovery efficiency for rotary heat recoveries | B60: fq;x | D60: - | E60: =Product_tech_data!D33 -> 0.9 | I60: See sheet Product_tech_data
A61: Correction factor for the air velocity dependence of the humidity recovery efficiency for rotary heat recoveries | B61: fv;x | D61: - | E61: =Product_tech_data!D34 -> 1.7 | I61: See sheet Product_tech_data
A62: Correction factor for the rotation speed dependence of the humidity recovery efficiency for rotary heat recoveries | B62: fn;x | D62: - | E62: =Product_tech_data!D35 -> 0 | I62: See sheet Product_tech_data
A63: Correction factor for other heat recovery types | B63: fxr;other | D63: - | E63: 0.4 | I63: proxy value
A64: Heat recovery efficiency reduced due to defrost operation at Je = -15°C, accor­ding to EN 13053:2006 | B64: eD;-15 | D64: - | E64: 0.4
A65: Heat recovery efficiency reduced due to defrost operation at Je = -7°C, according to EN 13053:2006 | B65: eD;-7 | D65: - | E65: 0.7
A66: Constant for the cooling coil moisture content | B66: CC;1 | D66: - | E66: 11.9083
A67: Constant for the cooling coil moisture content | B67: CC;2 | D67: - | E67: 4110.34
A68: Constant for the cooling coil moisture content | B68: CC;3 | D68: - | E68: 235
A69: cooling coil bypass factor | B69: fC;bp | D69: - | E69: 0.1
A70: cooling coil temperature efficiency. | B70: hcoil;C | D70: - | E70: 0.8
A71: heating coil temperature efficiency. | B71: hcoil;H | D71: - | E71: 0.8
A72: Nominal efficiency of the supply fan, taken from manu­facturer's data, provided according to EN ISO 5801 | B72: ηfan;SUP;nom | D72: – | E72: 0.72
A73: Nominal pressure difference over the supply fan, taken from manufacturer's data according to EN ISO 5801 | B73: Δpfan;SUP;nom | D73: Pa | E73: 600
A74: Nominal efficiency of the extract fan, taken from manu­facturer's data, provided according to EN ISO 5801 | B74: ηfan;ETA;nom | D74: – | E74: 0.78
A75: Nominal pressure difference over the supply fan, taken from manufacturer's data according to EN ISO 5801 | B75: Δpfan;ETA;nom | D75: Pa | E75: 600
A76: Function for the dependence of the efficiency of the supply / extract fan on the volume flow rate, derived from manufacturer's data, provided according to EN ISO 5801 | B76: fh(qV) | D76: - | E76: =Product_tech_data!D49 -> 0.46184846 | I76: See sheet Product_tech_data
A77: Function for the dependence of the efficiency of the supply / extract fan on the volume flow rate, derived from manufacturer's data, provided according to EN ISO 5801 | B77: fh(qV) | D77: - | E77: =Product_tech_data!D50 -> 0.46184846 | I77: See sheet Product_tech_data
A78: Function for the dependence of the pressure difference over the supply / extract fan on the volume flow rate, derived from manufacturer's data, provided according to EN ISO 5801 | B78: fΔp(qV) | D78: - | E78: =Product_tech_data!D51 -> 1.318167135 | I78: See sheet Product_tech_data
A79: Function for the dependence of the pressure difference over the supply / extract fan on the volume flow rate, derived from manufacturer's data, provided according to EN ISO 5801 | B79: fΔp(qV) | D79: - | E79: =Product_tech_data!D52 -> 1.318167135 | I79: See sheet Product_tech_data
A80: Supply air handling unit surface area | B80: Aahu;SUP | D80: m2 | E80: 35
A81: Supply air handling unit heat loss coefficient | B81: Uahu;SUP | D81: kW/m2 K | E81: 0.0005
A82: Extract air handling unit surface area | B82: Aahu;ETA | D82: m2 | E82: 35
A83: Extract air handling unit heat loss coefficient | B83: Uahu;ETA | D83: kW/m2 K | E83: 0.0005
A84: Maximum heat transfer power of the heat recovery device | B84: Φhr;max | D84: kW | E84: =IF(System_configuration!B71=1,System_configuration!N73,IF(System_configuration!B71=2,System_configuration!P73,IF(System_configuration!B71=3,System_configuration!Q73,IF(System_configuration!B71=4,System_configuration!R73,System_configuration!S73)))) -> 0.5
A85: Maximum rotation speed of the rotary heat recovery device | B85: nrot;max | D85: min-1 | E85: 17.5
A86: Rotor drive power at max. rotation speed | B86: Phr;rot;max | D86: kW | E86: =IF(System_configuration!B71=1,System_configuration!N75,IF(System_configuration!B71=2,System_configuration!P75,IF(System_configuration!B71=3,System_configuration!Q75,IF(System_configuration!B71=4,System_configuration!R75,System_configuration!S75)))) -> 0.05
A87: Relative pump power consumption per transported volume at maximum speed | B87: pel;hr;pu;max | D87: kWh/m3 | E87: =IF(System_configuration!B71=1,System_configuration!N76,IF(System_configuration!B71=2,System_configuration!P76,IF(System_configuration!B71=3,System_configuration!Q76,IF(System_configuration!B71=4,System_configuration!R76,System_configuration!S76)))) -> 1e-05
A88: Minimum part load factor of the heat recovery | B88: fpl;hr;min | D88: - | E88: =IF(System_configuration!B71=1,System_configuration!N77,IF(System_configuration!B71=2,System_configuration!P77,IF(System_configuration!B71=3,System_configuration!Q77,IF(System_configuration!B71=4,System_configuration!R77,System_configuration!S77)))) -> 1e-05
A89: Efficiency of the adiabatic cooling humidifier | B89: hhu;ac | D89: - | E89: 0.9
A90: Electric power consumption of the control devices (sensors, actuators, controllers) | B90: SPel;V;ctrl | D90: kW | E90: 0.1
A91: Design air volume flow rate of the humidified system | B91: qV;SUP;HU;des | D91: m3/h | E91: 5000
A92: Specific power consumption of the humidification pump per volume flow rate | B92: pel;HU;des | D92: kWh/m3 | E92: 0.0002
A93: Design water evaporation mass flow rate of the humidifier | B93: qm;w;HU,des | D93: kg/h | E93: 13.5
A95: System design data
A96: Process design
A97: Supply fan localisation | B97: SUP_FAN_LOC | E97: =IF(System_configuration!B119=1,System_configuration!C119,System_configuration!C120) -> DOWN_HR | F97: List | G97: Local | H97: NO | I97: IN_AIR, OUT_AIR
A98: Extract fan localisation | B98: ETA_FAN_LOC | E98: =IF(System_configuration!B68=1,System_configuration!C68,System_configuration!C69) -> UP_HR | F98: List | G98: Local | H98: NO | I98: IN_AIR, OUT_AIR
A99: Fan motor localisation | B99: FAN_MOT_LOC | E99: =IF(System_configuration!B108=1,System_configuration!C108,System_configuration!C109) -> OUTS_AIR | F99: List | G99: Local | H99: NO | I99: IN_AIR, OUT_AIR
A100: System type for variable air volume flow rate fan energy calculation | B100: SYS_TYPE | E100: =IF(System_configuration!B111=1,System_configuration!C111,System_configuration!C112) -> SINGLE_ZONE | F100: List | G100: Local | H100: NO | I100: L_hts: Heated space; L_uts: Unheated space
A101: Air handling unit localisation | B101: AHU_LOC | E101: =IF(System_configuration!B41=1,System_configuration!C41,System_configuration!C42) -> NC | F101: List | G101: Local | H101: NO | I101: L_hts: Heated space; L_uts: Unheated space
A102: Heat transfer coefficient from the supply duct to the non-conditioned surrounding | B102: Hdu;SUP;nc | D102: kW/K | E102: 0.01 | H102: NO
A103: Heat transfer coefficient of the supply air duct to a specific conditioned thermal zone. | B103: Hdu;SUP;zt;i | D103: kW/K | E103: 0.01 | H103: NO
A104: Heat transfer coefficient from the extract duct to the non-conditioned surrounding | B104: Hdu;ETA;nc | D104: kW/K | E104: 0.01 | H104: NO
A105: Maximum design required supply air volume flow rate for ventilation zone i | B105: qV;SUP;dis;zv;max;des;i | D105: m3/h | E105: 5000 | G105: M5-5 | H105: NO
A106: Design supply outdoor air volume flow rate for ventilation zone i | B106: qV;ODA;zv;req;des;i | D106: m3/h | E106: 5000 | G106: M5-5 | H106: NO
A107: Number of ventilation zones | B107: nzv | D107: - | E107: 1 | H107: NO
A108: Supply temperature setpoint (for constant supply temperature control) | B108: JSUP;set | D108: °C | E108: 18 | H108: NO
A109: Maximum supply air temperature setpoint for ODA_COMP control option | B109: JSUP;set;max | D109: °C | E109: 23 | F109: 0...∞ | H109: NO
A110: Maximum supply air temperature setpoint for ODA_COMP control option | B110: JSUP;set;min | D110: °C | E110: 19 | F110: 0...∞ | H110: NO
A111: Slope factor for ODA_COMP control option | B111: fe | D111: - | E111: -0.4 | F111: 0...∞ | H111: NO
A112: Temperature offset for ODA_COMP control option | B112: DJoff | D112: K | E112: 29 | H112: NO
A113: Design air velocity in the heat recovery unit | B113: vhr;des | D113: m/s | E113: 3.5 | H113: NO
A114: Outdoor air temperature limit 1 for defrost operation calculation | B114: Je;lim1 | D114: °C | E114: =System_configuration!M103 -> -10 | H114: NO
A115: Outdoor air temperature limit 2 for defrost operation calculation | B115: Je;lim2 | D115: °C | E115: =System_configuration!M104 -> -5 | H115: NO
A116: Limit for the exhaust air temperature after the heat recovery | B116: JEHA;hr;lim | D116: °C | E116: -5 | H116: NO
A117: Supply fan design pressure difference | B117: DpSUP;des | D117: Pa | E117: 600 | H117: NO
A118: Extract fan design pressure difference | B118: DpETA;des | D118: Pa | E118: 600 | H118: NO
A119: Pressure drop of the heat recovery device in the supply and extract air stream at design conditions | B119: DpSUP+ETA;des;hr | D119: Pa | E119: 500 | H119: NO
A120: Controlled portion of the design supply pressure difference | B120: fDp;SUP;ctrl | D120: - | E120: 0.8 | H120: NO
A121: Controlled portion of the design extract pressure difference | B121: fDp;ETA;ctrl | D121: - | E121: 0.8 | H121: NO
A123: Control type data
A124: Control of the volume flow rate | B124: AIR_FLOW_CTRL | E124: =IF(System_configuration!B49=1,System_configuration!C49,IF(System_configuration!B49=2,System_configuration!C50,IF(System_configuration!B49=3,System_configuration!C51,System_configuration!C52))) -> VARIABLE | F124: List | G124: Local | H124: NO | I124: Constant, stepped, variable speed…
A125: Control of the supply air temperature | B125: SUP_TEMP_CTRL | E125: =IF(System_configuration!B44=1,System_configuration!C44,IF(System_configuration!B44=2,System_configuration!C45,IF(System_configuration!B44=3,System_configuration!C46,System_configuration!C47))) -> ODA_COMP
A126: Control of the air recirculation | B126: RCA_CTRL | E126: =IF(System_configuration!B89=1,System_configuration!C90,IF(System_configuration!B89=2,System_configuration!C91,System_configuration!C89)) -> ZONE_BASED
A127: Control of the heat recovery device | B127: HEAT_REC_CTRL | E127: =IF(System_configuration!B81=1,System_configuration!C81,IF(System_configuration!B81=2,System_configuration!C82,IF(System_configuration!B81=3,System_configuration!C83,System_configuration!C84))) -> SPEED | F127: List | G127: Local | H127: NO | I127: Depending on type
A128: Control of the frost protection | B128: DEFR_CTRL | E128: =IF(System_configuration!B62=1,System_configuration!C62,System_configuration!C63) -> INDIRECT | F128: List | G128: Local | H128: NO | I128: Preheating, bypass…
A129: Control of the fan | B129: FAN_CTRL | E129: =IF(System_configuration!B114=1,System_configuration!C114,IF(System_configuration!B114=2,#REF!,IF(System_configuration!B114=3,System_configuration!C115,System_configuration!C116))) -> - | F129: List | G129: Local | H129: NO | I129: a, b, c
A130: Control of the humidifier | B130: HUM_CTRL | E130: =IF(System_configuration!B104=1,System_configuration!C104,IF(System_configuration!B104=2,System_configuration!C105,System_configuration!C106)) -> ON_OFF | F130: List | G130: Local | H130: NO | I130: …
A132: Constants
A133: Atmonsperic pressure | B133: patm | D133: Pa | E133: 101325
A134: Air density | B134: ra | D134: kg/m3 | E134: 1.204
A135: Specific heat of the air at constant pressure | B135: ca | D135: kWh/(kg K) | E135: 0.000279
A136: Evaporation heat of the water | B136: rw | D136: kWh/kg | E136: 0.68
A137: Density correction
A138: Height above sea level | B138: h | D138: m | E138: 400
A139: Air density at h above sea level | B139: ρa | D139: kg/m3 | E139: =E134*(1-0.00651*E138/288)^4.255 -> 1.158356364
A141: Assumptions for data from non-inplemented calculations
A142: temperature difference in ground preheating according to annex C (to be added) | B142: DJgnd | D142: K | E142: 0
A143: difference in moisture content in ground preheating according to annex C (to be added) | B143: Dxgnd | D143: kg/kg dry air | E143: 0
A144: Saturation moisture content at axtract air distribution leaving wetbulb temperature, calculated according to equations (51) and (52) with Jwb;ETA;dis;ou | B144: xwb;ETA;dis;out | D144: kg/kg dry air | E144: 0.0155
A145: Extract air distribution leaving wetbulb temperature; this is calculated through psychrometric calculaton methods, e.g. according to [2], which involves iteration | B145: Jwb;ETA;dis;out | D145: °C | E145: 21
A146: temperature difference in ground preheating according to annex C (to be added) | B146: DJODA;du | D146: K | E146: 0
A147: difference in moisture content in ground preheating according to annex C (to be added) | B147: DxODA;du | D147: kg/kg dry air | E147: 0

Sheet Method_calculation
A1: THIS IS A MANDATORY SHEET One time step calculation shall be described here. For each calculation step (= 1 row) data for the formula in column D shall be taken from the "Method_input" sheet or previous calculation steps. Include in the column "Formula ref" its number in the standard text. The example is based on EN 15316-4-1:2008 Copy and paste a copy of the equation into column "Formula" Use the column note for information on the calculation
A3: Description | B3: Symbol | C3: Unit | D3: Value | E3: Formula ref | F3: Formula | G3: Notes
A4: 6.4.2.1.1.1 Detailed calculation
A5: Volume flow rates required to be provided by the air handling unit to the distribution duct system | B5: qV;SUP;dis;in;req | C5: m3/h | D5: =IF(System_configuration!B38=1,Method_input!E38*q_V_SUP_dis_zv_req,"-") -> 510 | E5: Formula (4a)
A6: Volume flow rates required to be provided by the air handling unit to the distribution duct system | B6: qV;ETA;dis;out;req | C6: m3/h | D6: =IF(System_configuration!B38=1,-Method_input!E39*q_V_ETA_dis_zv_req,"-") -> 510 | E6: Formula (5a)
A7: Supply volume flow rate going to a specific ventilation zone i served by the system | B7: qV;SUP;dis;zv;i | C7: m3/h | D7: =IF(D33<>"-",D33,IF(D34<>"-",D34,IF(D35<>"-",D35,D37)))*q_V_SUP_dis_zv_req/IF(D5<>"-",D5,D14) -> 980.3921569 | E7: Formula (6) | G7: Method output
A8: Volume flow rate extracted from a specific ventilation zone i served by the system | B8: qV;ETA;dis;zv;i | C8: m3/h | D8: =-IF(D33<>"-",D33,IF(D34<>"-",D34,IF(D35<>"-",D35,D37)))*q_V_ETA_dis_zv_req/IF(D5<>"-",D5,D14) -> 980.3921569 | E8: Formula (7) | G8: Method output
A9: Supply leakage volume flow rate going to the specific zone i | B9: qV;lea;SUP;dis;zv;i | C9: m3/h | D9: =(Method_input!E40-1)*D7 -> 19.60784314 | E9: Formula (8) | F9: qV;lea;SUP;dis;zv;i = (flea;du;zv -1) × qV;SUP;dis;zv;i | G9: Method output
A10: Extract leakage volume flow rate extracted from the specific ventilation zone i | B10: qV;lea;ETA;dis;zv;i | C10: m3/h | D10: =(Method_input!E40-1)*D8 -> 19.60784314 | E10: Formula (9) | F10: qV;lea;ETA;dis;zv;i = (flea;du;zv -1) × qV;ETA;dis;zv;i | G10: Method output
A11: Leakage volume flow rate going to the non-conditioned space | B11: qV;lea;dis;nc | C11: m3/h | D11: =(Method_input!E41-1)*IF(D33<>"-",D33,IF(D34<>"-",D34,IF(D35<>"-",D35,D37))) -> 20 | E11: Formula (10) | F11: qV;lea;dis;nc, = (flea;du;nc -1) × qV;SUP;dis;in
A12: Maximum volume flow rate factor | B12: fV;max | C12: - | D12: =IF(System_configuration!B38=1,MAX(D7/Method_input!E105),"-") -> 0.1960784314 | E12: Formula (11a)
A13: 6.4.2.1.1.2 Simplified calculation
A14: Volume flow rate required to be provided by the air handling unit to the distribution duct system | B14: qV;SUP;dis;in;req | C14: m3/h | D14: =IF(System_configuration!B38=2,f_pl*Method_input!E44,"-") -> - | E14: Formula (4b) | F14: qV;SUP;dis;in;req = fpl × qV;SUP;ahu;nom
A15: Volume flow rate required to be provided by the air handling unit to the distribution duct system | B15: qV;ETA;dis;out;req | C15: m3/h | D15: =IF(System_configuration!B38=2,f_pl*Method_input!E46,"-") -> - | E15: Formula (5b) | F15: qV;ETA;dis;out;req = fpl × qV;ETA;ahu;nom
A16: Maximum volume flow rate factor | B16: fV;max | C16: - | D16: =IF(System_configuration!B38=2,f_pl+delta_f_V,"-") -> - | E16: Formula (11b) | F16: fV;max = fpl + DfV
A17: 6.4.2.1.2 Air temperature and humidity change in the ductwork
A18: Required supply air temperature modified in the duct | B18: JSUP,dis,in;req | C18: °C | D18: =theta_SUP_req_zV+D20+D21 -> 24.88091077 | E18: Formula (12)
A19: Real supply air temperature are modified in the duct as follows | B19: JSUP,dis,out | C19: °C | D19: =D132-D20-D21 -> 20.39908923 | E19: Formula (13) | G19: Method output
A20: Temperature drop due to the supply duct heat losses to the non-conditioned space | B20: DJSUP;du;nc | C20: °C | D20: =(theta_SUP_req_zV-theta_sur_nc)*(1-EXP(-(Method_input!E102/(Method_input!E139*Method_input!E135*IF(System_configuration!B49=1,D33,IF(System_configuration!B49=2,D34,IF(System_configuration!B49=3,D35,D37))))))) -> -0.09140567008 | E20: Formula (14)
A21: Temperature drop due to the supply duct heat losses to the conditioned space | B21: DJSUP;du;cnd | C21: °C | D21: =(theta_SUP_req_zV-D20-theta_IDA_zt)*(1-EXP(-(Method_input!E103/(Method_input!E139*Method_input!E135*IF(System_configuration!B49=1,D33,IF(System_configuration!B49=2,D34,IF(System_configuration!B49=3,D35,D37))))))) -> -0.02768355785 | E21: Formula (15)
A22: Real supply air humidity content | B22: xSUP,dis,out | C22: kg/kg dry air | D22: =D133 -> 0.011 | E22: Formula (16) | F22: xSUP,dis,out = xSUP,dis,in | G22: Method output
A23: Required supply air humidity content | B23: xSUP,dis,in;min;req | C23: kg/kg dry air | D23: =x_SUP_req_zV -> 0.007 | E23: Formula (17) | F23: xSUP,dis,in;req = xSUP,dis,out;req
A24: Required supply air humidity content | B24: xSUP,dis,in;max;req | C24: kg/kg dry air | D24: =Method_input!E21 -> 0.011 | E24: Formula (17) | F24: xSUP,dis,in;req = xSUP,dis,out;req
A25: Extract air temperature | B25: JETA,dis,out | C25: °C | D25: =theta_a_ETA_zV/Method_input!E38+(Method_input!E38-1)/Method_input!E38*Method_input!E10+D26 -> 25.97827857 | E25: Formula (18)
A26: Temperature difference due to the extract duct heat losses to the non-conditioned space | B26: DJdu;ETA | C26: K | D26: =(theta_a_ETA_zV-Method_input!E10)*(1-EXP(-Method_input!E104/(Method_input!E139*Method_input!E135*IF(System_configuration!B49=1,D38,IF(System_configuration!B49=2,D39,IF(System_configuration!B49=3,D40,D42)))))) -> -0.06093711339 | E26: Formula (19)
A27: Extract air humidity | B27: xETA,dis,out | C27: g/kg dry air | D27: =x_a_ETA_zV+(Method_input!E39-1)*x_sur_nc -> 0.01323 | E27: Formula (20) | F27: xETA,dis,out = xETA,zv + (flea,du - 1)×xsur;nc
A28: 6.4.2.2.1 Distribution heat losses
A29: Heat losses of the ductwork | B29: Qls,V,dis | C29: kWh | D29: =t_ci*Method_input!E139*Method_input!E135*(IF(D33<>"-",D33,IF(D34<>"-",D34,IF(D35<>"-",D35,D37)))*(D20+D21)+IF(D38<>"-",D38,IF(D39<>"-",D39,IF(D40<>"-",D40,D42)))*D26+D9*(D132- theta_IDA_zt)+D11*(D132-Method_input!E10)) -> -0.1443273965 | E29: Formula (21) | G29: QA output
A30: 6.4.2.2.2 Recoverable distribution heat losses
A31: Recoverable heat losses of the ductwork to a specific thermal zone i | B31: Qls,V,dis;rbl;zt;i | D31: =(IF(System_configuration!B49=1,D33,IF(System_configuration!B49=2,D34,IF(System_configuration!B49=3,D35,D37)))*Method_input!E139*Method_input!E135*D21+D9*Method_input!E139*Method_input!E135*(D123-theta_IDA_zt))*t_ci -> -0.173636264 | E31: Formula (22) | F31: QV;ls;dis;rbl;zt;i = [qV;SUP;zt;i ⋅ ρa ⋅ ca ⋅ ΔϑSUP;du;cnd + qV,SUP,lea,du;zt;i ⋅ ρa ⋅ ca ⋅ (ϑSUP,dis,in - ϑIDA;zt;i)] × tci | G31: Method output
A32: 6.4.3.2.1 Air flow rates in the air handling unit
A33: Supply volume air flow rate (no flow rate control, continuous operation) | B33: qV;SUP;dis;in | C33: m3/h | D33: =IF(System_configuration!B49=1,Method_input!E44,"-") -> - | E33: Formula (23a) | F33: qV;SUP;dis;in = qV;SUP;ahu;nom
A34: Supply volume air flow rate (time dependent flow rate control, continuous operation during occupancy time) | B34: qV;SUP;dis;in | C34: m3/h | D34: =IF(System_configuration!B49=2,Method_input!E44*f_op_V,"-") -> - | E34: Formula (23b) | F34: qV;SUP;dis;in = fop;V × qV;SUP;ahu;nom
A35: Supply volume air flow rate (multi stage variable flow rate control) | B35: qV;SUP;dis;in | C35: m3/h | D35: =IF(System_configuration!B49=3,IF(IF(D5<>"-",D5,D14)<(Method_input!E45),Method_input!E15*Method_input!E45,Method_input!E15*Method_input!E44),"-") -> - | E35: Formula (23c) | F35: if qV;SUP;dis;in;req < qV;SUP;ahu;st1: qV;SUP;dis;in = fop;V  qV;SUP;ahu;st1
B36: qV;SUP;dis;in | F36: else if qV;SUP;dis;in;req < qV;SUP;ahu;st2: qV;SUP;dis;in = fop;V  qV;SUP;ahu;st2
A37: Supply volume air flow rate (continuously variable flow rate control) | B37: qV;SUP;dis;in | C37: m3/h | D37: =IF(System_configuration!B49=4,f_op_V*MAX(Method_input!E49*Method_input!E44,IF(D5<>"-",D5,D14)),"-") -> 1000 | E37: Formula (23d) | F37: qV;SUP;dis;in = fop;V × qV;SUP;dis;in;req
A38: Extract volume air flow rate (not control) | B38: qV;ETA;dis;out | C38: m3/h | D38: =IF(System_configuration!B49=1,Method_input!E46,"-") -> - | E38: Formula (24a) | F38: qV;ETA;dis;out = qV;ETA;ahu;nom
A39: Extract volume air flow rate (time control) | B39: qV;ETA;dis;out | C39: m3/h | D39: =IF(System_configuration!B49=2,f_op_V*Method_input!E46,"-") -> - | E39: Formula (24b) | F39: qV;ETA;dis;out = fop;V × qV;ETA;ahu;nom
A40: Extract volume air flow rate (multi stage variable flow rate control) | B40: qV;ETA;dis;out | C40: m3/h | D40: =IF(System_configuration!B49=3,IF(IF(D6<>"-",D6,D15)<(Method_input!E47),Method_input!E15*Method_input!E47,Method_input!E15*Method_input!E46),"-") -> - | E40: Formula (24c) | F40: if qV;ETA;dis;out;req < qV;ETA;ahu;st1: qV;ETA;dis;out = fop;V  qV;ETA;ahu;st1
B41: qV;ETA;dis;out | F41: else if qV;ETA;dis;out;req < qV;ETA;ahu;st2: qV;ETA;dis;out = fop;V  qV;ETA;ahu;st2
A42: Extract volume air flow rate (variabel) | B42: qV;ETA;dis;out | C42: m3/h | D42: =IF(System_configuration!B49=4,f_op_V*MAX(Method_input!E49*Method_input!E46,IF(D6<>"-",D6,D15)),"-") -> 1000 | E42: Formula (24d) | F42: qV;ETA;dis;out = fop;V × qV;ETA;dis;out;req
A43: Supply air volume flow rate transported | B43: qv;SUP;ahu | C43: m3/h | D43: =Method_input!E42*((1-IF(D72<>"-",D72,IF(D73<>"-",D73,D74)))+IF(D72<>"-",D72,IF(D73<>"-",D73,D74))*IF(AND(System_configuration!B119=1,System_configuration!B68=1,System_configuration!B71=1),System_configuration!O47,IF(AND(System_configuration!B119=1,System_configuration!B68=1,OR(System_configuration!B71=2,System_configuration!B71=3,System_configuration!B71=4)),System_configuration!P47,IF(AND(System_configuration!B119=1,System_configuration!B68=1,System_configuration!B71=5),System_configuration!S47,IF(AND(System_configuration!B119=1,System_configuration!B68=2,System_configuration!B71=1),System_configuration!O50,IF(AND(System_configuration!B119=1,System_configuration!B68=2,OR(System_configuration!B71=2,System_configuration!B71=3,System_configuration!B71=4)),System_configuration!P50,IF(AND(System_configuration!B119=1,System_configuration!B68=2,System_configuration!B71=5),System_configuration!S50,IF(AND(System_configuration!B119=2,System_configuration!B68=1,System_configuration!B71=1),System_configuration!O53,IF(AND(System_configuration!B119=2,System_configuration!B68=1,OR(System_configuration!B71=2,System_configuration!B71=3,System_configuration!B71=4)),System_configuration!P53,IF(AND(System_configuration!B119=2,System_configuration!B68=1,System_configuration!B71=5),System_configuration!S53,IF(AND(System_configuration!B119=2,System_configuration!B68=2,System_configuration!B71=1),System_configuration!O56,IF(AND(System_configuration!B119=2,System_configuration!B68=2,OR(System_configuration!B71=2,System_configuration!B71=3,System_configuration!B71=4)),System_configuration!P56,System_configuration!S56))))))))))))*IF(System_configuration!B49=1,D33,IF(System_configuration!B49=2,D34,IF(System_configuration!B49=3,D35,D37))) -> 1066.52 | E43: Formula (25) | F43: qv;SUP;ahu = flea;ahu;SUP × flea;hr;SUP × qv;SUP;dis;in
A44: Extract air volume flow rate transported | B44: qv;ETA;ahu | C44: m3/h | D44: =Method_input!E43*((1-IF(D72<>"-",D72,IF(D73<>"-",D73,D74)))+IF(D72<>"-",D72,IF(D73<>"-",D73,D74))*IF(AND(System_configuration!B119=1,System_configuration!B68=1,System_configuration!B71=1),System_configuration!O48,IF(AND(System_configuration!B119=1,System_configuration!B68=1,OR(System_configuration!B71=2,System_configuration!B71=3,System_configuration!B71=4)),System_configuration!P48,IF(AND(System_configuration!B119=1,System_configuration!B68=1,System_configuration!B71=5),System_configuration!S48,IF(AND(System_configuration!B119=1,System_configuration!B68=2,System_configuration!B71=1),System_configuration!O51,IF(AND(System_configuration!B119=1,System_configuration!B68=2,OR(System_configuration!B71=2,System_configuration!B71=3,System_configuration!B71=4)),System_configuration!P51,IF(AND(System_configuration!B119=1,System_configuration!B68=2,System_configuration!B71=5),System_configuration!S51,IF(AND(System_configuration!B119=2,System_configuration!B68=1,System_configuration!B71=1),System_configuration!O54,IF(AND(System_configuration!B119=2,System_configuration!B68=1,OR(System_configuration!B71=2,System_configuration!B71=3,System_configuration!B71=4)),System_configuration!P54,IF(AND(System_configuration!B119=2,System_configuration!B68=1,System_configuration!B71=5),System_configuration!S54,IF(AND(System_configuration!B119=2,System_configuration!B68=2,System_configuration!B71=1),System_configuration!O57,IF(AND(System_configuration!B119=2,System_configuration!B68=2,OR(System_configuration!B71=2,System_configuration!B71=3,System_configuration!B71=4)),System_configuration!P57,System_configuration!S57))))))))))))*IF(System_configuration!B49=1,D38,IF(System_configuration!B49=2,D39,IF(System_configuration!B49=3,D40,D42))) -> 1066.52 | E44: Formula (26) | F44: qv;ETA;ahu = flea;ahu;ETA × flea;hr;ETA × qv;ETA;dis;out
A45: Supply leakage air volume flow rates | B45: qv;lea;ahu;SUP | C45: m3/h | D45: =(Method_input!E42-1)*IF(D33<>"-",D33,IF(D34<>"-",D34,IF(D35<>"-",D35,D37))) -> 40 | E45: Formula (27) | F45: qv;lea;ahu;SUP = (flea;ahu;SUP -1) × qv;SUP;dis;in
A46: Extract leakage air volume flow rates | B46: qv;lea;ahu;ETA | C46: m3/h | D46: =(Method_input!E43-1)*IF(D38<>"-",D38,IF(D39<>"-",D39,IF(D40<>"-",D40,D42))) -> 40 | E46: Formula (28) | F46: qv;lea;ahu;ETA = (flea;ahu;ETA - 1) × qv;ETA;dis;out
A47: 6.4.3.2.2 Supply temperature control
A48: Supply air temperature (constant supply air temperature) | B48: JSUP;ahu;req | C48: °C | D48: =IF(System_configuration!B44=1,Method_input!E108-IF(D52<>"-",D52,D54),"-") -> - | E48: Formula (29a) | F48: JSUP;ahu;req = JSUP;set - DJfan;SUP
A49: Supply air temperature (Variable set point with outdoor temperature compensation) | B49: JSUP;ahu;req | C49: °C | D49: =IF(System_configuration!B44=2,MIN(Method_input!E109,MAX(Method_input!E110,Method_input!E111*theta_e+Method_input!E112))-IF(D52<>"-",D52,D54),"-") -> 20.23766305 | E49: Formula (29b) | F49: JSUP;ahu;req = min[JSUP;set;max;; max(JSUP;set;min ; fe × Je + DJoff)] - DJfan;SUP
A50: Supply air temperature (Variable set point with load dependent compensation) | B50: JSUP;ahu;req | C50: °C | D50: =IF(System_configuration!B44=3,D18-IF(D52<>"-",D52,D54),"-") -> - | E50: Formula (29c) | F50: JSUP;ahu;req = JSUP,dis,in;req - DJfan;SUP
A51: 6.4.3.2.3 Temperature rise in the fan
A52: Air temperature increase in the fan, EN 13141 systems | B52: DJfan;SUP | C52: K | D52: =IF(System_configuration!B65=1,0,"-") -> - | E52: Formula (30a) | F52: DJfan;SUP/ETA = 0
B53: DJfan;ETA | D53: =IF(System_configuration!B65=1,0,"-") -> - | F53: DJfan;SUP/ETA = 0
A54: Air temperature increase in the fan, other systems | B54: DJfan;SUP | C54: K | D54: =IF(System_configuration!B65=1,"-",IF(D138<>"-",D138,IF(D140<>"-",D140,IF(D142<>"-",D142,IF(D144<>"-",D144,D146))))*Method_input!E50/(Method_input!E139*Method_input!E135*D136*3600000)) -> 0.04233695419 | E54: Formula (30b)
B55: DJfan;ETA | D55: =IF(System_configuration!B65=1,"-",IF(D139<>"-",D139,IF(D141<>"-",D141,IF(D143<>"-",D143,IF(D145<>"-",D145,D147))))*Method_input!E51/(Method_input!E139*Method_input!E135*D137*3600000)) -> 0.04494230522
A56: Air temperature leaving the extract fan (If ETA_FAN_LOC = UP_HR) | B56: JETA:hr;in | C56: °C | D56: =IF(System_configuration!B68=1,D25+IF(D53<>"-",D53,D55),"-") -> 26.02322088 | E56: Formula (31a) | F56: JETA:hr;in = JETA;dis;out + DJfan;ETA
A57: Air temperature leaving the extract fan (else) | B57: JETA:hr;in | C57: °C | D57: =IF(System_configuration!B68=2,D25,"-") -> - | E57: Formula (31b) | F57: JETA:hr;in = JETA;dis;out
A58: 6.4.3.2.4 Ground air preheating and -cooling
A59: Air temperature after the ground preheating, if SUP_FAN_LOC = UP_HR, if GND_PREH_CTRL = NONE or SUP_TEMP_CTRL = NO_CTRL | B59: JODA;preh | C59: °C | D59: =IF(Method_input!E97="UP_HR",IF(OR(System_configuration!B54=1,System_configuration!B44=4),theta_e+Method_input!E142+Method_input!E146+IF(D52<>"-",D52,D54),"-"),"-") -> - | E59: Formula (32a) | F59: ϑODA;preh = ϑe + Δϑgnd + ΔϑODA;du + Δϑfan;SUP
A60: Air temperature after the ground preheating, if SUP_FAN_LOC = UP_HR, else if JSUP;ahu;req > Je | B60: JODA;preh | C60: °C | D60: =IF(Method_input!E97="UP_HR",IF(AND(System_configuration!B54<>1,System_configuration!B44<>4,theta_e<D49),MIN(IF(D48<>"-",D48,IF(D49<>"-",D49,D50)),theta_e+Method_input!E142+Method_input!E146+IF(D52<>"-",D52,D54)),"-"),"-") -> - | E60: Formula (32b) | F60: ϑODA;preh = min(ϑSUP;ahu;req ; ϑe + Δϑgnd + ΔϑODA;du + Δϑfan;SUP)
A61: Air temperature after the ground preheating, if SUP_FAN_LOC = UP_HR, else | B61: JODA;preh | C61: °C | D61: =IF(Method_input!E97="UP_HR",IF(AND(System_configuration!B54<>1,System_configuration!B44<>4,theta_e>=D49),MAX(IF(D48<>"-",D48,IF(D49<>"-",D49,D50)),theta_e+Method_input!E142+Method_input!E146+IF(D52<>"-",D52,D54)),"-"),"-") -> - | E61: Formula (32c) | F61: ϑODA;preh = max(ϑSUP;ahu;req ; ϑe + Δϑgnd + ΔϑODA;du + Δϑfan;SUP)
A62: Air temperature after the ground preheating (else, if GND_PREH_CTRL = NONE or SUP_TEMP_CTRL = NO_CTRL | B62: JODA;preh | C62: °C | D62: =IF(Method_input!E97="DOWN_HR",IF(OR(System_configuration!B54=1,System_configuration!B44=4),theta_e+Method_input!E142+Method_input!E146,"-"),"-") -> - | E62: Formula (32d) | F62: ϑODA;preh = ϑe + Δϑgnd + ΔϑODA;du
A63: Air temperature after the ground preheating, else if JSUP;ahu;req > Je | B63: JODA;preh | C63: °C | D63: =IF(Method_input!E97="DOWN_HR",IF(AND(System_configuration!B54<>1,System_configuration!B44<>4,theta_e<D49),MIN(IF(D48<>"-",D48,IF(D49<>"-",D49,D50)),theta_e+Method_input!E142+Method_input!E146),"-"),"-") -> - | E63: Formula (32e) | F63: ϑODA;preh = min(ϑSUP;ahu;req ; ϑe + Δϑgnd + ΔϑODA;du)
A64: Air temperature after the ground preheating, else else | B64: JODA;preh | C64: °C | D64: =IF(Method_input!E97="DOWN_HR",IF(AND(System_configuration!B54<>1,System_configuration!B44<>4,theta_e>=D49),MAX(IF(D48<>"-",D48,IF(D49<>"-",D49,D50)),theta_e+Method_input!E142+Method_input!E146),"-"),"-") -> 21.8 | E64: Formula (32f) | F64: ϑODA;preh = max(ϑSUP;ahu;req ; ϑe + Δϑgnd + ΔϑODA;du)
A65: Air moisture content after the ground preheating | B65: xODA;preh | C65: kg/kg dry air | D65: =x_e+Method_input!E143+Method_input!E147 -> 0.0115 | E65: Formula (33) | F65: xODA;preh = xe + Δxgnd + ΔxODA;du
A66: 6.4.3.2.5 Recirculation
A67: Required supply temperature after the heat recovery (If RCA_CTRL = FIX) | B67: JSUP;hr;req | C67: °C | D67: =IF(System_configuration!B89=2,(IF(D48<>"-",D48,IF(D49<>"-",D49,IF(D50<>"-",D50,D75)))-((1-IF(D72<>"-",D72,IF(D73<>"-",D73,D74))))*IF(D56<>"-",D56,D57))/IF(D72<>"-",D72,IF(D73<>"-",D73,D74)),"-") -> - | E67: Formula (34a)
A68: Required supply temperature after the heat recovery (else if SUP_AIR_TEMP_CTRL = NO_CTRL) | B68: JSUP;hr;req | C68: °C | D68: =IF(System_configuration!B44=4,(1-(1-D85)*IF(D72<>"-",D72,IF(D73<>"-",D73,D74)))*IF(D56<>"-",D56,D57)+IF(D72<>"-",D72,IF(D73<>"-",D73,D74))*(1-D85)*IF(D59<>"-",D59,IF(D60<>"-",D60,IF(D61<>"-",D61,IF(D62<>"-",D62,IF(D63<>"-",D63,D64))))),"-") -> - | E68: Formula (34b) | F68: JSUP;hr;req = [1 - (1 – hhr) × fODA;min] × JETA;hr:in + fODA;min × (1 – hhr) × JODA;preh
A69: Required supply temperature after the heat recovery (else if JODA;preh < JETA;hr:in and JODA;preh < J SUP;ahu;req) | B69: JSUP;hr;req | C69: °C | D69: =IF(AND(IF(D59<>"-",D59,IF(D60<>"-",D60,IF(D61<>"-",D61,IF(D62<>"-",D62,IF(D63<>"-",D63,D64)))))<IF(System_configuration!B68=1,D56,D57),IF(D59<>"-",D59,IF(D60<>"-",D60,IF(D61<>"-",D61,IF(D62<>"-",D62,IF(D63<>"-",D63,D64)))))<IF(System_configuration!B44=1,D48,IF(System_configuration!B44=2,D49,D50))),MIN(IF(System_configuration!B44=1,D48,IF(System_configuration!B44=2,D49,D50)),(1-(1-D85)*IF(D72<>"-",D72,IF(D73<>"-",D73,D74)))*IF(System_configuration!B68=1,D56,D57)+IF(D72<>"-",D72,IF(D73<>"-",D73,D74))*(1-D85)*IF(D59<>"-",D59,IF(D60<>"-",D60,IF(D61<>"-",D61,IF(D62<>"-",D62,IF(D63<>"-",D63,D64)))))),"-") -> - | E69: Formula (34c) | F69: JSUP;hr;req = min{JSUP;ahu;req ; [1 - (1 – hhr) × fODA;min] × JETA;hr:in + fODA;min × (1 – hhr) × JODA;preh}
A70: The required supply temperature after the heat recovery (else if JODA;preh > JETA;hr:in and JODA;preh > J SUP;ahu;req) | B70: JSUP;hr;req | C70: °C | D70: =IF(AND(IF(D59<>"-",D59,IF(D60<>"-",D60,IF(D61<>"-",D61,IF(D62<>"-",D62,IF(D63<>"-",D63,D64)))))>IF(System_configuration!B122=1,D106,IF(System_configuration!B68=1,D56,D57)),IF(D59<>"-",D59,IF(D60<>"-",D60,IF(D61<>"-",D61,IF(D62<>"-",D62,IF(D63<>"-",D63,D64)))))>IF(System_configuration!B44=1,D48,IF(System_configuration!B44=2,D49,D50))),MAX(IF(System_configuration!B44=1,D48,IF(System_configuration!B44=2,D49,D50)),(1-(1-D85)*IF(D72<>"-",D72,IF(D73<>"-",D73,D74)))*IF(System_configuration!B122=1,Method_calculation!D106,IF(System_configuration!B68=1,D56,D57))+IF(D72<>"-",D72,IF(D73<>"-",D73,D74))*(1-D85)*IF(D59<>"-",D59,IF(D60<>"-",D60,IF(D61<>"-",D61,IF(D62<>"-",D62,IF(D63<>"-",D63,D64)))))),"-") -> - | E70: Formula (34d) | F70: JSUP;hr;req = max{JSUP;ahu;req ; [1 - (1 – hhr) × fODA;min] × JETA;hr:in + fODA;min × (1 – hhr) × JODA;preh}
A71: Required supply temperature after the heat recovery (else) | B71: JSUP;hr;req | C71: °C | D71: =IF(AND(D67="-",D68="-",D69="-",D70="-"),IF(D59<>"-",D59,IF(D60<>"-",D60,IF(D61<>"-",D61,IF(D62<>"-",D62,IF(D63<>"-",D63,D64))))),"-") -> 21.8 | E71: Formula (34e) | F71: JSUP;hr;req = JODA;preh
A72: Minimum outdoor air fraction is (if RCA_CTRL = VARIABLE) | B72: fODA;min | C72: - | D72: =IF(AND(System_configuration!B122=2,System_configuration!B89=3),MIN(IF(AND(System_configuration!B119=1,System_configuration!B68=1,System_configuration!B71=1),System_configuration!O49,IF(AND(System_configuration!B119=1,System_configuration!B68=1,OR(System_configuration!B71=2,System_configuration!B71=3,System_configuration!B71=4)),System_configuration!P49,IF(AND(System_configuration!B119=1,System_configuration!B68=1,System_configuration!B71=5),System_configuration!S49,IF(AND(System_configuration!B119=1,System_configuration!B68=2,System_configuration!B71=1),System_configuration!O52,IF(AND(System_configuration!B119=1,System_configuration!B68=2,OR(System_configuration!B71=2,System_configuration!B71=3,System_configuration!B71=4)),System_configuration!P52,IF(AND(System_configuration!B119=1,System_configuration!B68=2,System_configuration!B71=5),System_configuration!S52,IF(AND(System_configuration!B119=2,System_configuration!B68=1,System_configuration!B71=1),System_configuration!O55,IF(AND(System_configuration!B119=2,System_configuration!B68=1,OR(System_configuration!B71=2,System_configuration!B71=3,System_configuration!B71=4)),System_configuration!P55,IF(AND(System_configuration!B119=2,System_configuration!B68=1,System_configuration!B71=5),System_configuration!S55,IF(AND(System_configuration!B119=2,System_configuration!B68=2,System_configuration!B71=1),System_configuration!O58,IF(AND(System_configuration!B119=2,System_configuration!B68=2,OR(System_configuration!B71=2,System_configuration!B71=3,System_configuration!B71=4)),System_configuration!P58,System_configuration!S58))))))))))),q_V_ODA_zv_req/D7),"-") -> 0.255 | E72: Formula (35a)
A73: Minimum outdoor air fraction is (else if RCA_CTRL = FIX) | B73: fODA;min | C73: - | D73: =IF(AND(System_configuration!B122=2,System_configuration!B89=2),MIN(IF(AND(System_configuration!B119=1,System_configuration!B68=1,System_configuration!B71=1),System_configuration!O49,IF(AND(System_configuration!B119=1,System_configuration!B68=1,OR(System_configuration!B71=2,System_configuration!B71=3,System_configuration!B71=4)),System_configuration!P49,IF(AND(System_configuration!B119=1,System_configuration!B68=1,System_configuration!B71=5),System_configuration!S49,IF(AND(System_configuration!B119=1,System_configuration!B68=2,System_configuration!B71=1),System_configuration!O52,IF(AND(System_configuration!B119=1,System_configuration!B68=2,OR(System_configuration!B71=2,System_configuration!B71=3,System_configuration!B71=4)),System_configuration!P52,IF(AND(System_configuration!B119=1,System_configuration!B68=2,System_configuration!B71=5),System_configuration!S52,IF(AND(System_configuration!B119=2,System_configuration!B68=1,System_configuration!B71=1),System_configuration!O55,IF(AND(System_configuration!B119=2,System_configuration!B68=1,OR(System_configuration!B71=2,System_configuration!B71=3,System_configuration!B71=4)),System_configuration!P55,IF(AND(System_configuration!B119=2,System_configuration!B68=1,System_configuration!B71=5),System_configuration!S55,IF(AND(System_configuration!B119=2,System_configuration!B68=2,System_configuration!B71=1),System_configuration!O58,IF(AND(System_configuration!B119=2,System_configuration!B68=2,OR(System_configuration!B71=2,System_configuration!B71=3,System_configuration!B71=4)),System_configuration!P58,System_configuration!S58))))))))))),Method_input!E106/Method_input!E44),"-") -> - | E73: Formula (35b)
A74: Minimum outdoor air fraction is (else) | B74: fODA;min | C74: - | D74: =IF(OR(System_configuration!B122=1,System_configuration!B89=1),IF(AND(System_configuration!B119=1,System_configuration!B68=1,System_configuration!B71=1),System_configuration!O49,IF(AND(System_configuration!B119=1,System_configuration!B68=1,OR(System_configuration!B71=2,System_configuration!B71=3,System_configuration!B71=4)),System_configuration!P49,IF(AND(System_configuration!B119=1,System_configuration!B68=1,System_configuration!B71=5),System_configuration!S49,IF(AND(System_configuration!B119=1,System_configuration!B68=2,System_configuration!B71=1),System_configuration!O52,IF(AND(System_configuration!B119=1,System_configuration!B68=2,OR(System_configuration!B71=2,System_configuration!B71=3,System_configuration!B71=4)),System_configuration!P52,IF(AND(System_configuration!B119=1,System_configuration!B68=2,System_configuration!B71=5),System_configuration!S52,IF(AND(System_configuration!B119=2,System_configuration!B68=1,System_configuration!B71=1),System_configuration!O55,IF(AND(System_configuration!B119=2,System_configuration!B68=1,OR(System_configuration!B71=2,System_configuration!B71=3,System_configuration!B71=4)),System_configuration!P55,IF(AND(System_configuration!B119=2,System_configuration!B68=1,System_configuration!B71=5),System_configuration!S55,IF(AND(System_configuration!B119=2,System_configuration!B68=2,System_configuration!B71=1),System_configuration!O58,IF(AND(System_configuration!B119=2,System_configuration!B68=2,OR(System_configuration!B71=2,System_configuration!B71=3,System_configuration!B71=4)),System_configuration!P58,System_configuration!S58))))))))))),"-") -> - | E74: Formula (35c) | F74: fODA;min = fODA;hr
A75: Supply temperature after the recirculation (If HEAT_REC_CTRL = NO_CTRL or SUP_AIR_TEMP_CTRL = NO_CTRL) | B75: JSUP;RCA | C75: °C | D75: =IF(OR(System_configuration!B81=1,System_configuration!B44=4),(1-IF(D72<>"-",D72,IF(D73<>"-",D73,D74)))*IF(D56<>"-",D56,D57)+IF(D72<>"-",D72,IF(D73<>"-",D73,D74))*IF(D81<>"-",D81,D82),"-") -> - | E75: Formula (36a) | F75: JSUP;RCA = (1 – fODA;min) × JETA;hr:in + fODA;min × JSUP;hr
A76: Supply temperature after the recirculation (else) | B76: JSUP;RCA | C76: °C | D76: =IF(AND(System_configuration!B84<>1,System_configuration!B47<>4),IF(D67<>"-",D67,IF(D68<>"-",D68,IF(D69<>"-",D69,IF(D70<>"-",D70,D71)))),"-") -> 21.8 | E76: Formula (36b) | F76: JSUP;RCA = JSUP;hr;req
A77: Supply air moisture content after the recirculation | B77: xSUP;RCA | C77: g/kg | D77: =(1-IF(D78="-",D79,D78))*IF(System_configuration!B122=1,D107,D27)+IF(D78="-",D79,D78)*D89 -> 0.01165743 | E77: Formula (37) | F77: xSUP;RCA = (1 – fODA) × xETA;hr;in + fODA × xSUP;hr
A78: Outdoor air factor of the current time step | B78: fODA | C78: - | D78: =IF(IF(D81<>"-",D81,IF(D82<>"-",D82,IF(D83<>"-",D83,D84)))<>IF(D56<>"-",D56,D57),"-",IF(AND(System_configuration!B119=1,System_configuration!B68=1,System_configuration!B71=1),System_configuration!O49,IF(AND(System_configuration!B119=1,System_configuration!B68=1,OR(System_configuration!B71=2,System_configuration!B71=3,System_configuration!B71=4)),System_configuration!P49,IF(AND(System_configuration!B119=1,System_configuration!B68=1,System_configuration!B71=5),System_configuration!S49,IF(AND(System_configuration!B119=1,System_configuration!B68=2,System_configuration!B71=1),System_configuration!O52,IF(AND(System_configuration!B119=1,System_configuration!B68=2,OR(System_configuration!B71=2,System_configuration!B71=3,System_configuration!B71=4)),System_configuration!P52,IF(AND(System_configuration!B119=1,System_configuration!B68=2,System_configuration!B71=5),System_configuration!S52,IF(AND(System_configuration!B119=2,System_configuration!B68=1,System_configuration!B71=1),System_configuration!O55,IF(AND(System_configuration!B119=2,System_configuration!B68=1,OR(System_configuration!B71=2,System_configuration!B71=3,System_configuration!B71=4)),System_configuration!P55,IF(AND(System_configuration!B119=2,System_configuration!B68=1,System_configuration!B71=5),System_configuration!S55,IF(AND(System_configuration!B119=2,System_configuration!B68=2,System_configuration!B71=1),System_configuration!O58,IF(AND(System_configuration!B119=2,System_configuration!B68=2,OR(System_configuration!B71=2,System_configuration!B71=3,System_configuration!B71=4)),System_configuration!P58,System_configuration!S58)))))))))))) -> - | E78: Formula (38a) | F78: if JSUP;hr = JETA;hr:in fODA = fODA;hr
A79: Outdoor air factor of the current time step | B79: fODA | C79: - | D79: =IF(D78="-",MAX(IF(D72<>"-",D72,IF(D73<>"-",D73,D74)),MIN(IF(AND(System_configuration!B119=1,System_configuration!B68=1,System_configuration!B71=1),System_configuration!O49,IF(AND(System_configuration!B119=1,System_configuration!B68=1,OR(System_configuration!B71=2,System_configuration!B71=3,System_configuration!B71=4)),System_configuration!P49,IF(AND(System_configuration!B119=1,System_configuration!B68=1,System_configuration!B71=5),System_configuration!S49,IF(AND(System_configuration!B119=1,System_configuration!B68=2,System_configuration!B71=1),System_configuration!O52,IF(AND(System_configuration!B119=1,System_configuration!B68=2,OR(System_configuration!B71=2,System_configuration!B71=3,System_configuration!B71=4)),System_configuration!P52,IF(AND(System_configuration!B119=1,System_configuration!B68=2,System_configuration!B71=5),System_configuration!S52,IF(AND(System_configuration!B119=2,System_configuration!B68=1,System_configuration!B71=1),System_configuration!O55,IF(AND(System_configuration!B119=2,System_configuration!B68=1,OR(System_configuration!B71=2,System_configuration!B71=3,System_configuration!B71=4)),System_configuration!P55,IF(AND(System_configuration!B119=2,System_configuration!B68=1,System_configuration!B71=5),System_configuration!S55,IF(AND(System_configuration!B119=2,System_configuration!B68=2,System_configuration!B71=1),System_configuration!O58,IF(AND(System_configuration!B119=2,System_configuration!B68=2,OR(System_configuration!B71=2,System_configuration!B71=3,System_configuration!B71=4)),System_configuration!P58,System_configuration!S58))))))))))),(IF(System_configuration!B122=1,D105,IF(D75<>"-",D75,D76))-IF(D56<>"-",D56,D57))/(IF(D81<>"-",D81,IF(D82<>"-",D82,IF(D83<>"-",D83,D84)))-IF(D56<>"-",D56,D57)))),"-") -> 0.909 | E79: Formula (38b) | F79: else | G79: Method output | J79: =IF(D78="-",MAX(IF(D72<>"-",D72,IF(D73<>"-",D73,D74)),(IF(System_configuration!B122=1,D105,IF(D75<>"-",D75,D76))-IF(D56<>"-",D56,D57))/(IF(D81<>"-",D81,IF(D82<>"-",D82,IF(D83<>"-",D83,D84)))-IF(D56<>"-",D56,D57))),"-") -> 1
A80: 6.4.3.2.6 Heat recovery
A81: Supply air temperature after the heat recovery (no heat recovery control) | B81: JSUP;hr | C81: °C | D81: =IF(System_configuration!B81=1,IF(D59<>"-",D59,IF(D60<>"-",D60,IF(D61<>"-",D61,IF(D62<>"-",D62,IF(D63<>"-",D63,D64)))))+D85*(IF(System_configuration!B68=1,D56,D57)-IF(D59<>"-",D59,IF(D60<>"-",D60,IF(D61<>"-",D61,IF(D62<>"-",D62,IF(D63<>"-",D63,D64)))))),"-") -> - | E81: Formula (39a) | F81: JSUP;hr = JODA;preh + hhr (JETA;hr;in - JODA;preh)
A82: Supply air temperature after the heat recovery (else if JODA;preh < JETA;hr:in and JODA;preh < J SUP;ahu;req) | B82: JSUP;hr | C82: °C | D82: =IF(AND(IF(D59<>"-",D59,IF(D60<>"-",D60,IF(D61<>"-",D61,IF(D62<>"-",D62,IF(D63<>"-",D63,D64)))))<IF(System_configuration!B68=1,D56,D57),IF(D59<>"-",D59,IF(D60<>"-",D60,IF(D61<>"-",D61,IF(D62<>"-",D62,IF(D63<>"-",D63,D64)))))<IF(System_configuration!B44=1,D48,IF(System_configuration!B44=2,D49,D50))),MIN(IF(D98<>"-",D98,IF(D100<>"-",D100,D102)),IF(D59<>"-",D59,IF(D60<>"-",D60,IF(D61<>"-",D61,IF(D62<>"-",D62,IF(D63<>"-",D63,D64)))))+D85*(IF(System_configuration!B68=1,D56,D57)-IF(D97<>"-",D97,IF(D99<>"-",D99,D101)))),"-") -> - | E82: Formula (39b) | F82: JSUP;hr = min[JSUP;hr;lim ; JODA;preh + hhr (JETA;hr;in - JODA;fp)]
A83: Supply air temperature after the heat recovery (else if JODA;preh > JETA;hr:in and JODA;preh > J SUP;ahu;fp) | B83: JSUP;hr | C83: °C | D83: =IF(AND(IF(D59<>"-",D59,IF(D60<>"-",D60,IF(D61<>"-",D61,IF(D62<>"-",D62,IF(D63<>"-",D63,D64)))))>IF(System_configuration!B68=1,D56,D57),IF(D59<>"-",D59,IF(D60<>"-",D60,IF(D61<>"-",D61,IF(D62<>"-",D62,IF(D63<>"-",D63,D64)))))>IF(System_configuration!B44=1,D48,IF(System_configuration!B44=2,D49,D50))),MAX(IF(D67<>"-",D67,IF(D68<>"-",D68,IF(D69<>"-",D69,IF(D70<>"-",D70,D71)))),IF(D59<>"-",D59,IF(D60<>"-",D60,IF(D61<>"-",D61,IF(D62<>"-",D62,IF(D63<>"-",D63,D64)))))+D85*(IF(System_configuration!B122=1,D106,IF(System_configuration!B68=1,D56,D57))-IF(D97<>"-",D97,IF(D99<>"-",D99,D101)))),"-") -> - | E83: Formula (39c) | F83: JSUP;hr = max[JSUP;hr;req ; JODA;preh + hhr (JETA;hr;in - JODA;fp)]
A84: Supply air temperature after the heat recovery (else) | B84: JSUP;hr | C84: °C | D84: =IF(OR(AND(IF(D59<>"-",D59,IF(D60<>"-",D60,IF(D61<>"-",D61,IF(D62<>"-",D62,IF(D63<>"-",D63,D64)))))>IF(System_configuration!B68=1,D56,D57),IF(D59<>"-",D59,IF(D60<>"-",D60,IF(D61<>"-",D61,IF(D62<>"-",D62,IF(D63<>"-",D63,D64)))))>IF(System_configuration!B44=1,D48,IF(System_configuration!B44=2,D49,D50))),AND(IF(D59<>"-",D59,IF(D60<>"-",D60,IF(D61<>"-",D61,IF(D62<>"-",D62,IF(D63<>"-",D63,D64)))))<IF(System_configuration!B68=1,D56,D57),IF(D59<>"-",D59,IF(D60<>"-",D60,IF(D61<>"-",D61,IF(D62<>"-",D62,IF(D63<>"-",D63,D64)))))<IF(System_configuration!B44=1,D48,IF(System_configuration!B44=2,D49,D50)))),"-",IF(D97<>"-",D97,IF(D99<>"-",D99,D101))) -> 21.8 | E84: Formula (39d) | F84: JSUP;hr = JODA;fp
A85: Heat recovery temperature efficiency | B85: hhr | C85: - | D85: =Method_input!E51*D86*D87 -> 0.8368381847 | E85: Formula (40) | F85: hhr = hhr;nom × fq × fv × fn
A86: Correction factor for the mass flow ratio other than 1 | B86: fq | C86: - | D86: =((D44-D43)/(D43*IF(D72<>"-",D72,IF(D73<>"-",D73,D74)))+1)^0.4 -> 1 | E86: Formula (41)
A87: Correction factor for the air velocity | B87: fv | C87: - | D87: =Method_input!E54*(D88-Method_input!E53)+Method_input!E55 -> 1.212808963 | E87: Formula (42) | F87: fv = C1 (vhr;eff – vhr;nom) + C2
A88: Air velocity | B88: vhr;eff | C88: m/s | D88: =(Method_input!E113*D43*IF(D72<>"-",D72,IF(D73<>"-",D73,D74)))/Method_input!E52 -> 0.19037382 | E88: Formula (43)
A89: Moisture content of the supply air after the heat recovery | B89: xSUP;hr | C89: kg/kg dry air | D89: =IF(OR(System_configuration!B71=3,System_configuration!B71=4),D65+IF(D90<>"-",D90,D92)*(IF(System_configuration!B122=1,Method_calculation!D107,D27)-D65),D65) -> 0.0115 | E89: Formula (44) | F89: xSUP;hr = xODA;preh + hxr (xETA;hr;in - xODA;preh)
A90: Humidity recovery efficiency, rotary heat exchanger | B90: hxr | C90: - | D90: =IF(OR(System_configuration!B71=2,System_configuration!B71=3,System_configuration!B71=4),Method_input!E57*Method_input!E59*Method_input!E60*Method_input!E61*Method_input!E62,"-") -> 0 | E90: Formula (45a) | F90: hxr = hxr;nom × fDx;x × fq;x × fv;x × fn;x
A91: Humidity recovery efficiency for heat exchanger, if HEAT_REC_TYPE = OTHER | B91: hxr | C91: - | D91: =IF(Method_input!E31="OTHER",Method_input!E57*Method_input!E63,"-") -> - | E91: Formula (45b) | F91: ηxr = ηxr;nom ⋅ fxr;other
A92: Humidity recovery efficiency, else | B92: hxr | C92: - | D92: =IF(OR(System_configuration!B71=1,System_configuration!B71=5),0,"-") -> - | E92: Formula (45c) | F92: hxr = 0
A93: 6.4.3.2.7 Frost protection
A94: The effect of frost protection on heat recovery, if DEFR_CTRL = DIRECT | B94: ηhr | C94: - | D94: =IF(System_configuration!B62=1,IF(theta_e<Method_input!E114,Method_input!E64,"-"),"-") -> - | E94: Formula (46) | F94: if Je < Je;lim1: ηhr = εD;-15
B95: ηhr | D95: =IF(System_configuration!B62=1,IF(theta_e<Method_input!E115,IF(theta_e<Method_input!E114,Method_input!E65,"-"),"-"),"-") -> - | F95: else if Je < Je;lim2: ηhr = εD;-7
B96: ηhr | D96: =IF(System_configuration!B62=1,IF(theta_e>=Method_input!E115,D85,"-"),"-") -> - | F96: else ηhr = ηhr
B97: JODA;fp | C97: °C | D97: =IF(System_configuration!B62=1,IF(D59<>"-",D59,IF(D60<>"-",D60,IF(D61<>"-",D61,IF(D62<>"-",D62,IF(D63<>"-",D63,D64))))),"-") -> - | E97: Formula (47a) | F97: JODA;fp = JODA;preh
B98: JSUP;hr;lim | C98: °C | D98: =IF(System_configuration!B62=1,IF(D67<>"-",D67,IF(D68<>"-",D68,IF(D69<>"-",D69,IF(D70<>"-",D70,D71)))),"-") -> - | E98: Formula (48a) | F98: JSUP;hr;lim = JSUP;hr;req
A99: The effect of frost protection on outdoor air, if DEFR_CTRL = INDIRECT, if DEFR_TYPE = PREH | B99: JODA;fp | C99: °C | D99: =IF(System_configuration!B62=2,IF(System_configuration!B58=1,MAX(IF(D59<>"-",D59,IF(D60<>"-",D60,IF(D61<>"-",D61,IF(D62<>"-",D62,IF(D63<>"-",D63,D64))))),IF(D67<>"-",D67,IF(D68<>"-",D68,IF(D69<>"-",D69,IF(D70<>"-",D70,D71))))-D103*D43*IF(D72<>"-",D72,IF(D73<>"-",D73,D74))/(D43-D44*(1-IF(D72<>"-",D72,IF(D73<>"-",D73,D74)))))),"-") -> 21.8 | E99: Formula (47b)
A100: The effect of frost protection on outdoor air, if DEFR_CTRL = INDIRECT, if DEFR_TYPE = PREH | B100: JSUP;hr;lim | C100: °C | D100: =IF(System_configuration!B62=2,IF(System_configuration!B58=1,IF(D67<>"-",D67,IF(D68<>"-",D68,IF(D69<>"-",D69,IF(D70<>"-",D70,D71))))),"-") -> 21.8 | E100: Formula (48b) | F100: JSUP;hr;lim = JSUP;hr;req
A101: The effect of frost protection on outdoor air, if DEFR_CTRL = INDIRECT, else | B101: JODA;fp | C101: °C | D101: =IF(AND(System_configuration!B62=2,OR(System_configuration!B58=2,System_configuration!B58=3)),IF(D59<>"-",D59,IF(D60<>"-",D60,IF(D61<>"-",D61,IF(D62<>"-",D62,IF(D63<>"-",D63,D64))))),"-") -> - | E101: Formula (47c) | F101: JODA;fp = JODA;preh
A102: The effect of frost protection on outdoor air, if DEFR_CTRL = INDIRECT, else | B102: JSUP;hr;lim | C102: °C | D102: =IF(AND(System_configuration!B62=2,OR(System_configuration!B58=2,System_configuration!B58=3)),MIN(IF(D67<>"-",D67,IF(D68<>"-",D68,IF(D69<>"-",D69,IF(D70<>"-",D70,D71)))),IF(D59<>"-",D59,IF(D60<>"-",D60,IF(D61<>"-",D61,IF(D62<>"-",D62,IF(D63<>"-",D63,D64)))))+D103*D43*IF(D72<>"-",D72,IF(D73<>"-",D73,D74))/(D43-D44*(1-IF(D72<>"-",D72,IF(D73<>"-",D73,D74))))),"-") -> - | E102: Formula (48c)
A103: Maximum heat recoverd temperature difference | B103: DJETA;hr | C103: K | D103: =IF(System_configuration!B62=2,MAX(0,IF(System_configuration!B68=1,D56,D57)-Method_input!E116),"-") -> 31.02322088 | E103: Formula (49) | F103: DJETA;hr = max(0; JETA;hr;in - JEHA;hr;lim)
A104: 6.4.3.2.8 Adiabatic cooling
A105: Recirculation supply temperature | B105: JSUP;RCA | C105: °C | D105: =MIN(IF(D48<>"-",D48,IF(D49<>"-",D49,D50)),IF(D81<>"-",D81,IF(D82<>"-",D82,IF(D83<>"-",D83,D84)))) -> 20.23766305 | E105: Formula (50) | F105: JSUP;RCA = min(JSUP;ahu;req; JSUP;hr)
A106: Extract air temperature entering the heat recovery | B106: JETA;hr;in | C106: °C | D106: =IF(System_configuration!B122=1,MAX((IF(D48<>"-",D48,IF(D49<>"-",D49,D50))-IF(D59<>"-",D59,IF(D60<>"-",D60,IF(D61<>"-",D61,IF(D62<>"-",D62,IF(D63<>"-",D63,D64))))))/D85+IF(D59<>"-",D59,IF(D60<>"-",D60,IF(D61<>"-",D61,IF(D62<>"-",D62,IF(D63<>"-",D63,D64))))),D25-Method_input!E89*(D25-Method_input!E145)),D25) -> 25.97827857 | E106: Formula (51)
A107: Extract air moisture content entering the heat recovery | B107: xETA;hr;in | C107: kg/kg dry air | D107: =IF(System_configuration!B122=1,D27+((Method_input!E144-D27)*(D25-D106))/(D25-Method_input!E145),D27) -> 0.01323 | E107: Formula (52)
A108: 6.4.3.2.9.1 Cooling and dehumidification
A109: Required supply air temperature after the cooling coil in the current time step If SUP_AIR_TEMP_CTRL = NO_CTRL | B109: JSUP;C;req | C109: °C | D109: =IF(System_configuration!B44=4,IF(System_configuration!B122=1,D105,IF(D75<>"-",D75,D76)),"-") -> - | E109: Formula (53a) | F109: JSUP;C;req = JSUP;RCA
A110: Required supply air temperature after the cooling coil in the current time step, else | B110: JSUP;C;req | C110: °C | D110: =IF(System_configuration!B44<>4,MIN(D117,IF(D48<>"-",D48,IF(D49<>"-",D49,IF(D50<>"-",D50,D75))),IF(System_configuration!B122=1,D105,IF(D75<>"-",D75,D76))),"-") -> 15.9065386 | E110: Formula (53b) | F110: JSUP;C;req = min(JSUP;DHU;req; JSUP;ahu;req; JSUP;RCA) | J110: =IF(System_configuration!B54=1,D59,D60) -> -
A111: Required supply air moisture content after the cooling coil | B111: xSUP;C;req | C111: kg/kg dry air | D111: =MIN(D24,D77-D112) -> 0.011 | E111: Formula (54) | F111: xSUP;C;req = min(xSUP;dis;in;req; xSUP;RCA - DxC)
A112: The difference in moisture content due to uncontrolled dehumidification in the cooling coil | B112: DxC | C112: kg/kg dry air | D112: =MAX(0,(D77-D113)*(1-Method_input!E69)) -> 0.00065743 | E112: Formula (55) | F112: DxC = max[0; (xSUP;RCA - xC;coil;req) × (1-fC;bp)]
A113: Required cooling coil surface moisture content | B113: xC;coil;req | C113: kg/kg dry air | D113: =EXP(Method_input!E66-(Method_input!E67/(D114+Method_input!E68))) -> 0.01092695222 | E113: Formula (56)
A114: Required coil surface temperature for cooling | B114: ϑC;coil;req | C114: °C | D114: =(IF(D109<>"-",D109,D110)-Method_input!E69*IF(System_configuration!B122=1,D105,IF(OR(System_configuration!B81=1,System_configuration!B44=4),D75,D76)))/(1-Method_input!E69) -> 15.25170955 | E114: Formula (57)
A115: Required coil surface moisture content for dehumidification | B115: xDHU;coil | C115: kg/kg dry air | D115: =(D24-Method_input!E69*D77)/(1-Method_input!E69) -> 0.01092695222 | E115: Formula (58)
A116: Required coil surface temperature for dehumidification | B116: JDHU;coil | C116: °C | D116: =Method_input!E67/(Method_input!E66-LN(Method_calculation!D115))-Method_input!E68 -> 15.25170955 | E116: Formula (59)
A117: Resulting supply temperature for dehumidification | B117: JSUP;DHU;req | C117: °C | D117: =IF(Method_input!E21>D77,IF(System_configuration!B122=1,D105,IF(D75<>"-",D75,D76)),Method_input!E69*IF(System_configuration!B122=1,D105,IF(D75<>"-",D75,D76))+(1-Method_input!E69)*D116) -> 15.9065386 | E117: Formula (60) | F117: If xSUP;zt;max;req < xSUP;RCA: JSUP;DHU;req = fC;bp × JSUP;RCA + (1 - fC;bp) × JDHU;coil;req else: JSUP;DHU;req = JSUP;RCA
A118: Required inlet temperature to the cooling coil in the current time step | B118: JC;ahu;in;req | C118: °C | D118: =(IF(D109<>"-",D109,D110)-IF(System_configuration!B122=1,D105,IF(OR(System_configuration!B81=1,System_configuration!B44=4),D75,D76))*(1-Method_input!E70))/Method_input!E70 -> 14.43317324 | E118: Formula (61) | G118: Method output
A119: Actual supply air temperature after the cooling coil in the current time step | B119: JSUP;C | C119: °C | D119: =IF(System_configuration!B122=1,D105,IF(D75<>"-",D75,D76))-Q_C_V_out/(D43*Method_input!E139*Method_input!E135)-Method_input!E136/Method_input!E135*(D120-D77) -> 15.9065386 | E119: Formula (62)
A120: The actual supply air moisture content after the cooling coil | B120: xSUP;C | C120: kg/kg dry air | D120: =MIN((Method_input!E69*D77+(1-Method_input!E69)*EXP(Method_input!E66-Method_input!E67/(D121+Method_input!E68))),Method_calculation!D77) -> 0.011 | E120: Formula (63)
A121: Actual cooling coil temperature | B121: ϑC;coil | C121: °C | D121: =Method_input!E70*(Method_input!E14-IF(System_configuration!B122=1,D105,IF(D75<>"-",D75,D76)))/(1-Method_input!E69)+IF(System_configuration!B122=1,D105,IF(D75<>"-",D75,D76)) -> 15.25170955 | E121: Formula (64)
A122: 6.4.3.2.9.2 Humidification
A123: Supply air moisture content after the humidifier | B123: xSUP;HU | C123: kg/kg dry air | D123: =MAX(D23,D120) -> 0.011 | E123: Formula (65) | F123: xSUP;HU = max[xSUP;dis;in;min;req; xSUP;C]
A124: Change in supply air temperature in the humidifier, if HUM_TYPE = STEAM | B124: DJSUP;HU | C124: K | D124: =IF(System_configuration!B93=5,0,"-") -> - | E124: Formula (66a) | F124: DJSUP;HU = 0
A125: Change in supply air temperature in the humidifier, else | B125: DJSUP;HU | C125: K | D125: =IF(OR(System_configuration!B93=1,System_configuration!B93=2,System_configuration!B93=3,System_configuration!B93=4),MAX(0,Method_input!E136/Method_input!E135*(Method_calculation!D123-Method_calculation!D120)),"-") -> 0 | E125: Formula (66b)
A126: 6.4.3.2.8.3 Heating
A127: Required supply air temperature after the heating coil | B127: JSUP;H;req | C127: °C | D127: =IF(System_configuration!B44=4,IF(D109<>"-",D109,D110),"-") -> - | E127: Formula (67a) | F127: JSUP;H;req = JSUP;C;req
A128: Required supply air temperature after the heating coil | B128: JSUP;H;req | C128: °C | D128: =IF(OR(System_configuration!B44=1,System_configuration!B44=2,System_configuration!B44=3),MAX(IF(D48<>"-",D48,IF(D49<>"-",D49,IF(D50<>"-",D50))),IF(D109<>"-",D109,D110)),"-") -> 20.23766305 | E128: Formula (67b) | F128: JSUP;H;req = max (JSUP;ahu;req; JSUP;C;req)
A129: Required inlet temperature to the heating coil | B129: JH;ahu;in;req | C129: °C | D129: =(IF(D127<>"-",D127,D128)-IF(D109<>"-",D109,D110)*(1-Method_input!E71))/Method_input!E71 -> 21.32044416 | E129: Formula (68) | G129: Method output
A130: Actual supply air temperature after the heating coil | B130: JSUP;H | C130: °C | D130: =D119+Q_H_V_in/(D43*Method_input!E139*Method_input!E135)-IF(D124<>"-",D124,D125) -> 20.23766305 | E130: Formula (69)
A131: 6.4.3.2.9.4 Fan
A132: Supply air temperature after the supply fan, delivered to the distribution system | B132: JSUP;dis;in | C132: °C | D132: =D130+D54 -> 20.28 | E132: Formula (70) | F132: JSUP;dis;in = JSUP;H + DJfan;SUP
A133: The supply air humidity content delivered to the distribution system | B133: xSUP;dis;in | C133: kg/kg dry air | D133: =D123 -> 0.011 | E133: Formula (71) | F133: xSUP;dis;in = xSUP;HU
A134: 6.4.4.1. Fan
A135: Fan energy consumption for the current time step is the energy consumption for ventilation | B135: EV;gen;in;el | D135: =(D43/D136*IF(D138<>"-",D138,IF(D140<>"-",D140,IF(D142<>"-",D142,(IF(D144<>"-",D144,D146)))))+D44/D137*IF(D139<>"-",D139,IF(D141<>"-",D141,IF(D143<>"-",D143,(IF(D145<>"-",D145,D147))))))*t_ci/3600000 -> 0.04677140466 | E135: Formula (72) | G135: Method output
A136: Efficiency of the supply fan | B136: ηfan;SUP | D136: =Method_input!E72*Method_input!E76 -> 0.3325308912 | E136: Formula (73) | F136: ηfan;SUP/ETA = ηfan;SUP/ETA;nom × fh(qV)
A137: Efficiency of theextract fan | B137: ηfan;ETA | D137: =Method_input!E74*Method_input!E77 -> 0.3602417988 | E137: Formula (73) | F137: ηfan;SUP/ETA = ηfan;SUP/ETA;nom × fh(qV)
A138: Supply fan pressure difference (single zone, no contol) | B138: Δpfan;SUP | C138: Pa | D138: =IF(System_configuration!B111=1,IF(System_configuration!B114=1,Method_input!E73*Method_input!E78,"-"),"-") -> - | E138: Formula (74a) | F138: Δpfan;SUP = Δpfan;SUP;nom × fΔp(qV)
A139: Extract fan pressure difference (single zone, no contol) | B139: Δpfan;ETA | C139: Pa | D139: =IF(System_configuration!B111=1,IF(System_configuration!B114=1,Method_input!E75*Method_input!E79,"-"),"-") -> - | E139: Formula (75a) | F139: Δpfan;ETA = Δpfan;ETA;nom × fΔp(qV)
A140: Supply fan pressure difference (single zone, direct) | B140: Δpfan;SUP | C140: Pa | D140: =IF(System_configuration!B111=1,IF(System_configuration!B114=4,Method_input!E117*(D43/Method_input!E44)^2,"-"),"-") -> 27.29915785 | E140: Formula (74b)
A141: Extract fan pressure difference (single zone, direct) | B141: Δpfan;ETA | C141: Pa | D141: =IF(System_configuration!B111=1,IF(System_configuration!B114=4,Method_input!E118*(D44/Method_input!E46)^2,"-"),"-") -> 27.29915785 | E141: Formula (75b)
A142: Supply fan pressure difference (multi zone, no contol) | B142: Δpfan;SUP | C142: Pa | D142: =IF(System_configuration!B111=2,IF(System_configuration!B114=1,Method_input!E73*Method_input!E78,"-"),"-") -> - | E142: Formula (74c) | F142: Δpfan;SUP = Δpfan;SUP;nom × fΔp (qV)
A143: Extract fan pressure difference (multi zone, no contol) | B143: Δpfan;ETA | C143: Pa | D143: =IF(System_configuration!B111=2,IF(System_configuration!B114=1,Method_input!E75*Method_input!E79,"-"),"-") -> - | E143: Formula (75c) | F143: Δpfan;ETA = Δpfan;ETA;nom × fΔp (qV)
A144: Supply fan pressure difference (multi zone, const pres) | B144: Δpfan;SUP | C144: Pa | D144: =IF(System_configuration!B111=2,IF(System_configuration!B114=2,Method_input!E117*((1-Method_input!E120)*(Method_calculation!D43/Method_input!E44)^2+Method_input!E120),"-"),"-") -> - | E144: Formula (74d)
A145: Extract fan pressure difference (multi zone, const pres) | B145: Δpfan;ETA | C145: Pa | D145: =IF(System_configuration!B111=2,IF(System_configuration!B114=2,Method_input!E118*((1-Method_input!E121)*(Method_calculation!D44/Method_input!E46)^2+Method_input!E121),"-"),"-") -> - | E145: Formula (75d)
A146: Supply fan pressure difference (multi zone, min pres) | B146: Δpfan;SUP | C146: Pa | D146: =IF(System_configuration!B111=2,IF(System_configuration!B114=3,Method_input!E117*((1-Method_input!E120)*(D43/Method_input!E44)^2+Method_input!E120*IF(D12="-",D16,D12)),"-"),"-") -> - | E146: Formula (74e)
A147: Extract fan pressure difference (multi zone, min pres) | B147: Δpfan;ETA | C147: Pa | D147: =IF(System_configuration!B111=2,IF(System_configuration!B114=3,Method_input!E118*((1-Method_input!E121)*(D44/Method_input!E46)^2+Method_input!E121*IF(D12="-",D16,D12)),"-"),"-") -> - | E147: Formula (75e)
A148: 6.4.4.2. Ground preheating and -cooling
A149: Energy transferred by the ground preheating, if present | B149: Qgnd | C149: kWh | D149: =t_ci*Method_input!E139*Method_input!E135*D43*IF(D78="-",D79,D78)*(IF(D59<>"-",D59,IF(D60<>"-",D60,IF(D61<>"-",D61,IF(D62<>"-",D62,IF(D63<>"-",D63,D64)))))-theta_e) -> 0 | E149: Formula (76) | F149: Qgnd = ra × ca × qv;SUP;ahu × fODA × (JODA,preh – Je) × tci | G149: QA output
A150: 6.4.4.3 Heat recovery
A151: Energy transferred by the heat recovery | B151: Qhr | C151: kWh | D151: =t_ci*Method_input!E139*Method_input!E135*D43*IF(D78="-",D79,D78)*(IF(D81<>"-",D81,IF(D82<>"-",D82,IF(D83<>"-",D83,D84)))-(IF(System_configuration!B62=2,IF(D99<>"-",D99,D101),D97))+Method_input!E134/Method_input!E136*(D89-D65)) -> 0 | E151: Formula (77) | G151: Method output
A152: Required energy supplied by the heating coil without heat recovery | B152: QH;ahu;in;tot;req | C152: kWh | D152: =MAX(0,t_ci*Method_input!E139*Method_input!E135*D43*(IF(D127="-",D128,D127)+IF(D124="-",D125,D124)-theta_e)) -> 0 | E152: Formula (78) | F152: QH;ahu;in;tot;req = max[0 ; rac a × qv;SUP;ahu × (JSUP;H;req + DJSUP;HU – Je) × tci ] | G152: Method output
A153: 6.4.4.4 Recirculation
A154: Rnergy transferred by the recirculation, if present, in the current time step | B154: QRCA | C154: kWh | D154: =t_ci*Method_input!E139*Method_input!E135*D44*(1-IF(D78<>"-",D78,D79))*(IF(D56<>"-",D56,D57)-theta_e) -> 0.1324648294 | E154: Formula (79) | F154: QRCA = raca × qv;ETA;ahu ×(1-fODA) (JETA;hr;in – Je)×tci | G154: QA output
A155: 6.4.4.5 Cooling and dehumidification
A156: Required energy to be extracted by the cooling coil | B156: QC;ahu;out;req | C156: kWh | D156: =t_ci*D43*(Method_input!E139*Method_input!E135*(IF(System_configuration!B122=1,D105,IF(D75<>"-",D75,D76))-IF(D109<>"-",D109,D110))+Method_input!E139*Method_input!E136*(D77-D111)) -> 2.583648167 | E156: Formula (80) | G156: Method output
A157: Required energy to be extracted for dehumidification | B157: QDHU;ahu;out;req | C157: kWh | D157: =t_ci*D43*(Method_input!E139*Method_input!E135*(MIN(IF(System_configuration!B122=1,D105,IF(D75<>"-",D75,D76)),IF(D48<>"-",D48,IF(D49<>"-",D49,D50)))-D119)+Method_input!E139*Method_input!E136*(D77-D112-D120)) -> 1.492849611 | E157: Formula (81) | G157: QA output
A158: 6.4.4.6 Humidification
A159: Energy supplied for humidification (steam) | B159: EHU;cr | C159: kWh | D159: =IF(System_configuration!B93=5,t_ci*D43*Method_input!E139*Method_input!E136*(D123-D120),"-") -> - | E159: Formula (82a) | G159: Method output
A160: Energy supplied for humidification (else) | B160: EHU;cr | C160: kWh | D160: =IF(OR(System_configuration!B93=1,System_configuration!B93=2,System_configuration!B93=3,System_configuration!B93=4,),0,"-") -> 0 | E160: Formula (82b) | F160: EHU;cr = 0 | G160: Method output
A161: Water use for humidification | B161: mw;HU | C161: kg | D161: =D43*Method_input!E139*(D123-D120)*t_ci -> 0 | E161: Formula (83) | G161: QA output
A162: 6.4.4.7 Heating
A163: Required energy to be supplied by the heating coil | B163: QH;ahu;in;req | C163: kWh | D163: =t_ci*Method_input!E139*Method_input!E135*D43*(IF(D127<>"-",D127,D128)+IF(D124<>"-",D124,D125)-D110) -> 1.492849611 | E163: Formula (84) | F163: QH;ahu;in;req = rac a × qv;SUP;ahu × (JSUP;H;req + DJSUP;HU – J SUP,C) × tci | G163: Method output
A164: 6.4.4.8 Generation heat losses
A165: Heat losses of the air handling units (cond) | B165: Qls;V;gen | C165: kWh | D165: =IF(System_configuration!B41=1,t_ci*Method_input!E80*Method_input!E81*(IF(System_configuration!B81=1,D81,IF(D82<>"-",D82,IF(D83<>"-",D83,D84)))-theta_IDA_zt)+Method_input!E82*Method_input!E83*(IF(D56<>"-",D56,D57)-theta_IDA_zt)+D45*Method_input!E139*Method_input!E135*(IF(D81<>"-",D81,IF(D82<>"-",D82,IF(D83<>"-",D83,D84)))-theta_IDA_zt),"-") -> - | E165: Formula (85a) | F165: Qls;V;gen = [(A×U)ahu;SUP (JSUP;hr - JIDA;zt) + (A×U)ahu;ETA (JETA;hr;in - JIDA;zt) + qV;lea;ahu;SUP (rc)a (JSUP;hr - JIDA;zt)]×tci | G165: QA output
A166: Heat losses of the air handling units (else) | B166: Qls;V;gen | C166: kWh | D166: =IF(System_configuration!B41=2,t_ci*Method_input!E80*Method_input!E81*(IF(D81<>"-",D81,IF(D82<>"-",D82,IF(D83<>"-",D83,D84)))-Method_input!E10)+Method_input!E82*Method_input!E83*(IF(D56<>"-",D56,D57)-Method_input!E10)+Method_calculation!D45*Method_input!E139*Method_input!E135*(IF(D81<>"-",D81,IF(D82<>"-",D82,IF(D83<>"-",D83,D84)))-Method_input!E10)+D46*Method_input!E139*Method_input!E135*(IF(D56<>"-",D56,D57)-Method_input!E10),"-") -> -0.24879696 | E166: Formula (85b) | F166: Qls;V;gen = [(A×U)ahu;SUP (JSUP;hr - Jsur;nc) + (A×U)ahu;ETA (JETA;hr;in - Jsur;nc) + qV;lea;ahu;SUP (rc)a (JSUP;hr - Jsur;nc) +qV;lea;ahu;ETA (rc)a (JETA;hr;in - Jsur;nc)]×tci | G166: QA output
A167: 6.4.4.9 Recoverable generation heat losses
A168: Recoverable heat losses of the air handling units (cond) | B168: QV;ls;gen;rbl | C168: kWh | D168: =IF(System_configuration!B41=1,D165,"-") -> - | E168: Formula (86a) | F168: QV;ls;gen;rbl = QV;ls;gen | G168: Method output
A169: Recoverable heat losses of the air handling units (else) | B169: QV;ls;gen;rbl | C169: kWh | D169: =IF(System_configuration!B41=2,0,"-") -> 0 | E169: Formula (86b) | F169: QV;ls;gen;rbl = 0 | G169: Method output
A170: 6.4.4.10.1 Ventilation
A171: Auxiliary energy required ventilation system | B171: WV;aux | C171: kWh | D171: =IF(D173<>"-",D173,IF(D174<>"-",D174,D175))+IF(D178<>"-",D178,D179)+D181 -> 0.1005797497 | E171: Formula (87) | F171: WV;aux = WV;aux;hr + WV;preh + WV;aux;ctrl | G171: Method output
A172: 6.4.4.10.1.1 Heat recovery
A173: Auxiliary energy required by the heat recovery system (ROT_NH or ROT_HYG or ROT_SORP) | B173: WV;aux;hr | C173: kWh | D173: =IF(OR(System_configuration!B71=2,System_configuration!B71=3,System_configuration!B71=4),Method_input!E86*t_ci*Product_tech_data!D26/Method_input!E85,"-") -> 0.0005797497082 | E173: Formula (88a)
A174: Auxiliary energy required by the heat recovery system (PUMP_CIRC) | B174: WV;aux;hr | C174: kWh | D174: =IF(System_configuration!B71=5,D43*IF(D78="-",D79,D78)*Method_input!E87*t_ci*(MAX(Method_input!E88,Method_calculation!D151/(t_ci*Method_input!E84)))^2.5,"-") -> - | E174: Formula (88b)
A175: Auxiliary energy required by the heat recovery system (else) | B175: WV;aux;hr | C175: kWh | D175: =IF(System_configuration!B71=1,0,"-") -> - | E175: Formula (88c) | F175: WV;aux;hr = 0
A176: Portion of the fan energy consumption for the pressure drop of the heat recovery | B176: EV;gen;in;el;hr | C176: kWh | D176: =(D135*Method_input!E119)/(Method_input!E117+Method_input!E118) -> 0.01948808528 | E176: Formula (89) | G176: Method output
A177: 6.4.4.10.1.2 Frost protection
A178: Energy supplied for frost protection (Preh) | B178: WV;preh | C178: kWh | D178: =IF(System_configuration!B58=1,t_ci*(Method_input!E139*Method_input!E135*Method_calculation!D43*IF(D78="-",D79,D78)*((IF(System_configuration!B62=2,IF(System_configuration!B58=1,D99,D101),D97))-theta_e)),"-") -> 0 | E178: Formula (90a) | F178: WV;preh = [ra × ca × qv;SUP;ahu × fODA × (JODA,fp – Je)] × tci
A179: Energy supplied for frost protection (else) | B179: WV;preh | C179: kWh | D179: =IF(OR(System_configuration!B58=2,System_configuration!B58=3),0,"-") -> - | E179: Formula (90b) | F179: WV;preh = 0
A180: 6.4.4.10.1.3 Control
A181: Auxiliary energy consumption of the control components | B181: WV;aux;ctrl | C181: kWh | D181: =Method_input!E90*f_op_ctrl*t_ci -> 0.1 | E181: Formula (91) | F181: WV;aux;ctrl = S Pel;V;ctrl × fop;ctrl × tci
A182: 6.4.4.10.2 Humidification
A183: Energy consumption of the humidification pump (steam) | B183: WHU | C183: kWh | D183: =IF(System_configuration!B93=5,0,"-") -> - | E183: Formula (92a) | F183: WHU = 0 | G183: Method output
A184: Energy consumption of the humidification pump (else) | B184: WHU | C184: kWh | D184: =IF(System_configuration!B93<>5,t_ci*Method_input!E91*Method_input!E92*IF(D185<>"-",D185,IF(D186<>"-",D186,D187)),"-") -> 0 | E184: Formula (92b) | F184: WHU = qV;SUP;HU;des × pel;HU,des × fpl;HU × tci | G184: Method output
A185: Part load factor of humidification pump (no control) | B185: fpl;HU | C185: - | D185: =IF(System_configuration!B104=1,1,"-") -> - | E185: Formula (93a) | F185: fpl;HU =1
A186: Part load factor of humidification pump (on off) | B186: fpl;HU | C186: - | D186: =IF(System_configuration!B104=2,(D43*Method_input!E139*(D123-D120))/Method_input!E93,"-") -> 0 | E186: Formula (93b)
A187: Part load factor of humidification pump (speed) | B187: fpl;HU | C187: - | D187: =IF(System_configuration!B104=3,((D43*Method_input!E139*(D123-D120))/Method_input!E93)^2.5,"-") -> - | E187: Formula (93c)

Sheet Method_output
A1: THIS IS A MANDATORY SHEET Output of one step calculation shall be indicated here. Each cell in the column value shall be a reference to a single cell in the "Method_calculation" sheet. The macro will take the calculation step results and fill the values table in the "Output_series" sheet.
A4: Name | B4: Symbol | C4: Software name | D4: Unit | E4: Value | F4: Range | G4: Intended destination | H4: Varying | I4: Notes
A5: Energy flow data
A6: Ventilation generation input | B6: EV;gen;in;el | C6: E_V_gen_in_el | D6: kWh | E6: =Method_calculation!D135 -> 0.04677140466 | F6: 0...∞ | G6: M1-9, M5-4 | H6: Yes | I6: Electric energy required by fan
A7: Humidification generation input | B7: EHU;cr | C7: E_HU_cr | D7: kWh | E7: =IF(System_configuration!B93=5,Method_calculation!D159,Method_calculation!D160) -> 0 | F7: 0...∞ | G7: M1-9, M5-4 | H7: Yes | I7: Electric energy required humidifier (only for specific humidifier types)
A8: Humidification generation energy carrier indentifier | B8: GEN_CRHU;gen | C8: GEN_CR_HU_gen | D8: List | E8: =Method_input!E35 -> - | F8: 0...∞ | G8: M1–9, M5–4 | H8: No
A9: Ventilation auxiliary energy | B9: WV;aux | C9: W_V_aux | D9: kWh | E9: =Method_calculation!D171 -> 0.1005797497 | F9: 0...∞ | G9: M1-9, M5-4 | H9: Yes | I9: for heat recovery drives etc.
A10: Humidification auxiliary energy | B10: WHU;aux | C10: W_HU_aux | D10: kWh | E10: =IF(System_configuration!B93=5,Method_calculation!D183,Method_calculation!D184) -> 0 | F10: 0...∞ | G10: M1-9, M5-4 | H10: Yes | I10: for pumps etc.
A11: Recoverable duct heat losses | B11: QV;ls;dis;rbl;zt;i | C11: Q_V_ls_dis_rbl_zt_i | D11: kWh | E11: =Method_calculation!D31 -> -0.173636264 | F11: -∞...∞ | G11: M2-2 | H11: Yes | I11: Recoverable heat transfer through duct surface for heating and cooling (negative values)
A12: Recoverable AHU heat losses | B12: QV;ls;gen;rbl | C12: Q_V_ls_gen_rbl | D12: kWh | E12: =IF(System_configuration!B41=1,Method_calculation!D168,Method_calculation!D169) -> 0 | F12: -∞...∞ | G12: M2-2 | H12: Yes | I12: Recoverable heat transfer through AHU surface for heating and cooling (negative values)
A13: Required AHU heating coil input | B13: QH;ahu;in;req | C13: Q_H_ahu_in_req | D13: kWh | E13: =Method_calculation!D163 -> 1.492849611 | F13: 0...∞ | G13: M3-1 | H13: Yes | I13: Required heat to be supplied to the AHU for air heating
A14: Required AHU cooling coil output | B14: QC;ahu;out;req | C14: Q_C_ahu_out_req | D14: kWh | E14: =Method_calculation!D156 -> 2.583648167 | F14: 0...∞ | G14: M4-1 | H14: Yes | I14: Required heat to be extracted from AHU for air cooling and dehumidification
A15: Heat transferred by heat recovery | B15: Qhr | C15: Q_hr | D15: kWh | E15: =Method_calculation!D151 -> 0 | F15: -∞...∞ | G15: M5-4 | H15: Yes
A16: Heat required for the supply air without heat recovery | B16: QH;ahu;in;tot;req | C16: Q_H_ahu_in_tot_req | D16: kWh | E16: =Method_calculation!D152 -> 0 | F16: -∞...∞ | G16: M5-4 | H16: Yes
A17: Electric energy input for the pressure drop of the heat recovery | B17: EV;gen;in;el;hr | C17: E_V_gen_in_el_hr | D17: kWh | E17: =Method_calculation!D176 -> 0.01948808528 | F17: -∞...∞ | G17: M5-4 | H17: Yes
A18: Operating conditions data
A19: Required heating coil water inlet temperature | B19: JH;ahu;in;req | C19: Teta_H_ahu_in_req | D19: °C | E19: =Method_calculation!D129 -> 21.32044416 | F19: 20…90 | G19: M3-1 | H19: Yes
A20: Required cooling coil water inlet temperature | B20: JC;ahu;in;req | C20: Teta_C_ahu_in_req | D20: °C | E20: =Method_calculation!D118 -> 14.43317324 | F20: 20…90 | G20: M4-1 | H20: Yes
A21: Required cooling air supply temperature | B21: JSUP;C;req | C21: theta_SUP_C_req | D21: °C | E21: =IF(Method_calculation!D109<>"-",Method_calculation!D109,Method_calculation!D110) -> 15.9065386 | F21: 0…30 | G21: M4-1 | H21: Yes
A22: Supply volume flow rate going to ventilation zone | B22: qV;SUP;dis;zv;i | C22: q_V_SUP_dis_zv | D22: m3/h | E22: =Method_calculation!D7 -> 980.3921569 | F22: 0...∞ | G22: M5-5 | H22: Yes
A23: Extract volume flow from a ventilation zone | B23: qV;ETA;dis;zv;i | C23: q_V_ETA_dis_zv | D23: m3/h | E23: =-Method_calculation!D8 -> -980.3921569 | F23: 0...∞ | G23: M5-5 | H23: Yes
A24: Duct leakage volume flow going to a ventilation zone | B24: qV;lea;SUP;dis;zv;i | C24: q_V_lea_SUP_dis_zv_i | D24: m3/s | E24: =Method_calculation!D9 -> 19.60784314 | F24: 0...∞ | G24: M5-5 | H24: Yes
A25: Duct leakage volume flow extracted from a ventilation zone | B25: qV;lea;ETA;dis;zv;i | C25: q_V_lea_ETA_dis_zv_i | D25: m3/s | E25: =Method_calculation!D10 -> 19.60784314 | F25: 0...∞ | G25: M5-5 | H25: Yes
A26: Supply outside air fraction | B26: fODA | C26: f_ODA | D26: - | E26: =Method_calculation!D79 -> 0.909 | F26: 0…1 | G26: M5-5 | H26: Yes
A27: Supply air temperature | B27: JSUP;dis;out | C27: theta_SUP_dis_out | D27: °C | E27: =Method_calculation!D19 -> 20.39908923 | F27: -273...∞ | G27: M5-5 | H27: Yes
A28: Supply air moisture content | B28: xSUP;dis;out | C28: x_SUP_dis_out | D28: kg/kg dry air | E28: =Method_calculation!D22 -> 0.011 | F28: 0...∞ | G28: M6-2, M7-2 | H28: Yes
A29: Quality assurance data
A30: Heat transferred by ground preheating / cooling | B30: Qgnd | C30: Q_gnd | D30: kWh | E30: =Method_calculation!D149 -> 0 | F30: -∞...∞ | H30: Yes
A31: Heat transferred by recirculation | B31: QRCA | C31: Q_RCA | D31: kWh | E31: =Method_calculation!D154 -> 0.1324648294 | F31: -∞...∞ | H31: Yes
A32: Duct heat losses | B32: Qls;V;dis | C32: Q_ls_V_dis | D32: kWh | E32: =Method_calculation!D29 -> -0.1443273965 | F32: -∞...∞ | H32: Yes | I32: Heat transfer through duct surface for heating and cooling (negative values)
A33: Heat losses of the AHU | B33: Qls;V;gen | C33: Q_ls_V_gen | D33: kWh | E33: =IF(System_configuration!B41=1,Method_calculation!D165,Method_calculation!D166) -> -0.24879696 | F33: -∞...∞ | H33: Yes | I33: Heat transfer through AHU surface for heating and cooling (negative values)
A34: Required energy to be extracted for dehumidification | B34: QDHU;ahu;out;req | C34: Q_DHU_au_out_req | D34: kWh | E34: =Method_calculation!D157 -> 1.492849611 | F34: 0...∞ | H34: Yes
A35: Water use for humidification | B35: mw;HU | C35: m_w_HU | D35: kg | E35: =Method_calculation!D161 -> 0 | F35: 0...∞ | H35: Yes

Sheet Output_series
A1: Here a time series can be generated to test the method with variable input data. Data input series must be inserted in the "input_series" sheet before.
A3: Time series for data output
A4: Settings
A5: Number of output data | C5: 30
A7: This table will be filled automatically via a macro scanning the "input_series" and performing for each time step the calculation defined in the "Method_calculation" sheet.
A8: Press CLEAR OUTPUT to reset output series
A9: Press "Run method" to start calculation of individual time steps
B13: Ventilation generation input | C13: Humidification generation input | D13: Humidification generation energy carrier indentifier | E13: Ventilation auxiliary energy | F13: Humidification auxiliary energy | G13: Recoverable duct heat losses | H13: Recoverable AHU heat losses | I13: Required AHU heating coil input | J13: Required AHU cooling coil output | K13: Heat transferred by heat recovery | L13: Heat required for the supply air without heat recovery | M13: Electric energy input for the pressure drop of the heat recovery | O13: Required heating coil water inlet temperature | P13: Required cooling coil water inlet temperature | Q13: Required cooling air supply temperature | R13: Supply volume flow rate going to ventilation zone i | S13: Extract volume flow from a ventilation zone i | T13: Duct leakage volume flow going to a ventilation zone i | U13: Duct leakage volume flow extracted from a ventilation zone i | V13: Supply outside air fraction | W13: Supply air temperature | X13: Supply air moisture content | Z13: Heat transferred by ground preheating / cooling | AA13: Heat transferred by recirculation | AB13: Duct heat losses | AC13: Heat losses of the AHU | AD13: Required energy to be extracted for dehumidification | AE13: Water use for humidification
A14: Symbol | B14: EV;gen;in;el | C14: EHU;cr | D14: GEN_CRHU;gen | E14: WV;aux | F14: WHU;aux | G14: QV;ls;dis;rbl;zt;i | H14: QV;ls;gen;rbl | I14: QH;ahu;in;req | J14: QC;ahu;out;req | K14: Qhr | L14: QH;ahu;in;tot;req | M14: EV;gen;in;el;hr | O14: JH;ahu;in;req | P14: JC;ahu;in;req | Q14: JSUP;C;req | R14: qV;SUP;dis;zv;i | S14: qV;ETA;dis;zv;i | T14: qV;lea;SUP;dis;zv;i | U14: qV;lea;ETA;dis;zv;i | V14: fODA | W14: JSUP;dis;out | X14: xSUP;dis;out | Z14: Qgnd | AA14: QRCA | AB14: Qls;V;dis | AC14: Qls;V;gen | AD14: QDHU;ahu;out;req | AE14: mw;HU
A15: Unit | B15: kWh | C15: kWh | D15: List | E15: kWh | F15: kWh | G15: kWh | H15: kWh | I15: kWh | J15: kWh | K15: kWh | L15: kWh | M15: kWh | O15: °C | P15: °C | Q15: °C | R15: m3/h | S15: m3/h | T15: m3/s | U15: m3/s | V15: - | W15: °C | X15: kg/kg dry air | Z15: kWh | AA15: kWh | AB15: kWh | AC15: kWh | AD15: kWh | AE15: kg
A16: Destination | B16: M1-9, M5-4 | C16: M1-9, M5-4 | D16: M1–9, M5–4 | E16: M1-9, M5-4 | F16: M1-9, M5-4 | G16: M2-2 | H16: M2-2 | I16: M3-1 | J16: M4-1 | K16: M5-4 | L16: M5-4 | M16: M5-4 | O16: M3-1 | P16: M4-1 | Q16: M4-1 | R16: M5-5 | S16: M5-5 | T16: M5-5 | U16: M5-5 | V16: M5-5 | W16: M5-5 | X16: M5-5
A17: Time stamp | B17: Energy flow data | O17: Operating conditions data | Z17: Quality assurance data
A18: 1 | B18: 0.04677140466 | C18: 0 | D18: - | E18: 0.4114680031 | F18: 0 | G18: -0.1348264104 | H18: 0 | I18: 0.7447307237 | J18: 0 | K18: 1.795461186 | L18: 11.25642547 | M18: 0.01948808528 | O18: 23.49782486 | P18: 20.79701577 | Q18: 20.79701577 | R18: 980.3921569 | S18: -980.3921569 | T18: 19.60784314 | U18: 19.60784314 | V18: 0.255 | W18: 22.82275866 | X18: 0.007640032598 | Z18: 0 | AA18: 8.171185058 | AB18: 0.1905920203 | AC18: 0.1894024193 | AD18: 0 | AE18: 0
A19: 2 | B19: 0.04677140466 | C19: 0 | D19: - | E19: 0.378911195 | F19: 0 | G19: -0.1348262094 | H19: 0 | I19: 0.7389943941 | J19: 0 | K19: 1.82793163 | L19: 11.11855369 | M19: 0.01948808528 | O19: 23.49366424 | P19: 20.81365827 | Q19: 20.81365827 | R19: 980.3921569 | S19: -980.3921569 | T19: 19.60784314 | U19: 19.60784314 | V19: 0.255 | W19: 22.82275866 | X19: 0.007671758404 | Z19: 0 | AA19: 8.068470581 | AB19: 0.1905920203 | AC19: 0.2011495591 | AD19: 0 | AE19: 0
A20: 3 | B20: 0.04677140466 | C20: 0 | D20: - | E20: 0.3707996474 | F20: 0 | G20: -0.1348263434 | H20: 0 | I20: 0.7375603117 | J20: 0 | K20: 1.83604924 | L20: 11.08408574 | M20: 0.01948808528 | O20: 23.49262408 | P20: 20.8178189 | Q20: 20.8178189 | R20: 980.3921569 | S20: -980.3921569 | T20: 19.60784314 | U20: 19.60784314 | V20: 0.255 | W20: 22.82275866 | X20: 0.007650607867 | Z20: 0 | AA20: 8.042791962 | AB20: 0.1905920203 | AC20: 0.2040863441 | AD20: 0 | AE20: 0
A21: 4 | B21: 0.04677140466 | C21: 0 | D21: - | E21: 0.3951688726 | F21: 0 | G21: -0.1348262764 | H21: 0 | I21: 0.7418625589 | J21: 0 | K21: 1.811696408 | L21: 11.18748958 | M21: 0.01948808528 | O21: 23.49574455 | P21: 20.80533702 | Q21: 20.80533702 | R21: 980.3921569 | S21: -980.3921569 | T21: 19.60784314 | U21: 19.60784314 | V21: 0.255 | W21: 22.82275866 | X21: 0.007661183135 | Z21: 0 | AA21: 8.11982782 | AB21: 0.1905920203 | AC21: 0.1952759892 | AD21: 0 | AE21: 0
A22: 5 | B22: 0.04677140466 | C22: 0 | D22: - | E22: 0.378911195 | F22: 0 | G22: -0.1348258743 | H22: 0 | I22: 0.7389943941 | J22: 0 | K22: 1.82793163 | L22: 11.11855369 | M22: 0.01948808528 | O22: 23.49366424 | P22: 20.81365827 | Q22: 20.81365827 | R22: 980.3921569 | S22: -980.3921569 | T22: 19.60784314 | U22: 19.60784314 | V22: 0.255 | W22: 22.82275866 | X22: 0.007724634747 | Z22: 0 | AA22: 8.068470581 | AB22: 0.1905920203 | AC22: 0.2011495591 | AD22: 0 | AE22: 0
A23: 6 | B23: 0.04677140466 | C23: 0 | D23: - | E23: 0.33848896 | F23: 0 | G23: -0.1348254722 | H23: 0 | I23: 0.7318239821 | J23: 0 | K23: 1.868519684 | L23: 10.94621396 | M23: 0.01948808528 | O23: 23.48846346 | P23: 20.83446141 | Q23: 20.83446141 | R23: 980.3921569 | S23: -980.3921569 | T23: 19.60784314 | U23: 19.60784314 | V23: 0.255 | W23: 22.82275866 | X23: 0.007788086359 | Z23: 0 | AA23: 7.940077484 | AB23: 0.1905920203 | AC23: 0.2158334839 | AD23: 0 | AE23: 0
A24: 7 | B24: 0.05213326543 | C24: 0 | D24: - | E24: 0.2246990553 | F24: 0.003450153619 | G24: -0.1374762332 | H24: 0 | I24: 1.267827667 | J24: 0 | K24: 4.338753719 | L24: 11.21054844 | M24: 0.02172219393 | O24: 23.81332134 | P24: 19.52078649 | Q24: 19.52078649 | R24: 1000 | S24: -1000 | T24: 20 | U24: 20 | V24: 0.5 | W24: 22.82607604 | X24: 0.004 | Z24: 0 | AA24: 5.43915999 | AB24: 0.1919525474 | AC24: 0.2647209533 | AD24: 0 | AE24: 0.04657707386
A25: 8 | B25: 0.2949102841 | C25: 0 | D25: - | E25: 0.2273190526 | F25: 0.003000964644 | G25: -0.2723170758 | H25: 0 | I25: 2.639016115 | J25: 0 | K25: 8.657130466 | L25: 22.32582007 | M25: 0.122879285 | O25: 23.77902474 | P25: 19.24487978 | Q25: 19.24487978 | R25: 2000 | S25: -2000 | T25: 40 | U25: 40 | V25: 0.5 | W25: 22.91103936 | X25: 0.004 | Z25: 0 | AA25: 10.87252998 | AB25: 0.259463601 | AC25: 0.3638846102 | AD25: 0 | AE25: 0.04051302269
A26: 9 | B26: 0.8126771805 | C26: 0 | D26: - | E26: 0.15 | F26: 0 | G26: -0.4077312668 | H26: 0 | I26: 3.962984702 | J26: 0 | K26: 12.80165281 | L26: 32.89990267 | M26: 0.3386154919 | O26: 23.6826365 | P26: 19.09549696 | Q26: 19.09549696 | R26: 3000 | S26: -3000 | T26: 60 | U26: 60 | V26: 0.5 | W26: 22.94024174 | X26: 0.004019600046 | Z26: 0 | AA26: 16.13526517 | AB26: 0.3257557201 | AC26: 0.4673568694 | AD26: 0 | AE26: 0
A27: 10 | B27: 1.668264494 | C27: 0 | D27: - | E27: 0.15 | F27: 0.007951600585 | G27: -0.5432929761 | H27: 0 | I27: 5.284275076 | J27: 0 | K27: 16.37098675 | L27: 42.74918506 | M27: 0.6951102058 | O27: 23.54332035 | P27: 19.01929348 | Q27: 19.01929348 | R27: 4000 | S27: -4000 | T27: 80 | U27: 80 | V27: 0.5 | W27: 22.95501111 | X27: 0.004 | Z27: 0 | AA27: 21.09392323 | AB27: 0.3917385529 | AC27: 0.5646561411 | AD27: 0 | AE27: 0.1073466079
A28: 11 | B28: 1.668264494 | C28: 0 | D28: - | E28: 0.15 | F28: 0 | G28: -0.5432884704 | H28: 0 | I28: 5.050083501 | J28: 0 | K28: 15.81223784 | L28: 41.23629977 | M28: 0.6951102058 | O28: 23.51533281 | P28: 19.13124365 | Q28: 19.13124365 | R28: 4000 | S28: -4000 | T28: 80 | U28: 80 | V28: 0.5 | W28: 22.95501111 | X28: 0.004174270421 | Z28: 0 | AA28: 20.37397843 | AB28: 0.3917385529 | AC28: 0.580383619 | AD28: 0 | AE28: 0
A29: 12 | B29: 0.2949102841 | C29: 0 | D29: - | E29: 0.15 | F29: 0 | G29: -0.2723132411 | H29: 0 | I29: 2.441103196 | J29: 0 | K29: 8.084707038 | L29: 20.49840922 | M29: 0.122879285 | O29: 23.71986601 | P29: 19.48151468 | Q29: 19.48151468 | R29: 2000 | S29: -2000 | T29: 40 | U29: 40 | V29: 0.5 | W29: 22.91103936 | X29: 0.004296640538 | Z29: 0 | AA29: 9.972598984 | AB29: 0.259463601 | AC29: 0.3932224775 | AD29: 0 | AE29: 0
A30: 13 | B30: 0.8126771805 | C30: 0 | D30: - | E30: 0.15 | F30: 0 | G30: -0.4077247083 | H30: 0 | I30: 3.628311679 | J30: 0 | K30: 11.51645003 | L30: 29.66015108 | M30: 0.3386154919 | O30: 23.60515995 | P30: 19.40540315 | Q30: 19.40540315 | R30: 3000 | S30: -3000 | T30: 60 | U30: 60 | V30: 0.5 | W30: 22.94024174 | X30: 0.004357825597 | Z30: 0 | AA30: 14.51538937 | AB30: 0.3257557201 | AC30: 0.5027217562 | AD30: 0 | AE30: 0
A31: 14 | B31: 1.668264494 | C31: 0 | D31: - | E31: 0.15 | F31: 0 | G31: -0.5432866249 | H31: 0 | I31: 4.743811327 | J31: 0 | K31: 14.7506149 | L31: 38.50050954 | M31: 0.6951102058 | O31: 23.46215648 | P31: 19.34394897 | Q31: 19.34394897 | R31: 4000 | S31: -4000 | T31: 80 | U31: 80 | V31: 0.5 | W31: 22.95501111 | X31: 0.004245652989 | Z31: 0 | AA31: 19.00608332 | AB31: 0.3917385529 | AC31: 0.6102658271 | AD31: 0 | AE31: 0
A32: 15 | B32: 1.668264494 | C32: 0 | D32: - | E32: 0.15 | F32: 0 | G32: -0.5432839883 | H32: 0 | I32: 4.743811327 | J32: 0 | K32: 14.7506149 | L32: 38.50050954 | M32: 0.6951102058 | O32: 23.46215648 | P32: 19.34394897 | Q32: 19.34394897 | R32: 4000 | S32: -4000 | T32: 80 | U32: 80 | V32: 0.5 | W32: 22.95501111 | X32: 0.004347628087 | Z32: 0 | AA32: 19.00608332 | AB32: 0.3917385529 | AC32: 0.6102658271 | AD32: 0 | AE32: 0
A33: 16 | B33: 0.2949102841 | C33: 0 | D33: - | E33: 0.15 | F33: 0 | G33: -0.2723123183 | H33: 0 | I33: 2.332070196 | J33: 0 | K33: 7.6177842 | L33: 19.34649754 | M33: 0.122879285 | O33: 23.68200443 | P33: 19.63296101 | Q33: 19.63296101 | R33: 2000 | S33: -2000 | T33: 40 | U33: 40 | V33: 0.5 | W33: 22.91103936 | X33: 0.004368023107 | Z33: 0 | AA33: 9.396643146 | AB33: 0.259463601 | AC33: 0.4065108648 | AD33: 0 | AE33: 0
A34: 17 | B34: 0.05213326543 | C34: 0 | D34: - | E34: 0.15 | F34: 0 | G34: -0.1374736567 | H34: 0 | I34: 1.096836455 | J34: 0 | K34: 3.83294169 | L34: 9.559000237 | M34: 0.02172219393 | O34: 23.71656476 | P34: 19.90781283 | Q34: 19.90781283 | R34: 1000 | S34: -1000 | T34: 20 | U34: 20 | V34: 0.5 | W34: 22.82607604 | X34: 0.004398615636 | Z34: 0 | AA34: 4.629222092 | AB34: 0.1919525474 | AC34: 0.3012003472 | AD34: 0 | AE34: 0
A35: 18 | B35: 0.04677140466 | C35: 0 | D35: - | E35: 0.15 | F35: 0 | G35: -0.1348241294 | H35: 0 | I35: 3.908305446 | J35: 3.336039108 | K35: 1.877129334 | L35: 9.084944908 | M35: 0.01948808528 | O35: 25.79240225 | P35: 9.258598976 | Q35: 11.61870623 | R35: 980.3921569 | S35: -980.3921569 | T35: 19.60784314 | U35: 19.60784314 | V35: 0.255 | W35: 22.82258579 | X35: 0.007999992119 | Z35: 0 | AA35: 6.553432041 | AB35: 0.1905898075 | AC35: 0.3066424656 | AD35: 3.253993107 | AE35: 0
A36: 19 | B36: 0.04677140466 | C36: 0 | D36: - | E36: 0.15 | F36: 0 | G36: -0.1348241294 | H36: 0 | I36: 3.909302815 | J36: 3.346935133 | K36: 1.884484578 | L36: 9.119412853 | M36: 0.01948808528 | O36: 25.79312565 | P36: 9.256022115 | Q36: 11.61581261 | R36: 980.3921569 | S36: -980.3921569 | T36: 19.60784314 | U36: 19.60784314 | V36: 0.255 | W36: 22.82253964 | X36: 0.007999990015 | Z36: 0 | AA36: 6.57911066 | AB36: 0.1905892167 | AC36: 0.3061460089 | AD36: 3.253575402 | AE36: 0
A37: 20 | B37: 0.04677140466 | C37: 0 | D37: - | E37: 0.15 | F37: 0 | G37: -0.1348241294 | H37: 0 | I37: 3.909617033 | J37: 3.348081816 | K37: 1.891839822 | L37: 9.153880799 | M37: 0.01948808528 | O37: 25.79335356 | P37: 9.255922744 | Q37: 11.61490099 | R37: 980.3921569 | S37: -980.3921569 | T37: 19.60784314 | U37: 19.60784314 | V37: 0.255 | W37: 22.82253041 | X37: 0.007999989594 | Z37: 0 | AA37: 6.60478928 | AB37: 0.1905890986 | AC37: 0.3056495523 | AD37: 3.252459338 | AE37: 0
A38: 21 | B38: 0.04677140466 | C38: 0 | D38: - | E38: 0.15 | F38: 0 | G38: -0.1348241294 | H38: 0 | I38: 3.909418828 | J38: 3.341916434 | K38: 1.899195065 | L38: 9.188348744 | M38: 0.01948808528 | O38: 25.7932098 | P38: 9.257681701 | Q38: 11.61547603 | R38: 980.3921569 | S38: -980.3921569 | T38: 19.60784314 | U38: 19.60784314 | V38: 0.255 | W38: 22.82254887 | X38: 0.007999990436 | Z38: 0 | AA38: 6.630467899 | AB38: 0.1905893349 | AC38: 0.3051530956 | AD38: 3.250819448 | AE38: 0
A39: 22 | B39: 0.04677140466 | C39: 0 | D39: - | E39: 0.15 | F39: 0 | G39: -0.1348241294 | H39: 0 | I39: 3.909220646 | J39: 3.335751075 | K39: 1.906550309 | L39: 9.22281669 | M39: 0.01948808528 | O39: 25.79306606 | P39: 9.259440575 | Q39: 11.616051 | R39: 980.3921569 | S39: -980.3921569 | T39: 19.60784314 | U39: 19.60784314 | V39: 0.255 | W39: 22.82256733 | X39: 0.007999991278 | Z39: 0 | AA39: 6.656146518 | AB39: 0.1905895712 | AC39: 0.304656639 | AD39: 3.249179581 | AE39: 0
A40: 23 | B40: 0.04677140466 | C40: 0 | D40: - | E40: 0.15 | F40: 0 | G40: -0.1348241294 | H40: 0 | I40: 3.909056461 | J40: 3.313383109 | K40: 1.950681771 | L40: 9.429624362 | M40: 0.01948808528 | O40: 25.79294697 | P40: 9.266276942 | Q40: 11.61652735 | R40: 980.3921569 | S40: -980.3921569 | T40: 19.60784314 | U40: 19.60784314 | V40: 0.255 | W40: 22.82262271 | X40: 0.007999993802 | Z40: 0 | AA40: 6.810218234 | AB40: 0.1905902801 | AC40: 0.3016778991 | AD40: 3.240388092 | AE40: 0
A41: 24 | B41: 0.04677140466 | C41: 0 | D41: - | E41: 0.15 | F41: 0 | G41: -0.1348241294 | H41: 0 | I41: 3.909261261 | J41: 3.299617854 | K41: 1.98745799 | L41: 9.601964089 | M41: 0.01948808528 | O41: 25.79309551 | P41: 9.270735006 | Q41: 11.61593317 | R41: 980.3921569 | S41: -980.3921569 | T41: 19.60784314 | U41: 19.60784314 | V41: 0.255 | W41: 22.8226504 | X41: 0.007999995065 | Z41: 0 | AA41: 6.938611331 | AB41: 0.1905906346 | AC41: 0.2991956158 | AD41: 3.233411076 | AE41: 0
A42: 25 | B42: 0.04677140466 | C42: 0 | D42: - | E42: 0.1005797497 | F42: 0 | G42: -0.173636264 | H42: 0 | I42: 1.715767521 | J42: 3.203949663 | K42: 0 | L42: 0 | M42: 0.01948808528 | O42: 21.8821291 | P42: 14.37474854 | Q42: 15.65979883 | R42: 980.3921569 | S42: -980.3921569 | T42: 19.60784314 | U42: 19.60784314 | V42: 0.909 | W42: 20.79908923 | X42: 0.011 | Z42: 0 | AA42: 0.1638306598 | AB42: -0.1392071889 | AC42: -0.279224217 | AD42: 1.715767521 | AE42: 0
A43: 26 | B43: 0.04677140466 | C43: 0 | D43: - | E43: 0.1005797497 | F43: 0 | G43: -0.173636264 | H43: 0 | I43: 1.706937071 | J43: 3.042087071 | K43: 0 | L43: 0 | M43: 0.01948808528 | O43: 21.87572427 | P43: 14.40677267 | Q43: 15.68541814 | R43: 980.3921569 | S43: -980.3921569 | T43: 19.60784314 | U43: 19.60784314 | V43: 0.909 | W43: 20.79908923 | X43: 0.011 | Z43: 0 | AA43: 0.1638306598 | AB43: -0.1392071889 | AC43: -0.279224217 | AD43: 1.706937071 | AE43: 0
A44: 27 | B44: 0.04677140466 | C44: 0 | D44: - | E44: 0.1017228625 | F44: 0 | G44: -0.173636264 | H44: 0 | I44: 1.806068152 | J44: 2.985793046 | K44: 0.3000488792 | L44: 0.3300867758 | M44: 0.01948808528 | O44: 22.26762519 | P44: 14.40785231 | Q44: 15.71781445 | R44: 980.3921569 | S44: -980.3921569 | T44: 19.60784314 | U44: 19.60784314 | V44: 0.909 | W44: 21.11908923 | X44: 0.011 | Z44: 0 | AA44: 0.188923324 | AB44: -0.1351110227 | AC44: -0.274426963 | AD44: 1.806068152 | AE44: 0
A45: 28 | B45: 0.04677140466 | C45: 0 | D45: - | E45: 0.102417683 | F45: 0 | G45: -0.173636264 | H45: 0 | I45: 1.856142701 | J45: 3.043519202 | K45: 0.4755045084 | L45: 0.52310727 | M45: 0.01948808528 | O45: 22.46394484 | P45: 14.38625405 | Q45: 15.73253585 | R45: 980.3921569 | S45: -980.3921569 | T45: 19.60784314 | U45: 19.60784314 | V45: 0.909 | W45: 21.27908923 | X45: 0.011 | Z45: 0 | AA45: 0.2014696561 | AB45: -0.1330629396 | AC45: -0.2695586018 | AD45: 1.856142701 | AE45: 0
A46: 29 | B46: 0.04677140466 | C46: 0 | D46: - | E46: 0.1027744897 | F46: 0 | G46: -0.173636264 | H46: 0 | I46: 1.87611382 | J46: 2.979322643 | K46: 0.5632323231 | L46: 0.6196175171 | M46: 0.01948808528 | O46: 22.55843013 | P46: 14.39382763 | Q46: 15.75459472 | R46: 980.3921569 | S46: -980.3921569 | T46: 19.60784314 | U46: 19.60784314 | V46: 0.909 | W46: 21.35908923 | X46: 0.011 | Z46: 0 | AA46: 0.2077428222 | AB46: -0.1320388981 | AC46: -0.2671244213 | AD46: 1.87611382 | AE46: 0
A47: 30 | B47: 0.04677140466 | C47: 0 | D47: - | E47: 0.1008827746 | F47: 0 | G47: -0.173636264 | H47: 0 | I47: 1.749757873 | J47: 3.02895366 | K47: 0.08072934258 | L47: 0.08881115795 | M47: 0.01948808528 | O47: 22.0267827 | P47: 14.41206479 | Q47: 15.68118444 | R47: 980.3921569 | S47: -980.3921569 | T47: 19.60784314 | U47: 19.60784314 | V47: 0.909 | W47: 20.91908923 | X47: 0.011 | Z47: 0 | AA47: 0.1732404089 | AB47: -0.1376711265 | AC47: -0.2805124144 | AD47: 1.749757873 | AE47: 0
A48: 31 | B48: 0.05213326543 | C48: 0 | D48: - | E48: 0.1005797497 | F48: 0 | G48: -0.1769501408 | H48: 0 | I48: 1.445664992 | J48: 3.902490032 | K48: 0 | L48: 0 | M48: 0.02172219393 | O48: 20.87882537 | P48: 14.14846297 | Q48: 15.85877038 | R48: 1000 | S48: -1000 | T48: 20 | U48: 20 | V48: 0.909 | W48: 20.03684213 | X48: 0.011 | Z48: 0 | AA48: 0.1089979764 | AB48: -0.150785621 | AC48: -0.2231649 | AD48: 1.445664992 | AE48: 0
A49: 32 | B49: 0.2949102841 | C49: 0 | D49: - | E49: 0.1005797497 | F49: 0 | G49: -0.345442832 | H49: 0 | I49: 2.250378308 | J49: 9.464390342 | K49: 0 | L49: 0 | M49: 0.122879285 | O49: 19.89363701 | P49: 13.88303833 | Q49: 15.98643067 | R49: 2000 | S49: -2000 | T49: 40 | U49: 40 | V49: 0.909 | W49: 19.2995337 | X49: 0.011 | Z49: 0 | AA49: 0.1143090941 | AB49: -0.2619949478 | AC49: -0.2393293383 | AD49: 2.250378308 | AE49: 0
A50: 33 | B50: 0.8126771805 | C50: 0 | D50: - | E50: 0.15 | F50: 0 | G50: -0.5135990276 | H50: 0 | I50: 2.857819605 | J50: 17.09390238 | K50: -0.01356577321 | L50: 0 | M50: 0.3386154919 | O50: 19.42679163 | P50: 13.58069427 | Q50: 16.11887644 | R50: 3000 | S50: -3000 | T50: 60 | U50: 60 | V50: 0.5 | W50: 19.03993967 | X50: 0.01099999998 | Z50: 0 | AA50: -0.01709836622 | AB50: -0.3731418996 | AC50: -0.1972354606 | AD50: 2.857820106 | AE50: 0
A51: 34 | B51: 1.668264494 | C51: 0 | D51: - | E51: 0.15 | F51: 0 | G51: -0.6816693421 | H51: 0 | I51: 3.548798209 | J51: 22.71268907 | K51: -1.057244875 | L51: 0 | M51: 0.6951102058 | O51: 19.25467302 | P51: 13.56243762 | Q51: 16.17388282 | R51: 4000 | S51: -4000 | T51: 80 | U51: 80 | V51: 0.5 | W51: 19.03004925 | X51: 0.01099999998 | Z51: 0 | AA51: -1.362254003 | AB51: -0.4778733162 | AC51: -0.1939185133 | AD51: 3.548798919 | AE51: 0
A52: 35 | B52: 1.668264494 | C52: 0 | D52: - | E52: 0.15 | F52: 0 | G52: -0.6816693421 | H52: 0 | I52: 3.512517207 | J52: 22.8412748 | K52: -2.062992925 | L52: 0 | M52: 0.6951102058 | O52: 19.24837375 | P52: 13.54355638 | Q52: 16.19907989 | R52: 4000 | S52: -4000 | T52: 80 | U52: 80 | V52: 0.5 | W52: 19.03004923 | X52: 0.01099999998 | Z52: 0 | AA52: -2.658154639 | AB52: -0.4778733175 | AC52: -0.165609053 | AD52: 3.512517959 | AE52: 0
A53: 36 | B53: 0.2949102841 | C53: 0 | D53: - | E53: 0.15 | F53: 0 | G53: -0.345442832 | H53: 0 | I53: 1.953154382 | J53: 11.62939448 | K53: -1.591979818 | L53: 0 | M53: 0.122879285 | O53: 19.55042635 | P53: 13.53380756 | Q53: 16.15927333 | R53: 2000 | S53: -2000 | T53: 40 | U53: 40 | V53: 0.5 | W53: 19.05953324 | X53: 0.01099999998 | Z53: 0 | AA53: -1.963729328 | AB53: -0.2682620939 | AC53: -0.1174761868 | AD53: 1.953154768 | AE53: 0
A54: 37 | B54: 0.8126771805 | C54: 0 | D54: - | E54: 0.15 | F54: 0 | G54: -0.5135990276 | H54: 0 | I54: 2.788761687 | J54: 17.77908412 | K54: -2.755331688 | L54: 0 | M54: 0.3386154919 | O54: 19.41080478 | P54: 13.49534524 | Q54: 16.18282385 | R54: 3000 | S54: -3000 | T54: 60 | U54: 60 | V54: 0.5 | W54: 19.03993956 | X54: 0.01099999998 | Z54: 0 | AA54: -3.472833397 | AB54: -0.373141904 | AC54: -0.1217903687 | AD54: 2.788762331 | AE54: 0
A55: 38 | B55: 1.668264494 | C55: 0 | D55: - | E55: 0.15 | F55: 0 | G55: -0.6816693421 | H55: 0 | I55: 3.384846485 | J55: 21.87096259 | K55: -3.795114567 | L55: 0 | M55: 0.6951102058 | O55: 19.226207 | P55: 13.56762878 | Q55: 16.28774691 | R55: 4000 | S55: -4000 | T55: 80 | U55: 80 | V55: 0.5 | W55: 19.03004926 | X55: 0.01099999998 | Z55: 0 | AA55: -4.889983514 | AB55: -0.4778733159 | AC55: -0.1168538713 | AD55: 3.384847185 | AE55: 0
A56: 39 | B56: 1.668264494 | C56: 0 | D56: - | E56: 0.15 | F56: 0 | G56: -0.6816693421 | H56: 0 | I56: 3.288468815 | J56: 20.36787183 | K56: -4.130363917 | L56: 0 | M56: 0.6951102058 | O56: 19.20947348 | P56: 13.63450384 | Q56: 16.35468098 | R56: 4000 | S56: -4000 | T56: 80 | U56: 80 | V56: 0.5 | W56: 19.03004935 | X56: 0.01099999999 | Z56: 0 | AA56: -5.321950392 | AB56: -0.4778733114 | AC56: -0.1074173845 | AD56: 3.288469367 | AE56: 0
A57: 40 | B57: 0.2949102841 | C57: 0 | D57: - | E57: 0.15 | F57: 0 | G57: -0.345442832 | H57: 0 | I57: 1.849295519 | J57: 10.12046586 | K57: -2.204816043 | L57: 0 | M57: 0.122879285 | O57: 19.51436148 | P57: 13.66443858 | Q57: 16.30353281 | R57: 2000 | S57: -2000 | T57: 40 | U57: 40 | V57: 0.5 | W57: 19.05953341 | X57: 0.01099999999 | Z57: 0 | AA57: -2.719671366 | AB57: -0.2682620895 | AC57: -0.1000351785 | AD57: 1.849295762 | AE57: 0
A58: 41 | B58: 0.05213326543 | C58: 0 | D58: - | E58: 0.15 | F58: 0 | G58: -0.1769501408 | H58: 0 | I58: 0.9746372262 | J58: 5.160178372 | K58: -0.9645854737 | L58: 0 | M58: 0.02172219393 | O58: 19.63169768 | P58: 13.66307613 | Q58: 16.24728116 | R58: 1000 | S58: -1000 | T58: 20 | U58: 20 | V58: 0.5 | W58: 19.11684184 | X58: 0.01099999999 | Z58: 0 | AA58: -1.164974775 | AB58: -0.162797632 | AC58: -0.08689597502 | AD58: 0.9746373481 | AE58: 0
A59: 42 | B59: 0.04677140466 | C59: 0 | D59: - | E59: 0.15 | F59: 0 | G59: -0.173636264 | H59: 0 | I59: 0.9772857913 | J59: 5.383808397 | K59: -0.3439885008 | L59: 0 | M59: 0.01948808528 | O59: 19.66649975 | P59: 13.59844425 | Q59: 16.12231623 | R59: 980.3921569 | S59: -980.3921569 | T59: 19.60784314 | U59: 19.60784314 | V59: 0.255 | W59: 19.11908869 | X59: 0.01099999998 | Z59: 0 | AA59: -1.200932307 | AB59: -0.160712068 | AC59: -0.09707775193 | AD59: 0.9772860076 | AE59: 0
A60: 43 | B60: 0.04677140466 | C60: 0 | D60: - | E60: 0.15 | F60: 0 | G60: -0.173636264 | H60: 0 | I60: 0.9691570413 | J60: 5.184716093 | K60: -0.2483703329 | L60: 0 | M60: 0.01948808528 | O60: 19.66060387 | P60: 13.64144566 | Q60: 16.14589974 | R60: 980.3921569 | S60: -980.3921569 | T60: 19.60784314 | U60: 19.60784314 | V60: 0.255 | W60: 19.11908877 | X60: 0.01099999998 | Z60: 0 | AA60: -0.8671102561 | AB60: -0.1607120669 | AC60: -0.1035316884 | AD60: 0.9691572249 | AE60: 0
A61: 44 | B61: 0.04677140466 | C61: 0 | D61: - | E61: 0.15 | F61: 0 | G61: -0.173636264 | H61: 0 | I61: 0.9723361126 | J61: 5.148942401 | K61: -0.07184448463 | L61: 0 | M61: 0.01948808528 | O61: 19.66290969 | P61: 13.65488034 | Q61: 16.13667647 | R61: 980.3921569 | S61: -980.3921569 | T61: 19.60784314 | U61: 19.60784314 | V61: 0.255 | W61: 19.1190888 | X61: 0.01099999998 | Z61: 0 | AA61: -0.2508233924 | AB61: -0.1607120666 | AC61: -0.1154466479 | AD61: 0.972336286 | AE61: 0
A62: 45 | B62: 0.04677140466 | C62: 0 | D62: - | E62: 0.1005797497 | F62: 0 | G62: -0.173636264 | H62: 0 | I62: 0.9584618397 | J62: 3.891837029 | K62: 0 | L62: 0 | M62: 0.01948808528 | O62: 19.65284652 | P62: 13.97116144 | Q62: 16.17692915 | R62: 980.3921569 | S62: -980.3921569 | T62: 19.60784314 | U62: 19.60784314 | V62: 0.909 | W62: 19.11908923 | X62: 0.011 | Z62: 0 | AA62: 0.03209417244 | AB62: -0.1607120611 | AC62: -0.1514297375 | AD62: 0.9584618397 | AE62: 0
A63: 46 | B63: 0.04677140466 | C63: 0 | D63: - | E63: 0.1005797497 | F63: 0 | G63: -0.173636264 | H63: 0 | I63: 1.194909058 | J63: 3.368544838 | K63: 0 | L63: 0 | M63: 0.01948808528 | O63: 20.38434442 | P63: 14.16367191 | Q63: 16.05093753 | R63: 980.3921569 | S63: -980.3921569 | T63: 19.60784314 | U63: 19.60784314 | V63: 0.909 | W63: 19.67908923 | X63: 0.011 | Z63: 0 | AA63: 0.07600633488 | AB63: -0.1535437704 | AC63: -0.1940278973 | AD63: 1.194909058 | AE63: 0
A64: 47 | B64: 0.04677140466 | C64: 0 | D64: - | E64: 0.1005797497 | F64: 0 | G64: -0.173636264 | H64: 0 | I64: 1.358042946 | J64: 2.888443741 | K64: 0 | L64: 0 | M64: 0.01948808528 | O64: 20.90266732 | P64: 14.32205742 | Q64: 15.97764594 | R64: 980.3921569 | S64: -980.3921569 | T64: 19.60784314 | U64: 19.60784314 | V64: 0.909 | W64: 20.07908923 | X64: 0.011 | Z64: 0 | AA64: 0.1073721652 | AB64: -0.1484235627 | AC64: -0.2244551543 | AD64: 1.358042946 | AE64: 0
A65: 48 | B65: 0.04677140466 | C65: 0 | D65: - | E65: 0.1005797497 | F65: 0 | G65: -0.173636264 | H65: 0 | I65: 1.492849611 | J65: 2.583648167 | K65: 0 | L65: 0 | M65: 0.01948808528 | O65: 21.32044416 | P65: 14.43317324 | Q65: 15.9065386 | R65: 980.3921569 | S65: -980.3921569 | T65: 19.60784314 | U65: 19.60784314 | V65: 0.909 | W65: 20.39908923 | X65: 0.011 | Z65: 0 | AA65: 0.1324648294 | AB65: -0.1443273965 | AC65: -0.24879696 | AD65: 1.492849611 | AE65: 0

Sheet Graphs
A2: Energy flow data
A42: Operating conditions data
A82: Quality assurance data

Sheet Greek_to_soft
B2: Greek | C2: Software | D2: Greek capital | E2: Software
B3: α | C3: alpha | D3: (A) | E3: A
B4: β | C4: beta | D4: (B) | E4: B
B5: γ | C5: gamma | D5: Γ | E5: Gamma
B6: δ | C6: delta | D6: Δ | E6: Delta
B7: ε | C7: epsilon | D7: (Ε) | E7: E
B8: ζ | C8: zeta | D8: (Ζ) | E8: Z
B9: η | C9: eta | D9: (Η) | E9: H
B10: ϑ (var. θ) | C10: theta | D10: Θ | E10: Theta
B11: (ι) | C11: iota | D11: (Ι) | E11: I
B12: (κ) | C12: kappa | D12: (Κ) | E12: K
B13: λ | C13: lambda | D13: Λ | E13: Lambda
B14: μ | C14: mu | D14: (Μ) | E14: M
B15: (ν) | C15: nu | D15: (Ν) | E15: N
B16: ξ | C16: xi | D16: Ξ | E16: XI
B17: (ο) | C17: omicron | D17: (Ο) | E17: O
B18: π | C18: pi | D18: Π | E18: Pi
B19: ρ | C19: rho | D19: (Ρ) | E19: P
B20: σ (var. ς) | C20: sigma | D20: Σ | E20: Sigma
B21: (τ) | C21: tau | D21: (Τ) | E21: T
B22: (υ) | C22: upsilon | D22: Υ | E22: Y
B23: φ (var. ϕ) | C23: phi | D23: Φ | E23: Phi
B24: (χ) | C24: chi | D24: (Χ) | E24: X
B25: ψ | C25: psi | D25: Ψ | E25: Psi
B26: ω | C26: omega | D26: Ω | E26: Omega
C28: Do not use these letters: risk of confusion with latin alphabet

Sheet Symbols
D2: Symbol | E2: Meaning | F2: Unit
D3: A | E3: area | F3: m²
D4: b | E4: temperature reduction factor | F4: -
D5: C | E5: heat capacity | F5: J/K a)
D6: c | E6: specific heat capacity | F6: J/(kg•K) a)
D7: c | E7: coefficient d) | F7: various
D8: d | E8: thickness | F8: m
D9: D | E9: diameter | F9: m
D10: E | E10: energy in general e) | F10: kg, m3, (kW•h), J a) b)
D11: EP | E11: energy performance indicator | F11: J/(m2•a),
F12: kg/(m2•a),
F13: €/(m2•a) a) c)
D14: f | E14: factor (e.g. primary energy factor, policy factor, …) | F14: – d)
D15: H | E15: heat transfer coefficient | F15: W/K
D16: H | E16: calorific value | F16: MJ/kg
D17: h | E17: surface coefficient of heat transfer | F17: W/(m²•K)
D18: I | E18: solar irradiance | F18: W/m2
D19: k | E19: coefficient | F19: d)
D20: K | E20: CO2 emission coefficient | F20: kg/J; g/(kW•h)
D21: L | E21: length | F21: m
D22: m | E22: mass (e.g. quantity of CO2 emissions) | F22: kg
D23: n | E23: air exchange rate | F23: 1/h
D24: N | E24: number of items (integer only) | F24: –
D25: O | E25: occupancy | F25: persons
D26: p | E26: pressure | F26: Pa
D27: P | E27: power in general including electrical power | F27: W
D28: Q | E28: quantity of heat | F28: J, (kW•h) a)
D29: q | E29: volumetric airflow rate | F29: m3/s
D30: q | E30: heat flow density | F30: W/m²
D31: R | E31: thermal resistance | F31: m²·K/W
D32: RER | E32: renewable energy ratio | F32: –
D33: T | E33: thermodynamic temperature | F33: K
D34: t | E34: time, period of time | F34: s a)
D35: U | E35: thermal transmittance | F35: W/(m²•K)
D36: V | E36: volume | F36: m³
D37: W | E37: (electrical) auxiliary energy | F37: (kW•h), J a)
D38: x | E38: mixing ratio | F38: %kg/kg
D39: X | E39: volume fraction | F39: %
D40: X, Y | E40: any property, system, … | F40: –
D41: Δ | E41: delta (difference) prefix to be combined with symbols | F41: various
D42: h | E42: efficiency factor | F42: -
D43: φ | E43: relative humidity | F43: %
D44: ϑ | E44: Celsius temperature | F44: °C
D45: ψ | E45: linear thermal transmittance | F45: W/(m•K)
D46: Φ | E46: heat flow rate, thermal power | F46: W
D47: χ | E47: point thermal transmittance | F47: W/K
D48: ρ | E48: density | F48: kg/m³
D49: τ | E49: time constant | F49: s a)
D50: τ | E50: light transmittance | F50: ?
D51: … | E51: … your new symbol … | F51: …
D58: a) | E58: Hours (h) may be used as the unit of time instead of seconds for all quantities involving time (i.e. for time periods as well as for air change rates), but in that case the unit of energy is (W•h) instead of J.
D59: b) | E59: The unit depends on the type of energy carrier.
D60: c) | E60: The unit depends on the indicator chosen
D61: d) | E61: Coefficients have dimensions; factors are dimensionless.
D62: e) | E62: Including primary energy and energy carriers; note that for heat the symbol Q and for auxiliary energy and work the symbol W is used.

Sheet Subs_building
B2: COMMON SUBSCRIPTS: BUILDING
B4: Level 1 | D4: Level 2 | F4: Level 3
B5: Service | D5: Building | F5: Utilised or non-utilised
B6: H | C6: heating | D6: nd | E6: need | F6: ut | G6: utilised
B7: C | C7: cooling | D7: ht | E7: heat transfer | F7: nut | G7: non-utilised
B8: W | C8: DHW | D8: tr | E8: transmission heat transfer | F8: … | G8: … your new subscript
B9: V | C9: ventilation | D9: ve | E9: ventilation heat transfer
B10: HU | C10: Humidification | D10: gn | E10: gains
B11: DHU | C11: Dehumidification | D11: sol | E11: solar
B12: L | C12: lighting | D12: int | E12: internal
B13: BAC | C13: Building automation and control | D13: sens | E13: sensible
B14: E | C14: Photovoltaic, wind | D14: lat | E14: latent
B15: XY | C15: combination of H, C, W | D15: … | E15: … your new subscript
B16: EPus | C16: EPB services
B17: nEPus | C17: non EPB services
B18: TOT | C18: total
B19: A | C19: appliances
B20: T | C20: transport
B21: … | C21: … your new subscript
B28: Please insert any new subscript in the yellow field

Sheet Subs_system
B2: COMMON SUBSCRIPTS: ENERGY EXCHANGE BETWEEN SUBSYSTEMS
B4: Level 1 | D4: Level 2 | F4: Level 3 | H4: Level 4 | J4: Level 5
B5: Service | D5: Technical building system | F5: Balance item | H5: Balance item specification | J5: Destination of recovery (service)
B6: H | C6: heating | D6: us | E6: use | F6: ls | G6: losses | H6: rbl | I6: recoverable | J6: H | K6: heating
B7: C | C7: cooling | D7: sys | E7: system | F7: aux | G7: auxiliary | H7: rvd | I7: recovered | J7: C | K7: cooling
B8: W | C8: DHW | D8: em | E8: emission | F8: in | G8: input | H8: nrbl | I8: non-recoverable | J8: W | K8: DHW
B9: V | C9: ventilation | D9: dis | E9: distribution | F9: out | G9: output | H9: nrvd | I9: non-recovered | J9: V | K9: ventilation
B10: HU | C10: Humidification | D10: sto | E10: storage | F10: … | G10: … your new subscript | H10: … | I10: … your new subscript | J10: HU | K10: Humidification
B11: DHU | C11: Dehumidification | D11: nod | E11: node | J11: DHU | K11: Dehumidification
B12: L | C12: lighting | D12: gen | E12: generation | J12: L | K12: lighting
B13: BAC | C13: BAC | D13: hum | E13: humidification a | J13: BAC | K13: BAC
B14: E | C14: Photovoltaic, wind | D14: dhum | E14: dehumidification a | J14: E | K14: Photovoltaic, wind
B15: XY | C15: combination of H, C, W | D15: hp | E15: heat pump | J15: XY | K15: combination of H, C, W
B16: EPus | C16: EPBD services | D16: blr | E16: boiler | J16: EPus | K16: EPBD services
B17: nEPus | C17: non EPBD services | D17: cgn | E17: cogeneration | J17: nEPus | K17: non EPBD services
B18: TOT | C18: total | D18: ts | E18: thermal solar | J18: TOT | K18: total
B19: A | C19: appliances | D19: pv | E19: Photovoltaic | J19: A | K19: appliances
B20: T | C20: transport | D20: lrh | E20: local and radiant heaters | J20: T | K20: transport
B21: … | C21: … your new subscript | D21: … | E21: … your new subscript | J21: … | K21: … your new subscript
B26: Please insert any new subscript in the yellow field

Sheet Subs_del_EP
B2: COMMON SUBSCRIPTS: ENERGY FLOWS AT ASSESSMENT BOUNDARY
B4: Level 1 | D4: Level 2 | F4: Level 3
B5: Type of energy flow | D5: Energy carrier | F5: Qualifier
F6: which service
B7: del | C7: delivered | D7: gas | E7: gas | F7: H | G7: heating
B8: exp | C8: exported | D8: oil | E8: oil | F8: C | G8: cooling
B9: pr | C9: produced | D9: el | E9: electricity | F9: W | G9: DHW
B10: EPus | C10: used for EPBD services | D10: wd | E10: wood | F10: V | G10: ventilation
B11: nEPus | C11: used for services other than EPBD | D11: dh | E11: district heating | F11: HU | G11: Humidification
B12: … | C12: … your new subscript | D12: dc | E12: district cooling | F12: DHU | G12: Dehumidification
D13: sf | E13: solid fuel | F13: L | G13: lighting
D14: lf | E14: liquid fuel | F14: BAC | G14: BAC
D15: bm | E15: biomass | F15: E | G15: Photovoltaic, wind
D16: sol | E16: solar heat | F16: XY | G16: combination of H, C, W
D17: pv | E17: solar electricity | F17: EPus | G17: EPBD services
D18: ah | E18: Heat from surroundings | F18: nEPus | G18: non EPBD services
D19: wnd | E19: wind | F19: TOT | G19: total
D20: cr | E20: carrier (generic) | F20: A | G20: appliances
D21: … | E21: … your new subscript | F21: T | G21: transport
F22: … | G22: … your new subscript
F24: Qualifier
F25: Origin
F26: onst | G26: on site
F27: ofst | G27: off site
F28: nrby | G28: neardy
F29: dist | G29: distant
F30: … | G30: … your new subscript
F32: Qualifier
F33: which balance item
F34: used | G34: used in the same time step
F35: nused | G35: NOT used in the same time step
F36: rdel | G36: redelivered
F37: tmp | G37: temporary (exported)
F38: grid | G38: to/from grid
F39: … | G39: … your new subscript
B42: Level 1 | D42: Level 2 | F42: Level 3 | H42: Level 4
B43: Primary energy | D43: Type of primary energy | F43: Qualifier | H43: Energy carrier
F44: Type of energy flow
B45: P | C45: Primary | D45: tot | E45: total primary energy | F45: del | G45: delivered | H45: See level 2…3 of table above
B46: … | C46: … your new subscript | D46: ren | E46: renewable primary fraction | F46: exp | G46: exported
D47: nren | E47: non renewable primary fraction | F47: pr | G47: produced
D48: … | E48: … your new subscript | F48: … | G48: … your new subscript
F50: Qualifier
F51: Destination of energy flow
F52: EPus | G52: used for EPBD services
F53: nEPus | G53: used for services other than EPBD
F54: X | G54: Any EPB use
F55: … | G55: … your new subscript
F57: Qualifier
F58: Origin of energy flow
F59: onst | G59: on site
F60: ofst | G60: off site
F61: nrby | G61: neardy
F62: dist | G62: distant
F63: … | G63: … your new subscript
B66: Please insert any new subscript in the yellow field

Sheet Subs_other
B1: OTHER COMMON SUBSCRIPTS
B3: Level n + 1 | D3: Level n + 2 | F3: Level n + 3 | H3: Level n + 4
B4: Spatial coverage | D4: Time period | F4: How acquired | H4: Statistical
B5: B | C5: building | D5: wk | E5: weekly | F5: calc | G5: calculated | H5: avg | I5: time-average
B6: zb | C6: building zone | D6: day | E6: daily | F6: meas | G6: measured | H6: mn | I6: mean (time or space) a
B7: sp | C7: space | D7: h | E7: hourly | F7: est | G7: estimated | H7: max | I7: maximum
B8: bu | C8: building unit | D8: m | E8: monthly | F8: … | G8: … your new subscript | H8: min | I8: minimum
B9: zt | C9: thermal zone | D9: seas | E9: seasonal | H9: pk | I9: peak
B10: zV | C10: ventilation zone | D10: bin | E10: bin | H10: … | I10: … your new subscript
B11: … | C11: … your new subscript | D11: an | E11: annual
D12: … | E12: … your new subscript
B15: a mean is used for time or spatial average (to be ascertained from the context)
B17: Please insert any new subscript in the yellow field

Sheet History
B2: Date | C2: Version scope | D2: Changes, notes
B4: 2012-07-04 | C4: Issued for discussion in CTL
B5: 2012-08-24 | C5: Issued for comments in TC 371 | D5: Improved readability
B6: 2013-07-03 | C6: Revised for the toolkit
B7: 2013-11-18 | C7: Revised to include software language and references to common symbols and subscripts
B8: 2014-04-09 | D8: 1st Version, WG doc
B9: 2014-05-01 | D9: 2nd version
B10: 2014-05-12 | D10: 3rd version, CTL distribution
B11: 2014-06-01 | D11: 4th version, WG doc
B12: 2014-06-30 | D12: PE version
B13: 2014-10-09 | D13: revised PE version, changes in standard submitted
B14: 2015-02-13 | D14: Disclaimer added
B15: 2015-11-15 | D15: Adapted to FV version
